Workbook

Sheet Overview
D3: Key Action 2: Cooperation for innovation and the exchange of good practices
D4: Capacity Building in the field of higher education
B7: Before completing this table please read carefully the instructions available on the EACEA website
B8: CALL FOR PROPOSALS 2018 – EAC/A05/2017 - Erasmus+ Programme (2017/C 361/04)
B9: Programme guide and instructions for applicants
B11: Action | D11: Joint Project | E11: =IF(D11="","Please select Action Type",IF(OR(D11="Joint Project",D11="Structural Project"),"","Error Type of Action")) -> 
B12: Duration number of months | D12: 36 | E12: =IF(D12="","Please select duration",IF(OR(D12=24,D12=36),"","Error duration")) -> 
B13: Project Acronym | D13: MARDS | E13: =IF(D13="","Please fill in Project Acronym","") -> 
B14: Project Title | D14: Reforming doctoral studies in Montenegro and Albania - good practice paradigm
B16: EU GRANT REQUESTED FROM THE EUROPEAN UNION (in EUR)
B17: 1. Staff Costs | D17: ='1. Staff costs'!D9 -> 319860 | E17: ="Cannot exceed 40% of total Grant requested" -> Cannot exceed 40% of total Grant requested | I17: =IF(COUNTIF('1. Staff costs'!T:T,"Error")<=1,"","Please check data in Tab '1. Staff Costs'") -> 
B18: 2. Travel Costs + Exceptional Travel Costs | D18: ='2-3. Travel Costs&Costs of Stay'!D8+IF(OR(C26="",D26=""),0,'2-3. Travel Costs&Costs of Stay'!J4) -> 82925 | E18: =IF(AND('2-3. Travel Costs&Costs of Stay'!D8=0,'2-3. Travel Costs&Costs of Stay'!J4>0),"Exceptional travel costs exceed 80% of total travel costs",IFERROR(IF('2-3. Travel Costs&Costs of Stay'!J4/'2-3. Travel Costs&Costs of Stay'!D8>0.8,"Exceptional travel costs exceed 80% of total travel costs",""),"")) ->  | I18: =IF(COUNTIF('2-3. Travel Costs&Costs of Stay'!O:O,"Error")<=1,"","Please check data in Tab '2-3. Travel Costs&Costs of Stay'") -> 
B19: 3. Costs of Stay | D19: ='2-3. Travel Costs&Costs of Stay'!D9 -> 216685 | I19: =IF(COUNTIF('2-3. Travel Costs&Costs of Stay'!O:O,"Error")<=1,"","Please check data in Tab '2-3. Travel Costs&Costs of Stay'") -> 
B20: 4. Equipment Costs | D20: ='4. Equipment Costs'!C4 -> 209650 | E20: ="Cannot exceed 30% of Total Grant requested" -> Cannot exceed 30% of Total Grant requested | I20: =IF(COUNTIF('4. Equipment Costs'!I:T,"Error")<=1,"","Please check data in Tab '4. Equipment Costs''") -> 
B21: 5. Subcontracting Costs | D21: ='5. Subcontracting Costs'!C4 -> 39000 | E21: ="Cannot exceed 10% of Total Grant requested" -> Cannot exceed 10% of Total Grant requested | I21: =IF(COUNTIF('5. Subcontracting Costs'!I:I,"Error")<=1,"","Please check data in Tab '5. Subcontracting Costs'") -> 
B22: Total Grant requested from the European Union | D22: =SUM(D17:D21) -> 868120 | E22: ="Should be equal or above EUR 500.000,00 and cannot exceed EUR 1.000.000,00" -> Should be equal or above EUR 500.000,00 and cannot exceed EUR 1.000.000,00 | I22: =IF(OR(COUNTIF('Co-financing'!J:J,"Error")<=1,AND('Co-financing'!B14="",'Co-financing'!E14="",'Co-financing'!F14="",'Co-financing'!G14="",'Co-financing'!H14=0)),"","Please check data in Tab 'Co-financing'") -> 
B24: DISTRIBUTION OF THE GRANT BY ORGANISATION (in EUR)
B25: Partner N° | C25: Name of Partner | D25: Country | E25: PR/PA | F25: 1. Staff Costs | G25: 2. Travel Costs | H25: 3. Costs of Stay | I25: 4. Equipment Costs | J25: 5. Subcontracting Costs | K25: Total Costs (in EUR)
B26: P1 | C26: UNIVERSITY OF MONTENEGRO | D26: Montenegro | E26: =IFERROR(IF(D26<>"",VLOOKUP(D26,CountryType,2,FALSE),""),"Country not found") -> Partner Countries | F26: =SUMIF('1. Staff costs'!C:C,B26,'1. Staff costs'!S:S) -> 61460 | G26: =SUMIF('2-3. Travel Costs&Costs of Stay'!C:C,B26,'2-3. Travel Costs&Costs of Stay'!L:L)+IF(OR(C26="",D26=""),0,'2-3. Travel Costs&Costs of Stay'!J4) -> 17770 | H26: =SUMIF('2-3. Travel Costs&Costs of Stay'!C:C,B26,'2-3. Travel Costs&Costs of Stay'!M:M) -> 34560 | I26: =SUMIF('4. Equipment Costs'!C:C,B26,'4. Equipment Costs'!H:H) -> 57950 | J26: =SUMIF('5. Subcontracting Costs'!C:C,B26,'5. Subcontracting Costs'!H:H) -> 29000 | K26: =IF(OR(C26="",D26=""),0,SUM(F26:J26)) -> 200740
B27: P2 | C27: UNIVERSITY OF VIENNA | D27: Austria | E27: Programme Countries | F27: =SUMIF('1. Staff costs'!C:C,B27,'1. Staff costs'!S:S) -> 52680 | G27: =SUMIF('2-3. Travel Costs&Costs of Stay'!C:C,B27,'2-3. Travel Costs&Costs of Stay'!L:L) -> 3660 | H27: =SUMIF('2-3. Travel Costs&Costs of Stay'!C:C,B27,'2-3. Travel Costs&Costs of Stay'!M:M) -> 8040 | I27: =SUMIF('4. Equipment Costs'!C:C,B27,'4. Equipment Costs'!H:H) -> 0 | J27: =SUMIF('5. Subcontracting Costs'!C:C,B27,'5. Subcontracting Costs'!H:H) -> 0 | K27: 64380
B28: P3 | C28: UNIVERSITY OF MARIBOR | D28: Slovenia | E28: Programme Countries | F28: =SUMIF('1. Staff costs'!C:C,B28,'1. Staff costs'!S:S) -> 24515 | G28: =SUMIF('2-3. Travel Costs&Costs of Stay'!C:C,B28,'2-3. Travel Costs&Costs of Stay'!L:L) -> 4845 | H28: =SUMIF('2-3. Travel Costs&Costs of Stay'!C:C,B28,'2-3. Travel Costs&Costs of Stay'!M:M) -> 10080 | I28: =SUMIF('4. Equipment Costs'!C:C,B28,'4. Equipment Costs'!H:H) -> 0 | J28: =SUMIF('5. Subcontracting Costs'!C:C,B28,'5. Subcontracting Costs'!H:H) -> 0 | K28: 39440
B29: P4 | C29: FAC. OF EDU. AND REH, SCIENCES (UniZAGREB), | D29: Croatia | E29: Programme Countries | F29: =SUMIF('1. Staff costs'!C:C,B29,'1. Staff costs'!S:S) -> 20015 | G29: =SUMIF('2-3. Travel Costs&Costs of Stay'!C:C,B29,'2-3. Travel Costs&Costs of Stay'!L:L) -> 3810 | H29: =SUMIF('2-3. Travel Costs&Costs of Stay'!C:C,B29,'2-3. Travel Costs&Costs of Stay'!M:M) -> 9960 | I29: =SUMIF('4. Equipment Costs'!C:C,B29,'4. Equipment Costs'!H:H) -> 0 | J29: =SUMIF('5. Subcontracting Costs'!C:C,B29,'5. Subcontracting Costs'!H:H) -> 0 | K29: 33785
B30: P5 | C30: UNIVERSITY OF BANSKA BISTRICA | D30: Slovakia | E30: Programme Countries | F30: =SUMIF('1. Staff costs'!C:C,B30,'1. Staff costs'!S:S) -> 20385 | G30: =SUMIF('2-3. Travel Costs&Costs of Stay'!C:C,B30,'2-3. Travel Costs&Costs of Stay'!L:L) -> 4760 | H30: =SUMIF('2-3. Travel Costs&Costs of Stay'!C:C,B30,'2-3. Travel Costs&Costs of Stay'!M:M) -> 9720 | I30: =SUMIF('4. Equipment Costs'!C:C,B30,'4. Equipment Costs'!H:H) -> 0 | J30: =SUMIF('5. Subcontracting Costs'!C:C,B30,'5. Subcontracting Costs'!H:H) -> 0 | K30: 34865
B31: P6 | C31: UNIVERSITY OF DONJA GORICA | D31: Montenegro | E31: Partner Countries | F31: =SUMIF('1. Staff costs'!C:C,B31,'1. Staff costs'!S:S) -> 13515 | G31: =SUMIF('2-3. Travel Costs&Costs of Stay'!C:C,B31,'2-3. Travel Costs&Costs of Stay'!L:L) -> 5480 | H31: =SUMIF('2-3. Travel Costs&Costs of Stay'!C:C,B31,'2-3. Travel Costs&Costs of Stay'!M:M) -> 18960 | I31: =SUMIF('4. Equipment Costs'!C:C,B31,'4. Equipment Costs'!H:H) -> 23450 | J31: =SUMIF('5. Subcontracting Costs'!C:C,B31,'5. Subcontracting Costs'!H:H) -> 0 | K31: 61405
B32: P7 | C32: UNIVERSITY OF SHKODRA "LUIGJ GURAKUQI" | D32: Albania | E32: Partner Countries | F32: =SUMIF('1. Staff costs'!C:C,B32,'1. Staff costs'!S:S) -> 29585 | G32: =SUMIF('2-3. Travel Costs&Costs of Stay'!C:C,B32,'2-3. Travel Costs&Costs of Stay'!L:L) -> 9050 | H32: =SUMIF('2-3. Travel Costs&Costs of Stay'!C:C,B32,'2-3. Travel Costs&Costs of Stay'!M:M) -> 33430 | I32: =SUMIF('4. Equipment Costs'!C:C,B32,'4. Equipment Costs'!H:H) -> 38650 | J32: =SUMIF('5. Subcontracting Costs'!C:C,B32,'5. Subcontracting Costs'!H:H) -> 5000 | K32: 115715
B33: P8 | C33: POLYTECHNIC UNIVERSITY OF TIRANA | D33: Albania | E33: Partner Countries | F33: =SUMIF('1. Staff costs'!C:C,B33,'1. Staff costs'!S:S) -> 16830 | G33: =SUMIF('2-3. Travel Costs&Costs of Stay'!C:C,B33,'2-3. Travel Costs&Costs of Stay'!L:L) -> 8040 | H33: =SUMIF('2-3. Travel Costs&Costs of Stay'!C:C,B33,'2-3. Travel Costs&Costs of Stay'!M:M) -> 24285 | I33: =SUMIF('4. Equipment Costs'!C:C,B33,'4. Equipment Costs'!H:H) -> 40200 | J33: =SUMIF('5. Subcontracting Costs'!C:C,B33,'5. Subcontracting Costs'!H:H) -> 0 | K33: 89355
B34: P9 | C34: UNIVERSITY OF VLORA "ISMAIL QEMALI" | D34: Albania | E34: Partner Countries | F34: =SUMIF('1. Staff costs'!C:C,B34,'1. Staff costs'!S:S) -> 15460 | G34: =SUMIF('2-3. Travel Costs&Costs of Stay'!C:C,B34,'2-3. Travel Costs&Costs of Stay'!L:L) -> 8100 | H34: =SUMIF('2-3. Travel Costs&Costs of Stay'!C:C,B34,'2-3. Travel Costs&Costs of Stay'!M:M) -> 24285 | I34: =SUMIF('4. Equipment Costs'!C:C,B34,'4. Equipment Costs'!H:H) -> 24450 | J34: =SUMIF('5. Subcontracting Costs'!C:C,B34,'5. Subcontracting Costs'!H:H) -> 0 | K34: 72295
B35: P10 | C35: METROPOLITAN UNIVERSITY OF TIRANA | D35: Albania | E35: Partner Countries | F35: =SUMIF('1. Staff costs'!C:C,B35,'1. Staff costs'!S:S) -> 23500 | G35: =SUMIF('2-3. Travel Costs&Costs of Stay'!C:C,B35,'2-3. Travel Costs&Costs of Stay'!L:L) -> 6760 | H35: =SUMIF('2-3. Travel Costs&Costs of Stay'!C:C,B35,'2-3. Travel Costs&Costs of Stay'!M:M) -> 19845 | I35: =SUMIF('4. Equipment Costs'!C:C,B35,'4. Equipment Costs'!H:H) -> 24950 | J35: =SUMIF('5. Subcontracting Costs'!C:C,B35,'5. Subcontracting Costs'!H:H) -> 5000 | K35: 80055
B36: P11 | C36: MINISTRY OF EDUCATION OF MONTENEGRO | D36: Montenegro | E36: Partner Countries | F36: =SUMIF('1. Staff costs'!C:C,B36,'1. Staff costs'!S:S) -> 6765 | G36: =SUMIF('2-3. Travel Costs&Costs of Stay'!C:C,B36,'2-3. Travel Costs&Costs of Stay'!L:L) -> 1575 | H36: =SUMIF('2-3. Travel Costs&Costs of Stay'!C:C,B36,'2-3. Travel Costs&Costs of Stay'!M:M) -> 4200 | I36: =SUMIF('4. Equipment Costs'!C:C,B36,'4. Equipment Costs'!H:H) -> 0 | J36: =SUMIF('5. Subcontracting Costs'!C:C,B36,'5. Subcontracting Costs'!H:H) -> 0 | K36: 12540
B37: P12 | C37: MINISTRY OF SCIENCE OF MONTENEGRO | D37: Montenegro | E37: Partner Countries | F37: =SUMIF('1. Staff costs'!C:C,B37,'1. Staff costs'!S:S) -> 6765 | G37: =SUMIF('2-3. Travel Costs&Costs of Stay'!C:C,B37,'2-3. Travel Costs&Costs of Stay'!L:L) -> 1575 | H37: =SUMIF('2-3. Travel Costs&Costs of Stay'!C:C,B37,'2-3. Travel Costs&Costs of Stay'!M:M) -> 4200 | I37: =SUMIF('4. Equipment Costs'!C:C,B37,'4. Equipment Costs'!H:H) -> 0 | J37: =SUMIF('5. Subcontracting Costs'!C:C,B37,'5. Subcontracting Costs'!H:H) -> 0 | K37: 12540
B38: P13 | C38: MINISTRY OF EDUCATION, SPORTS AND YOUTH OF ALBANIA | D38: Albania | E38: Partner Countries | F38: =SUMIF('1. Staff costs'!C:C,B38,'1. Staff costs'!S:S) -> 6765 | G38: =SUMIF('2-3. Travel Costs&Costs of Stay'!C:C,B38,'2-3. Travel Costs&Costs of Stay'!L:L) -> 2275 | H38: =SUMIF('2-3. Travel Costs&Costs of Stay'!C:C,B38,'2-3. Travel Costs&Costs of Stay'!M:M) -> 4200 | I38: =SUMIF('4. Equipment Costs'!C:C,B38,'4. Equipment Costs'!H:H) -> 0 | J38: =SUMIF('5. Subcontracting Costs'!C:C,B38,'5. Subcontracting Costs'!H:H) -> 0 | K38: 13240
B39: P14 | C39: CHAMBER OF ECONOMY OF MONTENEGRO | D39: Montenegro | E39: Partner Countries | F39: =SUMIF('1. Staff costs'!C:C,B39,'1. Staff costs'!S:S) -> 6225 | G39: =SUMIF('2-3. Travel Costs&Costs of Stay'!C:C,B39,'2-3. Travel Costs&Costs of Stay'!L:L) -> 1120 | H39: =SUMIF('2-3. Travel Costs&Costs of Stay'!C:C,B39,'2-3. Travel Costs&Costs of Stay'!M:M) -> 3120 | I39: =SUMIF('4. Equipment Costs'!C:C,B39,'4. Equipment Costs'!H:H) -> 0 | J39: =SUMIF('5. Subcontracting Costs'!C:C,B39,'5. Subcontracting Costs'!H:H) -> 0 | K39: 10465
B40: P15 | C40: ASSOCIATION FOR PROFESSIONALS IN DOCTORAL EDUCATION - PRIDE | D40: Austria | E40: Programme Countries | F40: =SUMIF('1. Staff costs'!C:C,B40,'1. Staff costs'!S:S) -> 10358 | G40: =SUMIF('2-3. Travel Costs&Costs of Stay'!C:C,B40,'2-3. Travel Costs&Costs of Stay'!L:L) -> 2285 | H40: =SUMIF('2-3. Travel Costs&Costs of Stay'!C:C,B40,'2-3. Travel Costs&Costs of Stay'!M:M) -> 4560 | I40: =SUMIF('4. Equipment Costs'!C:C,B40,'4. Equipment Costs'!H:H) -> 0 | J40: =SUMIF('5. Subcontracting Costs'!C:C,B40,'5. Subcontracting Costs'!H:H) -> 0 | K40: 17203
B41: P16 | C41: UNION OF CHAMBERS OF COMMERCE AND INDUSTRY OF ALBANIA | D41: Albania | E41: Partner Countries | F41: =SUMIF('1. Staff costs'!C:C,B41,'1. Staff costs'!S:S) -> 5037 | G41: =SUMIF('2-3. Travel Costs&Costs of Stay'!C:C,B41,'2-3. Travel Costs&Costs of Stay'!L:L) -> 1820 | H41: =SUMIF('2-3. Travel Costs&Costs of Stay'!C:C,B41,'2-3. Travel Costs&Costs of Stay'!M:M) -> 3240 | I41: =SUMIF('4. Equipment Costs'!C:C,B41,'4. Equipment Costs'!H:H) -> 0 | J41: =SUMIF('5. Subcontracting Costs'!C:C,B41,'5. Subcontracting Costs'!H:H) -> 0 | K41: 10097
B42: P17 | F42: =SUMIF('1. Staff costs'!C:C,B42,'1. Staff costs'!S:S) -> 0 | G42: =SUMIF('2-3. Travel Costs&Costs of Stay'!C:C,B42,'2-3. Travel Costs&Costs of Stay'!L:L) -> 0 | H42: =SUMIF('2-3. Travel Costs&Costs of Stay'!C:C,B42,'2-3. Travel Costs&Costs of Stay'!M:M) -> 0 | I42: =SUMIF('4. Equipment Costs'!C:C,B42,'4. Equipment Costs'!H:H) -> 0 | J42: =SUMIF('5. Subcontracting Costs'!C:C,B42,'5. Subcontracting Costs'!H:H) -> 0 | K42: 0
B43: P18 | F43: =SUMIF('1. Staff costs'!C:C,B43,'1. Staff costs'!S:S) -> 0 | G43: =SUMIF('2-3. Travel Costs&Costs of Stay'!C:C,B43,'2-3. Travel Costs&Costs of Stay'!L:L) -> 0 | H43: =SUMIF('2-3. Travel Costs&Costs of Stay'!C:C,B43,'2-3. Travel Costs&Costs of Stay'!M:M) -> 0 | I43: =SUMIF('4. Equipment Costs'!C:C,B43,'4. Equipment Costs'!H:H) -> 0 | J43: =SUMIF('5. Subcontracting Costs'!C:C,B43,'5. Subcontracting Costs'!H:H) -> 0 | K43: 0
B44: P19 | F44: =SUMIF('1. Staff costs'!C:C,B44,'1. Staff costs'!S:S) -> 0 | G44: =SUMIF('2-3. Travel Costs&Costs of Stay'!C:C,B44,'2-3. Travel Costs&Costs of Stay'!L:L) -> 0 | H44: =SUMIF('2-3. Travel Costs&Costs of Stay'!C:C,B44,'2-3. Travel Costs&Costs of Stay'!M:M) -> 0 | I44: =SUMIF('4. Equipment Costs'!C:C,B44,'4. Equipment Costs'!H:H) -> 0 | J44: =SUMIF('5. Subcontracting Costs'!C:C,B44,'5. Subcontracting Costs'!H:H) -> 0 | K44: 0
B45: P20 | F45: =SUMIF('1. Staff costs'!C:C,B45,'1. Staff costs'!S:S) -> 0 | G45: =SUMIF('2-3. Travel Costs&Costs of Stay'!C:C,B45,'2-3. Travel Costs&Costs of Stay'!L:L) -> 0 | H45: =SUMIF('2-3. Travel Costs&Costs of Stay'!C:C,B45,'2-3. Travel Costs&Costs of Stay'!M:M) -> 0 | I45: =SUMIF('4. Equipment Costs'!C:C,B45,'4. Equipment Costs'!H:H) -> 0 | J45: =SUMIF('5. Subcontracting Costs'!C:C,B45,'5. Subcontracting Costs'!H:H) -> 0 | K45: 0
B46: P21 | F46: =SUMIF('1. Staff costs'!C:C,B46,'1. Staff costs'!S:S) -> 0 | G46: =SUMIF('2-3. Travel Costs&Costs of Stay'!C:C,B46,'2-3. Travel Costs&Costs of Stay'!L:L) -> 0 | H46: =SUMIF('2-3. Travel Costs&Costs of Stay'!C:C,B46,'2-3. Travel Costs&Costs of Stay'!M:M) -> 0 | I46: =SUMIF('4. Equipment Costs'!C:C,B46,'4. Equipment Costs'!H:H) -> 0 | J46: =SUMIF('5. Subcontracting Costs'!C:C,B46,'5. Subcontracting Costs'!H:H) -> 0 | K46: 0
B47: P22 | F47: =SUMIF('1. Staff costs'!C:C,B47,'1. Staff costs'!S:S) -> 0 | G47: =SUMIF('2-3. Travel Costs&Costs of Stay'!C:C,B47,'2-3. Travel Costs&Costs of Stay'!L:L) -> 0 | H47: =SUMIF('2-3. Travel Costs&Costs of Stay'!C:C,B47,'2-3. Travel Costs&Costs of Stay'!M:M) -> 0 | I47: =SUMIF('4. Equipment Costs'!C:C,B47,'4. Equipment Costs'!H:H) -> 0 | J47: =SUMIF('5. Subcontracting Costs'!C:C,B47,'5. Subcontracting Costs'!H:H) -> 0 | K47: 0
B48: P23 | F48: =SUMIF('1. Staff costs'!C:C,B48,'1. Staff costs'!S:S) -> 0 | G48: =SUMIF('2-3. Travel Costs&Costs of Stay'!C:C,B48,'2-3. Travel Costs&Costs of Stay'!L:L) -> 0 | H48: =SUMIF('2-3. Travel Costs&Costs of Stay'!C:C,B48,'2-3. Travel Costs&Costs of Stay'!M:M) -> 0 | I48: =SUMIF('4. Equipment Costs'!C:C,B48,'4. Equipment Costs'!H:H) -> 0 | J48: =SUMIF('5. Subcontracting Costs'!C:C,B48,'5. Subcontracting Costs'!H:H) -> 0 | K48: 0
B49: P24 | F49: =SUMIF('1. Staff costs'!C:C,B49,'1. Staff costs'!S:S) -> 0 | G49: =SUMIF('2-3. Travel Costs&Costs of Stay'!C:C,B49,'2-3. Travel Costs&Costs of Stay'!L:L) -> 0 | H49: =SUMIF('2-3. Travel Costs&Costs of Stay'!C:C,B49,'2-3. Travel Costs&Costs of Stay'!M:M) -> 0 | I49: =SUMIF('4. Equipment Costs'!C:C,B49,'4. Equipment Costs'!H:H) -> 0 | J49: =SUMIF('5. Subcontracting Costs'!C:C,B49,'5. Subcontracting Costs'!H:H) -> 0 | K49: 0
B50: P25 | F50: =SUMIF('1. Staff costs'!C:C,B50,'1. Staff costs'!S:S) -> 0 | G50: =SUMIF('2-3. Travel Costs&Costs of Stay'!C:C,B50,'2-3. Travel Costs&Costs of Stay'!L:L) -> 0 | H50: =SUMIF('2-3. Travel Costs&Costs of Stay'!C:C,B50,'2-3. Travel Costs&Costs of Stay'!M:M) -> 0 | I50: =SUMIF('4. Equipment Costs'!C:C,B50,'4. Equipment Costs'!H:H) -> 0 | J50: =SUMIF('5. Subcontracting Costs'!C:C,B50,'5. Subcontracting Costs'!H:H) -> 0 | K50: 0
B51: P26 | F51: =SUMIF('1. Staff costs'!C:C,B51,'1. Staff costs'!S:S) -> 0 | G51: =SUMIF('2-3. Travel Costs&Costs of Stay'!C:C,B51,'2-3. Travel Costs&Costs of Stay'!L:L) -> 0 | H51: =SUMIF('2-3. Travel Costs&Costs of Stay'!C:C,B51,'2-3. Travel Costs&Costs of Stay'!M:M) -> 0 | I51: =SUMIF('4. Equipment Costs'!C:C,B51,'4. Equipment Costs'!H:H) -> 0 | J51: =SUMIF('5. Subcontracting Costs'!C:C,B51,'5. Subcontracting Costs'!H:H) -> 0 | K51: 0
B52: P27 | F52: =SUMIF('1. Staff costs'!C:C,B52,'1. Staff costs'!S:S) -> 0 | G52: =SUMIF('2-3. Travel Costs&Costs of Stay'!C:C,B52,'2-3. Travel Costs&Costs of Stay'!L:L) -> 0 | H52: =SUMIF('2-3. Travel Costs&Costs of Stay'!C:C,B52,'2-3. Travel Costs&Costs of Stay'!M:M) -> 0 | I52: =SUMIF('4. Equipment Costs'!C:C,B52,'4. Equipment Costs'!H:H) -> 0 | J52: =SUMIF('5. Subcontracting Costs'!C:C,B52,'5. Subcontracting Costs'!H:H) -> 0 | K52: 0
B53: P28 | F53: =SUMIF('1. Staff costs'!C:C,B53,'1. Staff costs'!S:S) -> 0 | G53: =SUMIF('2-3. Travel Costs&Costs of Stay'!C:C,B53,'2-3. Travel Costs&Costs of Stay'!L:L) -> 0 | H53: =SUMIF('2-3. Travel Costs&Costs of Stay'!C:C,B53,'2-3. Travel Costs&Costs of Stay'!M:M) -> 0 | I53: =SUMIF('4. Equipment Costs'!C:C,B53,'4. Equipment Costs'!H:H) -> 0 | J53: =SUMIF('5. Subcontracting Costs'!C:C,B53,'5. Subcontracting Costs'!H:H) -> 0 | K53: 0
B54: P29 | F54: =SUMIF('1. Staff costs'!C:C,B54,'1. Staff costs'!S:S) -> 0 | G54: =SUMIF('2-3. Travel Costs&Costs of Stay'!C:C,B54,'2-3. Travel Costs&Costs of Stay'!L:L) -> 0 | H54: =SUMIF('2-3. Travel Costs&Costs of Stay'!C:C,B54,'2-3. Travel Costs&Costs of Stay'!M:M) -> 0 | I54: =SUMIF('4. Equipment Costs'!C:C,B54,'4. Equipment Costs'!H:H) -> 0 | J54: =SUMIF('5. Subcontracting Costs'!C:C,B54,'5. Subcontracting Costs'!H:H) -> 0 | K54: 0
B55: P30 | F55: =SUMIF('1. Staff costs'!C:C,B55,'1. Staff costs'!S:S) -> 0 | G55: =SUMIF('2-3. Travel Costs&Costs of Stay'!C:C,B55,'2-3. Travel Costs&Costs of Stay'!L:L) -> 0 | H55: =SUMIF('2-3. Travel Costs&Costs of Stay'!C:C,B55,'2-3. Travel Costs&Costs of Stay'!M:M) -> 0 | I55: =SUMIF('4. Equipment Costs'!C:C,B55,'4. Equipment Costs'!H:H) -> 0 | J55: =SUMIF('5. Subcontracting Costs'!C:C,B55,'5. Subcontracting Costs'!H:H) -> 0 | K55: 0
B56: P31 | F56: =SUMIF('1. Staff costs'!C:C,B56,'1. Staff costs'!S:S) -> 0 | G56: =SUMIF('2-3. Travel Costs&Costs of Stay'!C:C,B56,'2-3. Travel Costs&Costs of Stay'!L:L) -> 0 | H56: =SUMIF('2-3. Travel Costs&Costs of Stay'!C:C,B56,'2-3. Travel Costs&Costs of Stay'!M:M) -> 0 | I56: =SUMIF('4. Equipment Costs'!C:C,B56,'4. Equipment Costs'!H:H) -> 0 | J56: =SUMIF('5. Subcontracting Costs'!C:C,B56,'5. Subcontracting Costs'!H:H) -> 0 | K56: 0
B57: P32 | F57: =SUMIF('1. Staff costs'!C:C,B57,'1. Staff costs'!S:S) -> 0 | G57: =SUMIF('2-3. Travel Costs&Costs of Stay'!C:C,B57,'2-3. Travel Costs&Costs of Stay'!L:L) -> 0 | H57: =SUMIF('2-3. Travel Costs&Costs of Stay'!C:C,B57,'2-3. Travel Costs&Costs of Stay'!M:M) -> 0 | I57: =SUMIF('4. Equipment Costs'!C:C,B57,'4. Equipment Costs'!H:H) -> 0 | J57: =SUMIF('5. Subcontracting Costs'!C:C,B57,'5. Subcontracting Costs'!H:H) -> 0 | K57: 0
B58: P33 | F58: =SUMIF('1. Staff costs'!C:C,B58,'1. Staff costs'!S:S) -> 0 | G58: =SUMIF('2-3. Travel Costs&Costs of Stay'!C:C,B58,'2-3. Travel Costs&Costs of Stay'!L:L) -> 0 | H58: =SUMIF('2-3. Travel Costs&Costs of Stay'!C:C,B58,'2-3. Travel Costs&Costs of Stay'!M:M) -> 0 | I58: =SUMIF('4. Equipment Costs'!C:C,B58,'4. Equipment Costs'!H:H) -> 0 | J58: =SUMIF('5. Subcontracting Costs'!C:C,B58,'5. Subcontracting Costs'!H:H) -> 0 | K58: =IF(OR(C58="",D58=""),0,SUM(F58:J58)) -> 0
B59: P34 | F59: =SUMIF('1. Staff costs'!C:C,B59,'1. Staff costs'!S:S) -> 0 | G59: =SUMIF('2-3. Travel Costs&Costs of Stay'!C:C,B59,'2-3. Travel Costs&Costs of Stay'!L:L) -> 0 | H59: =SUMIF('2-3. Travel Costs&Costs of Stay'!C:C,B59,'2-3. Travel Costs&Costs of Stay'!M:M) -> 0 | I59: =SUMIF('4. Equipment Costs'!C:C,B59,'4. Equipment Costs'!H:H) -> 0 | J59: =SUMIF('5. Subcontracting Costs'!C:C,B59,'5. Subcontracting Costs'!H:H) -> 0 | K59: 0
B60: P35 | F60: =SUMIF('1. Staff costs'!C:C,B60,'1. Staff costs'!S:S) -> 0 | G60: =SUMIF('2-3. Travel Costs&Costs of Stay'!C:C,B60,'2-3. Travel Costs&Costs of Stay'!L:L) -> 0 | H60: =SUMIF('2-3. Travel Costs&Costs of Stay'!C:C,B60,'2-3. Travel Costs&Costs of Stay'!M:M) -> 0 | I60: =SUMIF('4. Equipment Costs'!C:C,B60,'4. Equipment Costs'!H:H) -> 0 | J60: =SUMIF('5. Subcontracting Costs'!C:C,B60,'5. Subcontracting Costs'!H:H) -> 0 | K60: 0
B61: P36 | F61: =SUMIF('1. Staff costs'!C:C,B61,'1. Staff costs'!S:S) -> 0 | G61: =SUMIF('2-3. Travel Costs&Costs of Stay'!C:C,B61,'2-3. Travel Costs&Costs of Stay'!L:L) -> 0 | H61: =SUMIF('2-3. Travel Costs&Costs of Stay'!C:C,B61,'2-3. Travel Costs&Costs of Stay'!M:M) -> 0 | I61: =SUMIF('4. Equipment Costs'!C:C,B61,'4. Equipment Costs'!H:H) -> 0 | J61: =SUMIF('5. Subcontracting Costs'!C:C,B61,'5. Subcontracting Costs'!H:H) -> 0 | K61: 0
B62: P37 | F62: =SUMIF('1. Staff costs'!C:C,B62,'1. Staff costs'!S:S) -> 0 | G62: =SUMIF('2-3. Travel Costs&Costs of Stay'!C:C,B62,'2-3. Travel Costs&Costs of Stay'!L:L) -> 0 | H62: =SUMIF('2-3. Travel Costs&Costs of Stay'!C:C,B62,'2-3. Travel Costs&Costs of Stay'!M:M) -> 0 | I62: =SUMIF('4. Equipment Costs'!C:C,B62,'4. Equipment Costs'!H:H) -> 0 | J62: =SUMIF('5. Subcontracting Costs'!C:C,B62,'5. Subcontracting Costs'!H:H) -> 0 | K62: 0
B63: P38 | F63: =SUMIF('1. Staff costs'!C:C,B63,'1. Staff costs'!S:S) -> 0 | G63: =SUMIF('2-3. Travel Costs&Costs of Stay'!C:C,B63,'2-3. Travel Costs&Costs of Stay'!L:L) -> 0 | H63: =SUMIF('2-3. Travel Costs&Costs of Stay'!C:C,B63,'2-3. Travel Costs&Costs of Stay'!M:M) -> 0 | I63: =SUMIF('4. Equipment Costs'!C:C,B63,'4. Equipment Costs'!H:H) -> 0 | J63: =SUMIF('5. Subcontracting Costs'!C:C,B63,'5. Subcontracting Costs'!H:H) -> 0 | K63: 0
B64: P39 | F64: =SUMIF('1. Staff costs'!C:C,B64,'1. Staff costs'!S:S) -> 0 | G64: =SUMIF('2-3. Travel Costs&Costs of Stay'!C:C,B64,'2-3. Travel Costs&Costs of Stay'!L:L) -> 0 | H64: =SUMIF('2-3. Travel Costs&Costs of Stay'!C:C,B64,'2-3. Travel Costs&Costs of Stay'!M:M) -> 0 | I64: =SUMIF('4. Equipment Costs'!C:C,B64,'4. Equipment Costs'!H:H) -> 0 | J64: =SUMIF('5. Subcontracting Costs'!C:C,B64,'5. Subcontracting Costs'!H:H) -> 0 | K64: 0
B65: P40 | F65: =SUMIF('1. Staff costs'!C:C,B65,'1. Staff costs'!S:S) -> 0 | G65: =SUMIF('2-3. Travel Costs&Costs of Stay'!C:C,B65,'2-3. Travel Costs&Costs of Stay'!L:L) -> 0 | H65: =SUMIF('2-3. Travel Costs&Costs of Stay'!C:C,B65,'2-3. Travel Costs&Costs of Stay'!M:M) -> 0 | I65: =SUMIF('4. Equipment Costs'!C:C,B65,'4. Equipment Costs'!H:H) -> 0 | J65: =SUMIF('5. Subcontracting Costs'!C:C,B65,'5. Subcontracting Costs'!H:H) -> 0 | K65: 0
B66: P41 | F66: =SUMIF('1. Staff costs'!C:C,B66,'1. Staff costs'!S:S) -> 0 | G66: =SUMIF('2-3. Travel Costs&Costs of Stay'!C:C,B66,'2-3. Travel Costs&Costs of Stay'!L:L) -> 0 | H66: =SUMIF('2-3. Travel Costs&Costs of Stay'!C:C,B66,'2-3. Travel Costs&Costs of Stay'!M:M) -> 0 | I66: =SUMIF('4. Equipment Costs'!C:C,B66,'4. Equipment Costs'!H:H) -> 0 | J66: =SUMIF('5. Subcontracting Costs'!C:C,B66,'5. Subcontracting Costs'!H:H) -> 0 | K66: 0
B67: P42 | F67: =SUMIF('1. Staff costs'!C:C,B67,'1. Staff costs'!S:S) -> 0 | G67: =SUMIF('2-3. Travel Costs&Costs of Stay'!C:C,B67,'2-3. Travel Costs&Costs of Stay'!L:L) -> 0 | H67: =SUMIF('2-3. Travel Costs&Costs of Stay'!C:C,B67,'2-3. Travel Costs&Costs of Stay'!M:M) -> 0 | I67: =SUMIF('4. Equipment Costs'!C:C,B67,'4. Equipment Costs'!H:H) -> 0 | J67: =SUMIF('5. Subcontracting Costs'!C:C,B67,'5. Subcontracting Costs'!H:H) -> 0 | K67: 0
B68: P43 | F68: =SUMIF('1. Staff costs'!C:C,B68,'1. Staff costs'!S:S) -> 0 | G68: =SUMIF('2-3. Travel Costs&Costs of Stay'!C:C,B68,'2-3. Travel Costs&Costs of Stay'!L:L) -> 0 | H68: =SUMIF('2-3. Travel Costs&Costs of Stay'!C:C,B68,'2-3. Travel Costs&Costs of Stay'!M:M) -> 0 | I68: =SUMIF('4. Equipment Costs'!C:C,B68,'4. Equipment Costs'!H:H) -> 0 | J68: =SUMIF('5. Subcontracting Costs'!C:C,B68,'5. Subcontracting Costs'!H:H) -> 0 | K68: 0
B69: P44 | F69: =SUMIF('1. Staff costs'!C:C,B69,'1. Staff costs'!S:S) -> 0 | G69: =SUMIF('2-3. Travel Costs&Costs of Stay'!C:C,B69,'2-3. Travel Costs&Costs of Stay'!L:L) -> 0 | H69: =SUMIF('2-3. Travel Costs&Costs of Stay'!C:C,B69,'2-3. Travel Costs&Costs of Stay'!M:M) -> 0 | I69: =SUMIF('4. Equipment Costs'!C:C,B69,'4. Equipment Costs'!H:H) -> 0 | J69: =SUMIF('5. Subcontracting Costs'!C:C,B69,'5. Subcontracting Costs'!H:H) -> 0 | K69: 0
B70: P45 | F70: =SUMIF('1. Staff costs'!C:C,B70,'1. Staff costs'!S:S) -> 0 | G70: =SUMIF('2-3. Travel Costs&Costs of Stay'!C:C,B70,'2-3. Travel Costs&Costs of Stay'!L:L) -> 0 | H70: =SUMIF('2-3. Travel Costs&Costs of Stay'!C:C,B70,'2-3. Travel Costs&Costs of Stay'!M:M) -> 0 | I70: =SUMIF('4. Equipment Costs'!C:C,B70,'4. Equipment Costs'!H:H) -> 0 | J70: =SUMIF('5. Subcontracting Costs'!C:C,B70,'5. Subcontracting Costs'!H:H) -> 0 | K70: 0
B71: P46 | F71: =SUMIF('1. Staff costs'!C:C,B71,'1. Staff costs'!S:S) -> 0 | G71: =SUMIF('2-3. Travel Costs&Costs of Stay'!C:C,B71,'2-3. Travel Costs&Costs of Stay'!L:L) -> 0 | H71: =SUMIF('2-3. Travel Costs&Costs of Stay'!C:C,B71,'2-3. Travel Costs&Costs of Stay'!M:M) -> 0 | I71: =SUMIF('4. Equipment Costs'!C:C,B71,'4. Equipment Costs'!H:H) -> 0 | J71: =SUMIF('5. Subcontracting Costs'!C:C,B71,'5. Subcontracting Costs'!H:H) -> 0 | K71: 0
B72: P47 | F72: =SUMIF('1. Staff costs'!C:C,B72,'1. Staff costs'!S:S) -> 0 | G72: =SUMIF('2-3. Travel Costs&Costs of Stay'!C:C,B72,'2-3. Travel Costs&Costs of Stay'!L:L) -> 0 | H72: =SUMIF('2-3. Travel Costs&Costs of Stay'!C:C,B72,'2-3. Travel Costs&Costs of Stay'!M:M) -> 0 | I72: =SUMIF('4. Equipment Costs'!C:C,B72,'4. Equipment Costs'!H:H) -> 0 | J72: =SUMIF('5. Subcontracting Costs'!C:C,B72,'5. Subcontracting Costs'!H:H) -> 0 | K72: 0
B73: P48 | F73: =SUMIF('1. Staff costs'!C:C,B73,'1. Staff costs'!S:S) -> 0 | G73: =SUMIF('2-3. Travel Costs&Costs of Stay'!C:C,B73,'2-3. Travel Costs&Costs of Stay'!L:L) -> 0 | H73: =SUMIF('2-3. Travel Costs&Costs of Stay'!C:C,B73,'2-3. Travel Costs&Costs of Stay'!M:M) -> 0 | I73: =SUMIF('4. Equipment Costs'!C:C,B73,'4. Equipment Costs'!H:H) -> 0 | J73: =SUMIF('5. Subcontracting Costs'!C:C,B73,'5. Subcontracting Costs'!H:H) -> 0 | K73: 0
B74: P49 | F74: =SUMIF('1. Staff costs'!C:C,B74,'1. Staff costs'!S:S) -> 0 | G74: =SUMIF('2-3. Travel Costs&Costs of Stay'!C:C,B74,'2-3. Travel Costs&Costs of Stay'!L:L) -> 0 | H74: =SUMIF('2-3. Travel Costs&Costs of Stay'!C:C,B74,'2-3. Travel Costs&Costs of Stay'!M:M) -> 0 | I74: =SUMIF('4. Equipment Costs'!C:C,B74,'4. Equipment Costs'!H:H) -> 0 | J74: =SUMIF('5. Subcontracting Costs'!C:C,B74,'5. Subcontracting Costs'!H:H) -> 0 | K74: 0
B75: P50 | F75: =SUMIF('1. Staff costs'!C:C,B75,'1. Staff costs'!S:S) -> 0 | G75: =SUMIF('2-3. Travel Costs&Costs of Stay'!C:C,B75,'2-3. Travel Costs&Costs of Stay'!L:L) -> 0 | H75: =SUMIF('2-3. Travel Costs&Costs of Stay'!C:C,B75,'2-3. Travel Costs&Costs of Stay'!M:M) -> 0 | I75: =SUMIF('4. Equipment Costs'!C:C,B75,'4. Equipment Costs'!H:H) -> 0 | J75: =SUMIF('5. Subcontracting Costs'!C:C,B75,'5. Subcontracting Costs'!H:H) -> 0 | K75: 0
B76: P51 | F76: =SUMIF('1. Staff costs'!C:C,B76,'1. Staff costs'!S:S) -> 0 | G76: =SUMIF('2-3. Travel Costs&Costs of Stay'!C:C,B76,'2-3. Travel Costs&Costs of Stay'!L:L) -> 0 | H76: =SUMIF('2-3. Travel Costs&Costs of Stay'!C:C,B76,'2-3. Travel Costs&Costs of Stay'!M:M) -> 0 | I76: =SUMIF('4. Equipment Costs'!C:C,B76,'4. Equipment Costs'!H:H) -> 0 | J76: =SUMIF('5. Subcontracting Costs'!C:C,B76,'5. Subcontracting Costs'!H:H) -> 0 | K76: 0
B77: P52 | F77: =SUMIF('1. Staff costs'!C:C,B77,'1. Staff costs'!S:S) -> 0 | G77: =SUMIF('2-3. Travel Costs&Costs of Stay'!C:C,B77,'2-3. Travel Costs&Costs of Stay'!L:L) -> 0 | H77: =SUMIF('2-3. Travel Costs&Costs of Stay'!C:C,B77,'2-3. Travel Costs&Costs of Stay'!M:M) -> 0 | I77: =SUMIF('4. Equipment Costs'!C:C,B77,'4. Equipment Costs'!H:H) -> 0 | J77: =SUMIF('5. Subcontracting Costs'!C:C,B77,'5. Subcontracting Costs'!H:H) -> 0 | K77: 0
B78: P53 | F78: =SUMIF('1. Staff costs'!C:C,B78,'1. Staff costs'!S:S) -> 0 | G78: =SUMIF('2-3. Travel Costs&Costs of Stay'!C:C,B78,'2-3. Travel Costs&Costs of Stay'!L:L) -> 0 | H78: =SUMIF('2-3. Travel Costs&Costs of Stay'!C:C,B78,'2-3. Travel Costs&Costs of Stay'!M:M) -> 0 | I78: =SUMIF('4. Equipment Costs'!C:C,B78,'4. Equipment Costs'!H:H) -> 0 | J78: =SUMIF('5. Subcontracting Costs'!C:C,B78,'5. Subcontracting Costs'!H:H) -> 0 | K78: 0
B79: P54 | F79: =SUMIF('1. Staff costs'!C:C,B79,'1. Staff costs'!S:S) -> 0 | G79: =SUMIF('2-3. Travel Costs&Costs of Stay'!C:C,B79,'2-3. Travel Costs&Costs of Stay'!L:L) -> 0 | H79: =SUMIF('2-3. Travel Costs&Costs of Stay'!C:C,B79,'2-3. Travel Costs&Costs of Stay'!M:M) -> 0 | I79: =SUMIF('4. Equipment Costs'!C:C,B79,'4. Equipment Costs'!H:H) -> 0 | J79: =SUMIF('5. Subcontracting Costs'!C:C,B79,'5. Subcontracting Costs'!H:H) -> 0 | K79: 0
B80: P55 | F80: =SUMIF('1. Staff costs'!C:C,B80,'1. Staff costs'!S:S) -> 0 | G80: =SUMIF('2-3. Travel Costs&Costs of Stay'!C:C,B80,'2-3. Travel Costs&Costs of Stay'!L:L) -> 0 | H80: =SUMIF('2-3. Travel Costs&Costs of Stay'!C:C,B80,'2-3. Travel Costs&Costs of Stay'!M:M) -> 0 | I80: =SUMIF('4. Equipment Costs'!C:C,B80,'4. Equipment Costs'!H:H) -> 0 | J80: =SUMIF('5. Subcontracting Costs'!C:C,B80,'5. Subcontracting Costs'!H:H) -> 0 | K80: 0

Sheet Sheet Validation (hidden)
A1: Data Sheet Validation
A2: 1. Staff Costs | B2: =IF(COUNTIF('1. Staff costs'!T:T,"Error")<=1,"OK","Please check data in Tab '"&A2&"'") -> OK
A3: 2-3. Travel Costs&Costs of Stay | B3: =IF(COUNTIF('2-3. Travel Costs&Costs of Stay'!O:O,"Error")<=1,"OK","Please check data in Tab '"&A3&"'") -> OK
A4: 4. Equipment Costs | B4: =IF(COUNTIF('4. Equipment Costs'!I:T,"Error")<=1,"OK","Please check data in Tab '"&A4&"'") -> OK
A5: 5. Subcontracting Costs | B5: =IF(COUNTIF('5. Subcontracting Costs'!I:I,"Error")<=1,"OK","Please check data in Tab '"&A5&"'") -> OK
A6: Co-financing | B6: =IF(COUNTIF('Co-financing'!J:J,"Error")<=1,"OK","Please check data in Tab '"&A6&"'") -> OK
A7: Exceptional Travel Costs (EUR) | B7: =IF('2-3. Travel Costs&Costs of Stay'!K4="","OK","Please check Exceptional Travel Costs (EUR) in Tab '"&A3&"'") -> OK

Sheet 1. Staff costs
B2: 1. Staff Costs
D4: Total (EUR) | E4: Number of Days
B5: Manager | D5: =SUM(H:H) -> 120360 | E5: =SUMIF(T:T,"<>Error",F:F) -> 971
B6: Teacher/Trainer/Researcher | D6: =SUM(K:K) -> 156265 | E6: =SUMIF(T:T,"<>Error",I:I) -> 1645
B7: Technical Staff | D7: =SUM(N:N) -> 30410 | E7: =SUMIF(T:T,"<>Error",L:L) -> 415
B8: Administrative Staff | D8: =SUM(Q:Q) -> 12825 | E8: =SUMIF(T:T,"<>Error",O:O) -> 285
D9: =SUM(D5:D8) -> 319860 | E9: =SUM(E5:E8) -> 3316
B11: Work Package | C11: Partner N° | D11: Name of Partner (to encode in overview sheet) | E11: Country (to encode in overview sheet) | F11: ='Unit Costs & Funding Rule'!D7 -> Manager | I11: ='Unit Costs & Funding Rule'!E7 -> Teacher/Trainer/Researcher | L11: ='Unit Costs & Funding Rule'!F7 -> Technical Staff | O11: ='Unit Costs & Funding Rule'!G7 -> Administrative Staff | R11: Total Number of Days | S11: Total (EUR) | T11: Check Data Encoding
F12: Number of days | G12: Unit cost per day | H12: Total (EUR) | I12: Number of days | J12: Unit cost per day | K12: Total (EUR) | L12: Number of days | M12: Unit cost per day | N12: Total (EUR) | O12: Number of days | P12: Unit cost per day | Q12: Total (EUR) | V12: RES | W12: =SUM(W14+W30+W46+W62+W78) -> 27200 | X12: TEC | Y12: =SUM(Y30+Y62+Y78) -> 4560 | Z12: ADM | AA12: =SUM(AA62+AA78) -> 8100 | AB12: MNG | AC12: =SUM(AC78) -> 21600 | AE12: =SUM(W12+Y12+AA12+AC12) -> 61460
D13: =IFERROR(IF(VLOOKUP(C13,PartnerN°Ref,2,FALSE)=0,"",VLOOKUP(C13,PartnerN°Ref,2,FALSE)),"") ->  | E13: =IFERROR(IF(OR(VLOOKUP(C13,PartnerN°Ref,4,FALSE)="Country not found",VLOOKUP(C13,PartnerN°Ref,3,FALSE)=0),"",VLOOKUP(C13,PartnerN°Ref,3,FALSE)),"") ->  | F13: 0 | G13: =IF(T13="Error",0,INDEX(Rates,MATCH(E13,CountryALL,0),MATCH($F$11,Category,0))) -> 0 | H13: =IFERROR(IF(T13="Error",0,ROUND(F13*G13,2)),0) -> 0 | I13: 0 | J13: =IF(T13="Error",0,INDEX(Rates,MATCH(E13,CountryALL,0),MATCH($I$11,Category,0))) -> 0 | K13: =IFERROR(IF(T13="Error",0,ROUND(I13*J13,2)),0) -> 0 | L13: 0 | M13: =IF(T13="Error",0,INDEX(Rates,MATCH(E13,CountryALL,0),MATCH($L$11,Category,0))) -> 0 | N13: =IFERROR(IF(T13="Error",0,ROUND(L13*M13,2)),0) -> 0 | O13: 0 | P13: =IF(T13="Error",0,INDEX(Rates,MATCH(E13,CountryALL,0),MATCH($O$11,Category,0))) -> 0 | Q13: =IFERROR(IF(T13="Error",0,ROUND(O13*P13,2)),0) -> 0 | R13: =IF(T13="Error",0,F13+I13+L13+O13) -> 0 | S13: =IF(T13="Error",0,H13+K13+N13+Q13) -> 0 | T13: =IF(OR(COUNTIF(WorkPackage,B13)=0,COUNTIF(PartnerN°,C13)=0,D13="",COUNTIF(CountryALL,E13)=0,ISNUMBER(F13)=FALSE,ISNUMBER(I13)=FALSE,ISNUMBER(L13)=FALSE,ISNUMBER(O13)=FALSE,IF(ISNUMBER(F13)=TRUE,F13=INT(F13*10)/10=FALSE),IF(ISNUMBER(I13)=TRUE,I13=INT(I13*10)/10=FALSE),IF(ISNUMBER(L13)=TRUE,L13=INT(L13*10)/10=FALSE),IF(ISNUMBER(O13)=TRUE,O13=INT(O13*10)/10=FALSE)),"Error","") -> Error
B14: Preparation | C14: P1 | D14: UNIVERSITY OF MONTENEGRO | E14: Montenegro | F14: 0 | G14: 108 | H14: 0 | I14: 55 | J14: 80 | K14: 4400 | L14: 0 | M14: 57 | N14: 0 | O14: 0 | P14: 45 | Q14: 0 | R14: 55 | S14: 4400 | V14: RES | W14: 4400
B15: Preparation | C15: P2 | D15: =IFERROR(IF(VLOOKUP(C15,PartnerN°Ref,2,FALSE)=0,"",VLOOKUP(C15,PartnerN°Ref,2,FALSE)),"") -> UNIVERSITY OF VIENNA | E15: =IFERROR(IF(OR(VLOOKUP(C15,PartnerN°Ref,4,FALSE)="Country not found",VLOOKUP(C15,PartnerN°Ref,3,FALSE)=0),"",VLOOKUP(C15,PartnerN°Ref,3,FALSE)),"") -> Austria | F15: 0 | G15: =IF(T15="Error",0,INDEX(Rates,MATCH(E15,CountryALL,0),MATCH($F$11,Category,0))) -> 294 | H15: =IFERROR(IF(T15="Error",0,ROUND(F15*G15,2)),0) -> 0 | I15: 30 | J15: =IF(T15="Error",0,INDEX(Rates,MATCH(E15,CountryALL,0),MATCH($I$11,Category,0))) -> 241 | K15: =IFERROR(IF(T15="Error",0,ROUND(I15*J15,2)),0) -> 7230 | L15: 0 | M15: =IF(T15="Error",0,INDEX(Rates,MATCH(E15,CountryALL,0),MATCH($L$11,Category,0))) -> 190 | N15: =IFERROR(IF(T15="Error",0,ROUND(L15*M15,2)),0) -> 0 | O15: 0 | P15: =IF(T15="Error",0,INDEX(Rates,MATCH(E15,CountryALL,0),MATCH($O$11,Category,0))) -> 157 | Q15: =IFERROR(IF(T15="Error",0,ROUND(O15*P15,2)),0) -> 0 | R15: =IF(T15="Error",0,F15+I15+L15+O15) -> 30 | S15: =IF(T15="Error",0,H15+K15+N15+Q15) -> 7230 | T15: =IF(OR(COUNTIF(WorkPackage,B15)=0,COUNTIF(PartnerN°,C15)=0,D15="",COUNTIF(CountryALL,E15)=0,ISNUMBER(F15)=FALSE,ISNUMBER(I15)=FALSE,ISNUMBER(L15)=FALSE,ISNUMBER(O15)=FALSE,IF(ISNUMBER(F15)=TRUE,F15=INT(F15*10)/10=FALSE),IF(ISNUMBER(I15)=TRUE,I15=INT(I15*10)/10=FALSE),IF(ISNUMBER(L15)=TRUE,L15=INT(L15*10)/10=FALSE),IF(ISNUMBER(O15)=TRUE,O15=INT(O15*10)/10=FALSE)),"Error","") -> 
B16: Preparation | C16: P3 | D16: UNIVERSITY OF MARIBOR | E16: Slovenia | F16: 0 | G16: 164 | H16: 0 | I16: 25 | J16: 137 | K16: 3425 | L16: 0 | M16: 102 | N16: 0 | O16: 0 | P16: 78 | Q16: 0 | R16: 25 | S16: 3425
B17: Preparation | C17: P4 | D17: FAC. OF EDU. AND REH, SCIENCES (UniZAGREB), | E17: Croatia | F17: 0 | G17: 88 | H17: 0 | I17: 55 | J17: 74 | K17: 4070 | L17: 0 | M17: 55 | N17: 0 | O17: 0 | P17: 39 | Q17: 0 | R17: 55 | S17: 4070
B18: Preparation | C18: P5 | D18: UNIVERSITY OF BANSKA BISTRICA | E18: Slovakia | F18: 0 | G18: 88 | H18: 0 | I18: 55 | J18: 74 | K18: 4070 | L18: 0 | M18: 55 | N18: 0 | O18: 0 | P18: 39 | Q18: 0 | R18: 55 | S18: 4070
B19: Preparation | C19: P6 | D19: UNIVERSITY OF DONJA GORICA | E19: Montenegro | F19: 0 | G19: 108 | H19: 0 | I19: 25 | J19: 80 | K19: 2000 | L19: 0 | M19: 57 | N19: 0 | O19: 0 | P19: 45 | Q19: 0 | R19: 25 | S19: 2000
B20: Preparation | C20: P7 | D20: UNIVERSITY OF SHKODRA "LUIGJ GURAKUQI" | E20: Albania | F20: 0 | G20: 108 | H20: 0 | I20: 35 | J20: 80 | K20: 2800 | L20: 0 | M20: 57 | N20: 0 | O20: 0 | P20: 45 | Q20: 0 | R20: 35 | S20: 2800
B21: Preparation | C21: P8 | D21: POLYTECHNIC UNIVERSITY OF TIRANA | E21: Albania | F21: 0 | G21: 108 | H21: 0 | I21: 25 | J21: 80 | K21: 2000 | L21: 0 | M21: 57 | N21: 0 | O21: 0 | P21: 45 | Q21: 0 | R21: 25 | S21: 2000
B22: Preparation | C22: P9 | D22: UNIVERSITY OF VLORA "ISMAIL QEMALI" | E22: Albania | F22: 0 | G22: 108 | H22: 0 | I22: 25 | J22: 80 | K22: 2000 | L22: 0 | M22: 57 | N22: 0 | O22: 0 | P22: 45 | Q22: 0 | R22: 25 | S22: 2000
B23: Preparation | C23: P10 | D23: METROPOLITAN UNIVERSITY OF TIRANA | E23: Albania | F23: 0 | G23: 108 | H23: 0 | I23: 25 | J23: 80 | K23: 2000 | L23: 0 | M23: 57 | N23: 0 | O23: 0 | P23: 45 | Q23: 0 | R23: 25 | S23: 2000
B24: Preparation | C24: P11 | D24: MINISTRY OF EDUCATION OF MONTENEGRO | E24: Montenegro | F24: 15 | G24: 108 | H24: 1620 | I24: 0 | J24: 80 | K24: 0 | L24: 0 | M24: 57 | N24: 0 | O24: 0 | P24: 45 | Q24: 0 | R24: 15 | S24: 1620
B25: Preparation | C25: P12 | D25: MINISTRY OF SCIENCE OF MONTENEGRO | E25: Montenegro | F25: 15 | G25: 108 | H25: 1620 | I25: 0 | J25: 80 | K25: 0 | L25: 0 | M25: 57 | N25: 0 | O25: 0 | P25: 45 | Q25: 0 | R25: 15 | S25: 1620
B26: Preparation | C26: P13 | D26: MINISTRY OF EDUCATION, SPORTS AND YOUTH OF ALBANIA | E26: Albania | F26: 15 | G26: 108 | H26: 1620 | I26: 0 | J26: 80 | K26: 0 | L26: 0 | M26: 57 | N26: 0 | O26: 0 | P26: 45 | Q26: 0 | R26: 15 | S26: 1620
B27: Preparation | C27: P14 | D27: CHAMBER OF ECONOMY OF MONTENEGRO | E27: Montenegro | F27: 10 | G27: 108 | H27: 1080 | I27: 0 | J27: 80 | K27: 0 | L27: 0 | M27: 57 | N27: 0 | O27: 0 | P27: 45 | Q27: 0 | R27: 10 | S27: 1080
B28: Preparation | C28: P15 | D28: ASSOCIATION FOR PROFESSIONALS IN DOCTORAL EDUCATION - PRIDE | E28: Austria | F28: 5 | G28: 294 | H28: 1470 | I28: 0 | J28: 241 | K28: 0 | L28: 0 | M28: 190 | N28: 0 | O28: 0 | P28: 157 | Q28: 0 | R28: 5 | S28: 1470
B29: Preparation | C29: P16 | D29: UNION OF CHAMBERS OF COMMERCE AND INDUSTRY OF ALBANIA | E29: Albania | F29: 5 | G29: 108 | H29: 540 | I29: 0 | J29: 80 | K29: 0 | L29: 0 | M29: 57 | N29: 0 | O29: 0 | P29: 45 | Q29: 0 | R29: 5 | S29: 540
B30: Development | C30: P1 | D30: UNIVERSITY OF MONTENEGRO | E30: Montenegro | F30: 0 | G30: 108 | H30: 0 | I30: 150 | J30: 80 | K30: 12000 | L30: 20 | M30: 57 | N30: 1140 | O30: 0 | P30: 45 | Q30: 0 | R30: 170 | S30: 13140 | V30: RES | W30: 12000 | X30: TEC | Y30: 1140
B31: Development | C31: P2 | D31: UNIVERSITY OF VIENNA | E31: Austria | F31: 0 | G31: 294 | H31: 0 | I31: 65 | J31: 241 | K31: 15665 | L31: 0 | M31: 190 | N31: 0 | O31: 0 | P31: 157 | Q31: 0 | R31: 65 | S31: 15665
B32: Development | C32: P3 | D32: UNIVERSITY OF MARIBOR | E32: Slovenia | F32: 0 | G32: 164 | H32: 0 | I32: 40 | J32: 137 | K32: 5480 | L32: 0 | M32: 102 | N32: 0 | O32: 0 | P32: 78 | Q32: 0 | R32: 40 | S32: 5480
B33: Development | C33: P4 | D33: FAC. OF EDU. AND REH, SCIENCES (UniZAGREB), | E33: Croatia | F33: 0 | G33: 88 | H33: 0 | I33: 80 | J33: 74 | K33: 5920 | L33: 0 | M33: 55 | N33: 0 | O33: 0 | P33: 39 | Q33: 0 | R33: 80 | S33: 5920
B34: Development | C34: P5 | D34: UNIVERSITY OF BANSKA BISTRICA | E34: Slovakia | F34: 0 | G34: 88 | H34: 0 | I34: 80 | J34: 74 | K34: 5920 | L34: 0 | M34: 55 | N34: 0 | O34: 0 | P34: 39 | Q34: 0 | R34: 80 | S34: 5920
B35: Development | C35: P6 | D35: UNIVERSITY OF DONJA GORICA | E35: Montenegro | F35: 0 | G35: 108 | H35: 0 | I35: 25 | J35: 80 | K35: 2000 | L35: 0 | M35: 57 | N35: 0 | O35: 0 | P35: 45 | Q35: 0 | R35: 25 | S35: 2000
B36: Development | C36: P7 | D36: UNIVERSITY OF SHKODRA "LUIGJ GURAKUQI" | E36: Albania | F36: 0 | G36: 108 | H36: 0 | I36: 65 | J36: 80 | K36: 5200 | L36: 20 | M36: 57 | N36: 1140 | O36: 0 | P36: 45 | Q36: 0 | R36: 85 | S36: 6340
B37: Development | C37: P8 | D37: POLYTECHNIC UNIVERSITY OF TIRANA | E37: Albania | F37: 0 | G37: 108 | H37: 0 | I37: 55 | J37: 80 | K37: 4400 | L37: 0 | M37: 57 | N37: 0 | O37: 0 | P37: 45 | Q37: 0 | R37: 55 | S37: 4400
B38: Development | C38: P9 | D38: UNIVERSITY OF VLORA "ISMAIL QEMALI" | E38: Albania | F38: 0 | G38: 108 | H38: 0 | I38: 55 | J38: 80 | K38: 4400 | L38: 0 | M38: 57 | N38: 0 | O38: 0 | P38: 45 | Q38: 0 | R38: 55 | S38: 4400
B39: Development | C39: P10 | D39: METROPOLITAN UNIVERSITY OF TIRANA | E39: Albania | F39: 0 | G39: 108 | H39: 0 | I39: 55 | J39: 80 | K39: 4400 | L39: 0 | M39: 57 | N39: 0 | O39: 0 | P39: 45 | Q39: 0 | R39: 55 | S39: 4400
B40: Development | C40: P11 | D40: MINISTRY OF EDUCATION OF MONTENEGRO | E40: Montenegro | F40: 10 | G40: 108 | H40: 1080 | I40: 0 | J40: 80 | K40: 0 | L40: 0 | M40: 57 | N40: 0 | O40: 0 | P40: 45 | Q40: 0 | R40: 10 | S40: 1080
B41: Development | C41: P12 | D41: MINISTRY OF SCIENCE OF MONTENEGRO | E41: Montenegro | F41: 10 | G41: 108 | H41: 1080 | I41: 0 | J41: 80 | K41: 0 | L41: 0 | M41: 57 | N41: 0 | O41: 0 | P41: 45 | Q41: 0 | R41: 10 | S41: 1080
B42: Development | C42: P13 | D42: MINISTRY OF EDUCATION, SPORTS AND YOUTH OF ALBANIA | E42: Albania | F42: 10 | G42: 108 | H42: 1080 | I42: 0 | J42: 80 | K42: 0 | L42: 0 | M42: 57 | N42: 0 | O42: 0 | P42: 45 | Q42: 0 | R42: 10 | S42: 1080
B43: Development | C43: P14 | D43: CHAMBER OF ECONOMY OF MONTENEGRO | E43: Montenegro | F43: 5 | G43: 108 | H43: 540 | I43: 0 | J43: 80 | K43: 0 | L43: 0 | M43: 57 | N43: 0 | O43: 0 | P43: 45 | Q43: 0 | R43: 5 | S43: 540
B44: Development | C44: P15 | D44: ASSOCIATION FOR PROFESSIONALS IN DOCTORAL EDUCATION - PRIDE | E44: Austria | F44: 5 | G44: 294 | H44: 1470 | I44: 0 | J44: 241 | K44: 0 | L44: 0 | M44: 190 | N44: 0 | O44: 0 | P44: 157 | Q44: 0 | R44: 5 | S44: 1470
B45: Development | C45: P16 | D45: UNION OF CHAMBERS OF COMMERCE AND INDUSTRY OF ALBANIA | E45: Albania | F45: 2 | G45: 108 | H45: 216 | I45: 0 | J45: 80 | K45: 0 | L45: 0 | M45: 57 | N45: 0 | O45: 0 | P45: 45 | Q45: 0 | R45: 2 | S45: 216
B46: Quality Plan | C46: P1 | D46: UNIVERSITY OF MONTENEGRO | E46: Montenegro | F46: 0 | G46: 108 | H46: 0 | I46: 35 | J46: 80 | K46: 2800 | L46: 0 | M46: 57 | N46: 0 | O46: 0 | P46: 45 | Q46: 0 | R46: 35 | S46: 2800 | V46: RES | W46: 2800
B47: Quality Plan | C47: P2 | D47: UNIVERSITY OF VIENNA | E47: Austria | F47: 0 | G47: 294 | H47: 0 | I47: 15 | J47: 241 | K47: 3615 | L47: 0 | M47: 190 | N47: 0 | O47: 0 | P47: 157 | Q47: 0 | R47: 15 | S47: 3615
B48: Quality Plan | C48: P3 | D48: UNIVERSITY OF MARIBOR | E48: Slovenia | F48: 0 | G48: 164 | H48: 0 | I48: 20 | J48: 137 | K48: 2740 | L48: 0 | M48: 102 | N48: 0 | O48: 0 | P48: 78 | Q48: 0 | R48: 20 | S48: 2740
B49: Quality Plan | C49: P4 | D49: FAC. OF EDU. AND REH, SCIENCES (UniZAGREB), | E49: Croatia | F49: 0 | G49: 88 | H49: 0 | I49: 15 | J49: 74 | K49: 1110 | L49: 0 | M49: 55 | N49: 0 | O49: 0 | P49: 39 | Q49: 0 | R49: 15 | S49: 1110
B50: Quality Plan | C50: P5 | D50: UNIVERSITY OF BANSKA BISTRICA | E50: Slovakia | F50: 0 | G50: 88 | H50: 0 | I50: 15 | J50: 74 | K50: 1110 | L50: 0 | M50: 55 | N50: 0 | O50: 0 | P50: 39 | Q50: 0 | R50: 15 | S50: 1110
B51: Quality Plan | C51: P6 | D51: UNIVERSITY OF DONJA GORICA | E51: Montenegro | F51: 0 | G51: 108 | H51: 0 | I51: 10 | J51: 80 | K51: 800 | L51: 0 | M51: 57 | N51: 0 | O51: 0 | P51: 45 | Q51: 0 | R51: 10 | S51: 800
B52: Quality Plan | C52: P7 | D52: UNIVERSITY OF SHKODRA "LUIGJ GURAKUQI" | E52: Albania | F52: 0 | G52: 108 | H52: 0 | I52: 25 | J52: 80 | K52: 2000 | L52: 0 | M52: 57 | N52: 0 | O52: 0 | P52: 45 | Q52: 0 | R52: 25 | S52: 2000
B53: Quality Plan | C53: P8 | D53: POLYTECHNIC UNIVERSITY OF TIRANA | E53: Albania | F53: 0 | G53: 108 | H53: 0 | I53: 15 | J53: 80 | K53: 1200 | L53: 0 | M53: 57 | N53: 0 | O53: 0 | P53: 45 | Q53: 0 | R53: 15 | S53: 1200
B54: Quality Plan | C54: P9 | D54: UNIVERSITY OF VLORA "ISMAIL QEMALI" | E54: Albania | F54: 0 | G54: 108 | H54: 0 | I54: 15 | J54: 80 | K54: 1200 | L54: 0 | M54: 57 | N54: 0 | O54: 0 | P54: 45 | Q54: 0 | R54: 15 | S54: 1200
B55: Quality Plan | C55: P10 | D55: METROPOLITAN UNIVERSITY OF TIRANA | E55: Albania | F55: 0 | G55: 108 | H55: 0 | I55: 15 | J55: 80 | K55: 1200 | L55: 0 | M55: 57 | N55: 0 | O55: 0 | P55: 45 | Q55: 0 | R55: 15 | S55: 1200
B56: Quality Plan | C56: P11 | D56: MINISTRY OF EDUCATION OF MONTENEGRO | E56: Montenegro | F56: 5 | G56: 108 | H56: 540 | I56: 0 | J56: 80 | K56: 0 | L56: 0 | M56: 57 | N56: 0 | O56: 0 | P56: 45 | Q56: 0 | R56: 5 | S56: 540
B57: Quality Plan | C57: P12 | D57: MINISTRY OF SCIENCE OF MONTENEGRO | E57: Montenegro | F57: 5 | G57: 108 | H57: 540 | I57: 0 | J57: 80 | K57: 0 | L57: 0 | M57: 57 | N57: 0 | O57: 0 | P57: 45 | Q57: 0 | R57: 5 | S57: 540
B58: Quality Plan | C58: P13 | D58: MINISTRY OF EDUCATION, SPORTS AND YOUTH OF ALBANIA | E58: Albania | F58: 5 | G58: 108 | H58: 540 | I58: 0 | J58: 80 | K58: 0 | L58: 0 | M58: 57 | N58: 0 | O58: 0 | P58: 45 | Q58: 0 | R58: 5 | S58: 540
B59: Quality Plan | C59: P14 | D59: CHAMBER OF ECONOMY OF MONTENEGRO | E59: Montenegro | F59: 5 | G59: 108 | H59: 540 | I59: 0 | J59: 80 | K59: 0 | L59: 0 | M59: 57 | N59: 0 | O59: 0 | P59: 45 | Q59: 0 | R59: 5 | S59: 540
B60: Quality Plan | C60: P15 | D60: ASSOCIATION FOR PROFESSIONALS IN DOCTORAL EDUCATION - PRIDE | E60: Austria | F60: 2 | G60: 294 | H60: 588 | I60: 0 | J60: 241 | K60: 0 | L60: 0 | M60: 190 | N60: 0 | O60: 0 | P60: 157 | Q60: 0 | R60: 2 | S60: 588
B61: Quality Plan | C61: P16 | D61: UNION OF CHAMBERS OF COMMERCE AND INDUSTRY OF ALBANIA | E61: Albania | F61: 2 | G61: 108 | H61: 216 | I61: 0 | J61: 80 | K61: 0 | L61: 0 | M61: 57 | N61: 0 | O61: 0 | P61: 45 | Q61: 0 | R61: 2 | S61: 216
B62: Dissemination & Exploitation | C62: P1 | D62: UNIVERSITY OF MONTENEGRO | E62: Montenegro | F62: 0 | G62: 108 | H62: 0 | I62: 70 | J62: 80 | K62: 5600 | L62: 20 | M62: 57 | N62: 1140 | O62: 10 | P62: 45 | Q62: 450 | R62: 100 | S62: 7190 | V62: RES | W62: 5600 | X62: TEC | Y62: 1140 | Z62: ADM | AA62: 450
B63: Dissemination & Exploitation | C63: P2 | D63: UNIVERSITY OF VIENNA | E63: Austria | F63: 0 | G63: 294 | H63: 0 | I63: 10 | J63: 241 | K63: 2410 | L63: 0 | M63: 190 | N63: 0 | O63: 0 | P63: 157 | Q63: 0 | R63: 10 | S63: 2410
B64: Dissemination & Exploitation | C64: P3 | D64: UNIVERSITY OF MARIBOR | E64: Slovenia | F64: 0 | G64: 164 | H64: 0 | I64: 10 | J64: 137 | K64: 1370 | L64: 0 | M64: 102 | N64: 0 | O64: 0 | P64: 78 | Q64: 0 | R64: 10 | S64: 1370
B65: Dissemination & Exploitation | C65: P4 | D65: FAC. OF EDU. AND REH, SCIENCES (UniZAGREB), | E65: Croatia | F65: 0 | G65: 88 | H65: 0 | I65: 25 | J65: 74 | K65: 1850 | L65: 0 | M65: 55 | N65: 0 | O65: 0 | P65: 39 | Q65: 0 | R65: 25 | S65: 1850
B66: Dissemination & Exploitation | C66: P5 | D66: UNIVERSITY OF BANSKA BISTRICA | E66: Slovakia | F66: 0 | G66: 88 | H66: 0 | I66: 25 | J66: 74 | K66: 1850 | L66: 0 | M66: 55 | N66: 0 | O66: 0 | P66: 39 | Q66: 0 | R66: 25 | S66: 1850
B67: Dissemination & Exploitation | C67: P6 | D67: UNIVERSITY OF DONJA GORICA | E67: Montenegro | F67: 0 | G67: 108 | H67: 0 | I67: 20 | J67: 80 | K67: 1600 | L67: 0 | M67: 57 | N67: 0 | O67: 0 | P67: 45 | Q67: 0 | R67: 20 | S67: 1600
B68: Dissemination & Exploitation | C68: P7 | D68: UNIVERSITY OF SHKODRA "LUIGJ GURAKUQI" | E68: Albania | F68: 0 | G68: 108 | H68: 0 | I68: 45 | J68: 80 | K68: 3600 | L68: 0 | M68: 57 | N68: 0 | O68: 0 | P68: 45 | Q68: 0 | R68: 45 | S68: 3600
B69: Dissemination & Exploitation | C69: P8 | D69: POLYTECHNIC UNIVERSITY OF TIRANA | E69: Albania | F69: 0 | G69: 108 | H69: 0 | I69: 20 | J69: 80 | K69: 1600 | L69: 0 | M69: 57 | N69: 0 | O69: 0 | P69: 45 | Q69: 0 | R69: 20 | S69: 1600
B70: Dissemination & Exploitation | C70: P9 | D70: UNIVERSITY OF VLORA "ISMAIL QEMALI" | E70: Albania | F70: 0 | G70: 108 | H70: 0 | I70: 20 | J70: 80 | K70: 1600 | L70: 0 | M70: 57 | N70: 0 | O70: 0 | P70: 45 | Q70: 0 | R70: 20 | S70: 1600
B71: Dissemination & Exploitation | C71: P10 | D71: METROPOLITAN UNIVERSITY OF TIRANA | E71: Albania | F71: 0 | G71: 108 | H71: 0 | I71: 50 | J71: 80 | K71: 4000 | L71: 20 | M71: 57 | N71: 1140 | O71: 10 | P71: 45 | Q71: 450 | R71: 80 | S71: 5590
B72: Dissemination & Exploitation | C72: P11 | D72: MINISTRY OF EDUCATION OF MONTENEGRO | E72: Montenegro | F72: 10 | G72: 108 | H72: 1080 | I72: 0 | J72: 80 | K72: 0 | L72: 0 | M72: 57 | N72: 0 | O72: 0 | P72: 45 | Q72: 0 | R72: 10 | S72: 1080
B73: Dissemination & Exploitation | C73: P12 | D73: MINISTRY OF SCIENCE OF MONTENEGRO | E73: Montenegro | F73: 10 | G73: 108 | H73: 1080 | I73: 0 | J73: 80 | K73: 0 | L73: 0 | M73: 57 | N73: 0 | O73: 0 | P73: 45 | Q73: 0 | R73: 10 | S73: 1080
B74: Dissemination & Exploitation | C74: P13 | D74: MINISTRY OF EDUCATION, SPORTS AND YOUTH OF ALBANIA | E74: Albania | F74: 10 | G74: 108 | H74: 1080 | I74: 0 | J74: 80 | K74: 0 | L74: 0 | M74: 57 | N74: 0 | O74: 0 | P74: 45 | Q74: 0 | R74: 10 | S74: 1080
B75: Dissemination & Exploitation | C75: P14 | D75: CHAMBER OF ECONOMY OF MONTENEGRO | E75: Montenegro | F75: 15 | G75: 108 | H75: 1620 | I75: 0 | J75: 80 | K75: 0 | L75: 0 | M75: 57 | N75: 0 | O75: 0 | P75: 45 | Q75: 0 | R75: 15 | S75: 1620
B76: Dissemination & Exploitation | C76: P15 | D76: ASSOCIATION FOR PROFESSIONALS IN DOCTORAL EDUCATION - PRIDE | E76: Austria | F76: 5 | G76: 294 | H76: 1470 | I76: 0 | J76: 241 | K76: 0 | L76: 0 | M76: 190 | N76: 0 | O76: 0 | P76: 157 | Q76: 0 | R76: 5 | S76: 1470
B77: Dissemination & Exploitation | C77: P16 | D77: UNION OF CHAMBERS OF COMMERCE AND INDUSTRY OF ALBANIA | E77: Albania | F77: 15 | G77: 108 | H77: 1620 | I77: 0 | J77: 80 | K77: 0 | L77: 0 | M77: 57 | N77: 0 | O77: 0 | P77: 45 | Q77: 0 | R77: 15 | S77: 1620
B78: Management | C78: P1 | D78: UNIVERSITY OF MONTENEGRO | E78: Montenegro | F78: 200 | G78: 108 | H78: 21600 | I78: 30 | J78: 80 | K78: 2400 | L78: 40 | M78: 57 | N78: 2280 | O78: 170 | P78: 45 | Q78: 7650 | R78: 440 | S78: 33930 | V78: RES | W78: 2400 | X78: TEC | Y78: 2280 | Z78: ADM | AA78: 7650 | AB78: MNG | AC78: 21600
B79: Management | C79: P2 | D79: =IFERROR(IF(VLOOKUP(C79,PartnerN°Ref,2,FALSE)=0,"",VLOOKUP(C79,PartnerN°Ref,2,FALSE)),"") -> UNIVERSITY OF VIENNA | E79: =IFERROR(IF(OR(VLOOKUP(C79,PartnerN°Ref,4,FALSE)="Country not found",VLOOKUP(C79,PartnerN°Ref,3,FALSE)=0),"",VLOOKUP(C79,PartnerN°Ref,3,FALSE)),"") -> Austria | F79: 50 | G79: =IF(T79="Error",0,INDEX(Rates,MATCH(E79,CountryALL,0),MATCH($F$11,Category,0))) -> 294 | H79: =IFERROR(IF(T79="Error",0,ROUND(F79*G79,2)),0) -> 14700 | I79: 10 | J79: =IF(T79="Error",0,INDEX(Rates,MATCH(E79,CountryALL,0),MATCH($I$11,Category,0))) -> 241 | K79: =IFERROR(IF(T79="Error",0,ROUND(I79*J79,2)),0) -> 2410 | L79: 35 | M79: =IF(T79="Error",0,INDEX(Rates,MATCH(E79,CountryALL,0),MATCH($L$11,Category,0))) -> 190 | N79: =IFERROR(IF(T79="Error",0,ROUND(L79*M79,2)),0) -> 6650 | O79: 0 | P79: =IF(T79="Error",0,INDEX(Rates,MATCH(E79,CountryALL,0),MATCH($O$11,Category,0))) -> 157 | Q79: =IFERROR(IF(T79="Error",0,ROUND(O79*P79,2)),0) -> 0 | R79: =IF(T79="Error",0,F79+I79+L79+O79) -> 95 | S79: =IF(T79="Error",0,H79+K79+N79+Q79) -> 23760 | T79: =IF(OR(COUNTIF(WorkPackage,B79)=0,COUNTIF(PartnerN°,C79)=0,D79="",COUNTIF(CountryALL,E79)=0,ISNUMBER(F79)=FALSE,ISNUMBER(I79)=FALSE,ISNUMBER(L79)=FALSE,ISNUMBER(O79)=FALSE,IF(ISNUMBER(F79)=TRUE,F79=INT(F79*10)/10=FALSE),IF(ISNUMBER(I79)=TRUE,I79=INT(I79*10)/10=FALSE),IF(ISNUMBER(L79)=TRUE,L79=INT(L79*10)/10=FALSE),IF(ISNUMBER(O79)=TRUE,O79=INT(O79*10)/10=FALSE)),"Error","") -> 
B80: Management | C80: P3 | D80: UNIVERSITY OF MARIBOR | E80: Slovenia | F80: 40 | G80: 164 | H80: 6560 | I80: 10 | J80: 137 | K80: 1370 | L80: 35 | M80: 102 | N80: 3570 | O80: 0 | P80: 78 | Q80: 0 | R80: 85 | S80: 11500
B81: Management | C81: P4 | D81: FAC. OF EDU. AND REH, SCIENCES (UniZAGREB), | E81: Croatia | F81: 50 | G81: 88 | H81: 4400 | I81: 10 | J81: 74 | K81: 740 | L81: 35 | M81: 55 | N81: 1925 | O81: 0 | P81: 39 | Q81: 0 | R81: 95 | S81: 7065
B82: Management | C82: P5 | D82: UNIVERSITY OF BANSKA BISTRICA | E82: Slovakia | F82: 50 | G82: 88 | H82: 4400 | I82: 15 | J82: 74 | K82: 1110 | L82: 35 | M82: 55 | N82: 1925 | O82: 0 | P82: 39 | Q82: 0 | R82: 100 | S82: 7435
B83: Management | C83: P6 | D83: UNIVERSITY OF DONJA GORICA | E83: Montenegro | F83: 40 | G83: 108 | H83: 4320 | I83: 10 | J83: 80 | K83: 800 | L83: 35 | M83: 57 | N83: 1995 | O83: 0 | P83: 45 | Q83: 0 | R83: 85 | S83: 7115
B84: Management | C84: P7 | D84: UNIVERSITY OF SHKODRA "LUIGJ GURAKUQI" | E84: Albania | F84: 85 | G84: 108 | H84: 9180 | I84: 20 | J84: 80 | K84: 1600 | L84: 20 | M84: 57 | N84: 1140 | O84: 65 | P84: 45 | Q84: 2925 | R84: 190 | S84: 14845
B85: Management | C85: P8 | D85: POLYTECHNIC UNIVERSITY OF TIRANA | E85: Albania | F85: 40 | G85: 108 | H85: 4320 | I85: 20 | J85: 80 | K85: 1600 | L85: 30 | M85: 57 | N85: 1710 | O85: 0 | P85: 45 | Q85: 0 | R85: 90 | S85: 7630
B86: Management | C86: P9 | D86: UNIVERSITY OF VLORA "ISMAIL QEMALI" | E86: Albania | F86: 40 | G86: 108 | H86: 4320 | I86: 10 | J86: 80 | K86: 800 | L86: 20 | M86: 57 | N86: 1140 | O86: 0 | P86: 45 | Q86: 0 | R86: 70 | S86: 6260
B87: Management | C87: P10 | D87: METROPOLITAN UNIVERSITY OF TIRANA | E87: Albania | F87: 65 | G87: 108 | H87: 7020 | I87: 10 | J87: 80 | K87: 800 | L87: 20 | M87: 57 | N87: 1140 | O87: 30 | P87: 45 | Q87: 1350 | R87: 125 | S87: 10310
B88: Management | C88: P11 | D88: MINISTRY OF EDUCATION OF MONTENEGRO | E88: Montenegro | F88: 20 | G88: 108 | H88: 2160 | I88: 0 | J88: 80 | K88: 0 | L88: 5 | M88: 57 | N88: 285 | O88: 0 | P88: 45 | Q88: 0 | R88: 25 | S88: 2445
B89: Management | C89: P12 | D89: MINISTRY OF SCIENCE OF MONTENEGRO | E89: Montenegro | F89: 20 | G89: 108 | H89: 2160 | I89: 0 | J89: 80 | K89: 0 | L89: 5 | M89: 57 | N89: 285 | O89: 0 | P89: 45 | Q89: 0 | R89: 25 | S89: 2445
B90: Management | C90: P13 | D90: MINISTRY OF EDUCATION, SPORTS AND YOUTH OF ALBANIA | E90: Albania | F90: 20 | G90: 108 | H90: 2160 | I90: 0 | J90: 80 | K90: 0 | L90: 5 | M90: 57 | N90: 285 | O90: 0 | P90: 45 | Q90: 0 | R90: 25 | S90: 2445
B91: Management | C91: P14 | D91: CHAMBER OF ECONOMY OF MONTENEGRO | E91: Montenegro | F91: 20 | G91: 108 | H91: 2160 | I91: 0 | J91: 80 | K91: 0 | L91: 5 | M91: 57 | N91: 285 | O91: 0 | P91: 45 | Q91: 0 | R91: 25 | S91: 2445
B92: Management | C92: P15 | D92: ASSOCIATION FOR PROFESSIONALS IN DOCTORAL EDUCATION - PRIDE | E92: Austria | F92: 15 | G92: 294 | H92: 4410 | I92: 0 | J92: 241 | K92: 0 | L92: 5 | M92: 190 | N92: 950 | O92: 0 | P92: 157 | Q92: 0 | R92: 20 | S92: 5360
B93: Management | C93: P16 | D93: UNION OF CHAMBERS OF COMMERCE AND INDUSTRY OF ALBANIA | E93: Albania | F93: 20 | G93: 108 | H93: 2160 | I93: 0 | J93: 80 | K93: 0 | L93: 5 | M93: 57 | N93: 285 | O93: 0 | P93: 45 | Q93: 0 | R93: 25 | S93: 2445

Sheet 2-3. Travel Costs&Costs of Stay
B2: 2-3. Travel Costs & Costs of Stay
B4: Travel Costs Student (EUR) | D4: =SUMIF(G:G,"Student",L:L) -> 15565 | E4: =D4+D5 -> 74570 | F4: =SUMIFS(H:H,G:G,"Student",O:O,"<>Error") -> 64 | H4: Exceptional Travel Costs (EUR) | J4: 7400 | K4: =IF(AND(D8=0,J4>0),"EXCEEDING 80% OF TOTAL TRAVEL COSTS",IFERROR(IF(J4/D8>0.8,"EXCEEDING 80% OF TOTAL TRAVEL COSTS",""),"")) -> 
B5: Costs of Stay Student (EUR) | D5: =SUMIF(G:G,"Student",M:M) -> 59005
B6: Travel Costs Staff (EUR) | D6: =SUMIF(G:G,"Staff",L:L) -> 59960 | E6: =D6+D7 -> 217640 | F6: =SUMIFS(H:H,G:G,"Staff",O:O,"<>Error") -> 300 | H6: Exceptional Travel Costs Please encode here above the estimated amount for exceptional travel costs. Please note that this amount will be added to the amount of travel costs forectasted for the Partner n°1
B7: Costs of Stay Staff (EUR) | D7: =SUMIF(G:G,"Staff",M:M) -> 157680 | H7: Please encode here above the estimated amount for exceptional travel costs. Please note that this amount will be added to the amount of travel costs of the Partner n°1.
B8: Total Travel Costs (EUR) | D8: =SUM(L:L) -> 75525 | E8: =D8+D9 -> 292210 | F8: =F4+F6 -> 364
B9: Total Costs of Stay (EUR) | D9: =SUM(M:M) -> 216685
B11: Work Package | C11: Partner N° | D11: Name of Partner (to encode in overview sheet) | E11: Country (to encode in overview sheet) | F11: City of Departure | G11: Student/ Staff | H11: Number of Participants | I11: City of Destination | J11: Travel Distance | K11: Number of days (per participant) | L11: Travel Costs (EUR) | M11: Costs of Stay (EUR) | N11: Total (EUR) | O11: Check Data Encoding
D13: =IFERROR(IF(VLOOKUP(C13,PartnerN°Ref,2,FALSE)=0,"",VLOOKUP(C13,PartnerN°Ref,2,FALSE)),"") ->  | E13: =IFERROR(IF(OR(VLOOKUP(C13,PartnerN°Ref,4,FALSE)="Country not found",VLOOKUP(C13,PartnerN°Ref,3,FALSE)=0),"",VLOOKUP(C13,PartnerN°Ref,3,FALSE)),"") ->  | H13: 0 | K13: 0 | L13: =IF(O13="Error",0,ROUND(ROUND(H13,0)*(VLOOKUP(J13,TravelCosts,2,FALSE)),2)) -> 0 | M13: =IF(O13="Error",0,IF(AND(G13="Staff",K13>0,K13<15),(120*K13)*H13,IF(AND(G13="Staff",K13>14,K13<61),(1680+((K13-14)*70))*H13,IF(AND(G13="Staff",K13>60,K13<91),(4900+((K13-60)*50))*H13,IF(AND(G13="Student",K13>0,K13<15),(55*K13)*H13,IF(AND(G13="Student",K13>14,K13<91),(770+((K13-14)*40))*H13,0)))))) -> 0 | N13: =L13+M13 -> 0 | O13: =IF(OR(COUNTIF(WorkPackage,B13)=0,COUNTIF(PartnerN°,C13)=0,D13="",COUNTIF(CountryALL,E13)=0,F13="",COUNTIF(Category2,G13)=0,ISNUMBER(H13)=FALSE,H13<=0,I13="",COUNTIF(TravelBands,J13)=0,ISNUMBER(K13)=FALSE,OR(K13<0,K13>90),IF(ISNUMBER(H13)=TRUE,H13=INT(H13*1)/1=FALSE),IF(ISNUMBER(K13)=TRUE,K13=INT(K13*1)/1=FALSE)),"Error","") -> Error
B14: Preparation | C14: P2 | D14: UNIVERSITY OF VIENNA | E14: Austria | F14: VIENNA | G14: Staff | H14: 2 | I14: PODGORICA | J14: 500 KM and 1999 KM | K14: 4 | L14: 550 | M14: 960 | N14: =L14+M14 -> 1510
B15: Preparation | C15: P3 | D15: =IFERROR(IF(VLOOKUP(C15,PartnerN°Ref,2,FALSE)=0,"",VLOOKUP(C15,PartnerN°Ref,2,FALSE)),"") -> UNIVERSITY OF MARIBOR | E15: =IFERROR(IF(OR(VLOOKUP(C15,PartnerN°Ref,4,FALSE)="Country not found",VLOOKUP(C15,PartnerN°Ref,3,FALSE)=0),"",VLOOKUP(C15,PartnerN°Ref,3,FALSE)),"") -> Slovenia | F15: MARIBOR | G15: Staff | H15: 2 | I15: PODGORICA | J15: 500 KM and 1999 KM | K15: 4 | L15: =IF(O15="Error",0,ROUND(ROUND(H15,0)*(VLOOKUP(J15,TravelCosts,2,FALSE)),2)) -> 550 | M15: =IF(O15="Error",0,IF(AND(G15="Staff",K15>0,K15<15),(120*K15)*H15,IF(AND(G15="Staff",K15>14,K15<61),(1680+((K15-14)*70))*H15,IF(AND(G15="Staff",K15>60,K15<91),(4900+((K15-60)*50))*H15,IF(AND(G15="Student",K15>0,K15<15),(55*K15)*H15,IF(AND(G15="Student",K15>14,K15<91),(770+((K15-14)*40))*H15,0)))))) -> 960 | N15: 1510 | O15: =IF(OR(COUNTIF(WorkPackage,B15)=0,COUNTIF(PartnerN°,C15)=0,D15="",COUNTIF(CountryALL,E15)=0,F15="",COUNTIF(Category2,G15)=0,ISNUMBER(H15)=FALSE,H15<=0,I15="",COUNTIF(TravelBands,J15)=0,ISNUMBER(K15)=FALSE,OR(K15<0,K15>90),IF(ISNUMBER(H15)=TRUE,H15=INT(H15*1)/1=FALSE),IF(ISNUMBER(K15)=TRUE,K15=INT(K15*1)/1=FALSE)),"Error","") -> 
B16: Preparation | C16: P4 | D16: FAC. OF EDU. AND REH, SCIENCES (UniZAGREB), | E16: Croatia | F16: ZAGREB | G16: Staff | H16: 2 | I16: PODGORICA | J16: 100 KM and 499 KM | K16: 4 | L16: 360 | M16: 960 | N16: 1320
B17: Preparation | C17: P5 | D17: UNIVERSITY OF BANSKA BISTRICA | E17: Slovakia | F17: BANSKA BISTRICA | G17: Staff | H17: 3 | I17: PODGORICA | J17: 500 KM and 1999 KM | K17: 4 | L17: 825 | M17: 1440 | N17: 2265
B18: Preparation | C18: P15 | D18: ASSOCIATION FOR PROFESSIONALS IN DOCTORAL EDUCATION - PRIDE | E18: Austria | F18: VIENNA | G18: Staff | H18: 1 | I18: PODGORICA | J18: 500 KM and 1999 KM | K18: 4 | L18: 275 | M18: 480 | N18: 755
B19: Preparation | C19: P2 | D19: UNIVERSITY OF VIENNA | E19: Austria | F19: VIENNA | G19: Staff | H19: 2 | I19: TIRANA | J19: 500 KM and 1999 KM | K19: 4 | L19: 550 | M19: 960 | N19: 1510
B20: Preparation | C20: P3 | D20: UNIVERSITY OF MARIBOR | E20: Slovenia | F20: MARIBOR | G20: Staff | H20: 2 | I20: TIRANA | J20: 500 KM and 1999 KM | K20: 4 | L20: 550 | M20: 960 | N20: 1510
B21: Preparation | C21: P4 | D21: FAC. OF EDU. AND REH, SCIENCES (UniZAGREB), | E21: Croatia | F21: ZAGREB | G21: Staff | H21: 2 | I21: TIRANA | J21: 500 KM and 1999 KM | K21: 4 | L21: 550 | M21: 960 | N21: 1510
B22: Preparation | C22: P5 | D22: UNIVERSITY OF BANSKA BISTRICA | E22: Slovakia | F22: BANSKA BISTRICA | G22: Staff | H22: 3 | I22: TIRANA | J22: 500 KM and 1999 KM | K22: 4 | L22: 825 | M22: 1440 | N22: 2265
B23: Preparation | C23: P15 | D23: ASSOCIATION FOR PROFESSIONALS IN DOCTORAL EDUCATION - PRIDE | E23: Austria | F23: VIENNA | G23: Staff | H23: 1 | I23: TIRANA | J23: 500 KM and 1999 KM | K23: 4 | L23: 275 | M23: 480 | N23: 755
B24: Preparation | C24: P1 | D24: UNIVERSITY OF MONTENEGRO | E24: Montenegro | F24: PODGORICA | G24: Staff | H24: 3 | I24: TIRANA | J24: 100 KM and 499 KM | K24: 4 | L24: 540 | M24: 1440 | N24: 1980
B25: Preparation | C25: P6 | D25: UNIVERSITY OF DONJA GORICA | E25: Montenegro | F25: PODGORICA | G25: Staff | H25: 2 | I25: TIRANA | J25: 100 KM and 499 KM | K25: 4 | L25: 360 | M25: 960 | N25: 1320
B26: Preparation | C26: P11 | D26: MINISTRY OF EDUCATION OF MONTENEGRO | E26: Montenegro | F26: PODGORICA | G26: Staff | H26: 1 | I26: TIRANA | J26: 100 KM and 499 KM | K26: 4 | L26: 180 | M26: 480 | N26: 660
B27: Preparation | C27: P12 | D27: MINISTRY OF SCIENCE OF MONTENEGRO | E27: Montenegro | F27: PODGORICA | G27: Staff | H27: 1 | I27: TIRANA | J27: 100 KM and 499 KM | K27: 4 | L27: 180 | M27: 480 | N27: 660
B28: Preparation | C28: P7 | D28: UNIVERSITY OF SHKODRA "LUIGJ GURAKUQI" | E28: Albania | F28: SKHODRA | G28: Staff | H28: 3 | I28: PODGORICA | J28: 10 KM and 99 KM | K28: 3 | L28: 60 | M28: 1080 | N28: 1140
B29: Preparation | C29: P8 | D29: POLYTECHNIC UNIVERSITY OF TIRANA | E29: Albania | F29: TIRANA | G29: Staff | H29: 2 | I29: PODGORICA | J29: 100 KM and 499 KM | K29: 3 | L29: 360 | M29: 720 | N29: 1080
B30: Preparation | C30: P9 | D30: UNIVERSITY OF VLORA "ISMAIL QEMALI" | E30: Albania | F30: VLORA | G30: Staff | H30: 2 | I30: PODGORICA | J30: 100 KM and 499 KM | K30: 3 | L30: 360 | M30: 720 | N30: 1080
B31: Preparation | C31: P10 | D31: METROPOLITAN UNIVERSITY OF TIRANA | E31: Albania | F31: TIRANA | G31: Staff | H31: 2 | I31: PODGORICA | J31: 100 KM and 499 KM | K31: 3 | L31: 360 | M31: 720 | N31: 1080
B32: Preparation | C32: P13 | D32: MINISTRY OF EDUCATION, SPORTS AND YOUTH OF ALBANIA | E32: Albania | F32: TIRANA | G32: Staff | H32: 1 | I32: PODGORICA | J32: 100 KM and 499 KM | K32: 3 | L32: 180 | M32: 360 | N32: 540
B33: Development | C33: P1 | D33: UNIVERSITY OF MONTENEGRO | E33: Montenegro | F33: PODGORICA | G33: Staff | H33: 4 | I33: VIENNA | J33: 500 KM and 1999 KM | K33: 7 | L33: 1100 | M33: 3360 | N33: 4460
B34: Development | C34: P1 | D34: UNIVERSITY OF MONTENEGRO | E34: Montenegro | F34: PODGORICA | G34: Staff | H34: 4 | I34: ZAGREB | J34: 100 KM and 499 KM | K34: 7 | L34: 720 | M34: 3360 | N34: 4080
B35: Development | C35: P1 | D35: UNIVERSITY OF MONTENEGRO | E35: Montenegro | F35: PODGORICA | G35: Staff | H35: 4 | I35: MARIBOR | J35: 500 KM and 1999 KM | K35: 7 | L35: 1100 | M35: 3360 | N35: 4460
B36: Development | C36: P1 | D36: UNIVERSITY OF MONTENEGRO | E36: Montenegro | F36: PODGORICA | G36: Staff | H36: 4 | I36: BANSKA BISTRICA | J36: 500 KM and 1999 KM | K36: 7 | L36: 1100 | M36: 3360 | N36: 4460
B37: Development | C37: P6 | D37: UNIVERSITY OF DONJA GORICA | E37: Montenegro | F37: PODGORICA | G37: Staff | H37: 2 | I37: VIENNA | J37: 500 KM and 1999 KM | K37: 7 | L37: 550 | M37: 1680 | N37: 2230
B38: Development | C38: P6 | D38: UNIVERSITY OF DONJA GORICA | E38: Montenegro | F38: PODGORICA | G38: Staff | H38: 2 | I38: ZAGREB | J38: 100 KM and 499 KM | K38: 7 | L38: 360 | M38: 1680 | N38: 2040
B39: Development | C39: P6 | D39: UNIVERSITY OF DONJA GORICA | E39: Montenegro | F39: PODGORICA | G39: Staff | H39: 2 | I39: MARIBOR | J39: 500 KM and 1999 KM | K39: 7 | L39: 550 | M39: 1680 | N39: 2230
B40: Development | C40: P6 | D40: UNIVERSITY OF DONJA GORICA | E40: Montenegro | F40: PODGORICA | G40: Staff | H40: 2 | I40: BANSKA BISTRICA | J40: 500 KM and 1999 KM | K40: 7 | L40: 550 | M40: 1680 | N40: 2230
B41: Development | C41: P7 | D41: UNIVERSITY OF SHKODRA "LUIGJ GURAKUQI" | E41: Albania | F41: SKHODRA | G41: Staff | H41: 4 | I41: VIENNA | J41: 500 KM and 1999 KM | K41: 7 | L41: 1100 | M41: 3360 | N41: 4460
B42: Development | C42: P7 | D42: UNIVERSITY OF SHKODRA "LUIGJ GURAKUQI" | E42: Albania | F42: SKHODRA | G42: Staff | H42: 3 | I42: ZAGREB | J42: 500 KM and 1999 KM | K42: 7 | L42: 825 | M42: 2520 | N42: 3345
B43: Development | C43: P7 | D43: UNIVERSITY OF SHKODRA "LUIGJ GURAKUQI" | E43: Albania | F43: SKHODRA | G43: Staff | H43: 3 | I43: MARIBOR | J43: 500 KM and 1999 KM | K43: 7 | L43: 825 | M43: 2520 | N43: 3345
B44: Development | C44: P7 | D44: UNIVERSITY OF SHKODRA "LUIGJ GURAKUQI" | E44: Albania | F44: SKHODRA | G44: Staff | H44: 4 | I44: BANSKA BISTRICA | J44: 500 KM and 1999 KM | K44: 7 | L44: 1100 | M44: 3360 | N44: 4460
B45: Development | C45: P8 | D45: POLYTECHNIC UNIVERSITY OF TIRANA | E45: Albania | F45: TIRANA | G45: Staff | H45: 3 | I45: VIENNA | J45: 500 KM and 1999 KM | K45: 7 | L45: 825 | M45: 2520 | N45: 3345
B46: Development | C46: P8 | D46: POLYTECHNIC UNIVERSITY OF TIRANA | E46: Albania | F46: TIRANA | G46: Staff | H46: 3 | I46: ZAGREB | J46: 500 KM and 1999 KM | K46: 7 | L46: 825 | M46: 2520 | N46: 3345
B47: Development | C47: P8 | D47: POLYTECHNIC UNIVERSITY OF TIRANA | E47: Albania | F47: TIRANA | G47: Staff | H47: 3 | I47: MARIBOR | J47: 500 KM and 1999 KM | K47: 7 | L47: 825 | M47: 2520 | N47: 3345
B48: Development | C48: P8 | D48: POLYTECHNIC UNIVERSITY OF TIRANA | E48: Albania | F48: TIRANA | G48: Staff | H48: 3 | I48: BANSKA BISTRICA | J48: 500 KM and 1999 KM | K48: 7 | L48: 825 | M48: 2520 | N48: 3345
B49: Development | C49: P9 | D49: UNIVERSITY OF VLORA "ISMAIL QEMALI" | E49: Albania | F49: VLORA | G49: Staff | H49: 3 | I49: VIENNA | J49: 500 KM and 1999 KM | K49: 7 | L49: 825 | M49: 2520 | N49: 3345
B50: Development | C50: P9 | D50: UNIVERSITY OF VLORA "ISMAIL QEMALI" | E50: Albania | F50: VLORA | G50: Staff | H50: 3 | I50: ZAGREB | J50: 500 KM and 1999 KM | K50: 7 | L50: 825 | M50: 2520 | N50: 3345
B51: Development | C51: P9 | D51: UNIVERSITY OF VLORA "ISMAIL QEMALI" | E51: Albania | F51: VLORA | G51: Staff | H51: 3 | I51: MARIBOR | J51: 500 KM and 1999 KM | K51: 7 | L51: 825 | M51: 2520 | N51: 3345
B52: Development | C52: P9 | D52: UNIVERSITY OF VLORA "ISMAIL QEMALI" | E52: Albania | F52: VLORA | G52: Staff | H52: 3 | I52: BANSKA BISTRICA | J52: 500 KM and 1999 KM | K52: 7 | L52: 825 | M52: 2520 | N52: 3345
B53: Development | C53: P10 | D53: METROPOLITAN UNIVERSITY OF TIRANA | E53: Albania | F53: TIRANA | G53: Staff | H53: 2 | I53: VIENNA | J53: 500 KM and 1999 KM | K53: 7 | L53: 550 | M53: 1680 | N53: 2230
B54: Development | C54: P10 | D54: METROPOLITAN UNIVERSITY OF TIRANA | E54: Albania | F54: TIRANA | G54: Staff | H54: 2 | I54: ZAGREB | J54: 500 KM and 1999 KM | K54: 7 | L54: 550 | M54: 1680 | N54: 2230
B55: Development | C55: P10 | D55: METROPOLITAN UNIVERSITY OF TIRANA | E55: Albania | F55: TIRANA | G55: Staff | H55: 2 | I55: MARIBOR | J55: 500 KM and 1999 KM | K55: 7 | L55: 550 | M55: 1680 | N55: 2230
B56: Development | C56: P10 | D56: METROPOLITAN UNIVERSITY OF TIRANA | E56: Albania | F56: TIRANA | G56: Staff | H56: 2 | I56: BANSKA BISTRICA | J56: 500 KM and 1999 KM | K56: 7 | L56: 550 | M56: 1680 | N56: 2230
B57: Development | C57: P4 | D57: FAC. OF EDU. AND REH, SCIENCES (UniZAGREB), | E57: Croatia | F57: ZAGREB | G57: Staff | H57: 1 | I57: PODGORICA | J57: 100 KM and 499 KM | K57: 4 | L57: 180 | M57: 480 | N57: 660
B58: Development | C58: P5 | D58: UNIVERSITY OF BANSKA BISTRICA | E58: Slovakia | F58: BANSKA BISTRICA | G58: Staff | H58: 1 | I58: PODGORICA | J58: 500 KM and 1999 KM | K58: 4 | L58: 275 | M58: 480 | N58: 755
B59: Development | C59: P11 | D59: MINISTRY OF EDUCATION OF MONTENEGRO | E59: Montenegro | F59: PODGORICA | G59: Staff | H59: 1 | I59: PODGORICA | J59: 0 KM and 9 KM | K59: 2 | L59: 0 | M59: 240 | N59: 240
B60: Development | C60: P12 | D60: MINISTRY OF SCIENCE OF MONTENEGRO | E60: Montenegro | F60: PODGORICA | G60: Staff | H60: 1 | I60: PODGORICA | J60: 0 KM and 9 KM | K60: 2 | L60: 0 | M60: 240 | N60: 240
B61: Development | C61: P4 | D61: FAC. OF EDU. AND REH, SCIENCES (UniZAGREB), | E61: Croatia | F61: ZAGREB | G61: Staff | H61: 1 | I61: TIRANA | J61: 500 KM and 1999 KM | K61: 4 | L61: 275 | M61: 480 | N61: 755
B62: Development | C62: P5 | D62: UNIVERSITY OF BANSKA BISTRICA | E62: Slovakia | F62: BANSKA BISTRICA | G62: Staff | H62: 1 | I62: TIRANA | J62: 500 KM and 1999 KM | K62: 4 | L62: 275 | M62: 480 | N62: 755
B63: Development | C63: P7 | D63: UNIVERSITY OF SHKODRA "LUIGJ GURAKUQI" | E63: Albania | F63: SKHODRA | G63: Staff | H63: 3 | I63: TIRANA | J63: 10 KM and 99 KM | K63: 2 | L63: 60 | M63: 720 | N63: 780
B64: Development | C64: P8 | D64: POLYTECHNIC UNIVERSITY OF TIRANA | E64: Albania | F64: TIRANA | G64: Staff | H64: 3 | I64: TIRANA | J64: 0 KM and 9 KM | K64: 2 | L64: 0 | M64: 720 | N64: 720
B65: Development | C65: P9 | D65: UNIVERSITY OF VLORA "ISMAIL QEMALI" | E65: Albania | F65: VLORA | G65: Staff | H65: 3 | I65: TIRANA | J65: 10 KM and 99 KM | K65: 2 | L65: 60 | M65: 720 | N65: 780
B66: Development | C66: P10 | D66: METROPOLITAN UNIVERSITY OF TIRANA | E66: Albania | F66: TIRANA | G66: Staff | H66: 2 | I66: TIRANA | J66: 0 KM and 9 KM | K66: 2 | L66: 0 | M66: 480 | N66: 480
B67: Development | C67: P13 | D67: MINISTRY OF EDUCATION, SPORTS AND YOUTH OF ALBANIA | E67: Albania | F67: TIRANA | G67: Staff | H67: 1 | I67: TIRANA | J67: 0 KM and 9 KM | K67: 2 | L67: 0 | M67: 240 | N67: 240
B68: Development | C68: P11 | D68: MINISTRY OF EDUCATION OF MONTENEGRO | E68: Montenegro | F68: PODGORICA | G68: Staff | H68: 1 | I68: VIENNA | J68: 500 KM and 1999 KM | K68: 3 | L68: 275 | M68: 360 | N68: 635
B69: Development | C69: P12 | D69: MINISTRY OF SCIENCE OF MONTENEGRO | E69: Montenegro | F69: PODGORICA | G69: Staff | H69: 1 | I69: VIENNA | J69: 500 KM and 1999 KM | K69: 3 | L69: 275 | M69: 360 | N69: 635
B70: Development | C70: P13 | D70: MINISTRY OF EDUCATION, SPORTS AND YOUTH OF ALBANIA | E70: Albania | F70: TIRANA | G70: Staff | H70: 1 | I70: VIENNA | J70: 500 KM and 1999 KM | K70: 3 | L70: 275 | M70: 360 | N70: 635
B71: Development | C71: P2 | D71: UNIVERSITY OF VIENNA | E71: Austria | F71: VIENNA | G71: Staff | H71: 2 | I71: PODGORICA | J71: 500 KM and 1999 KM | K71: 7 | L71: 550 | M71: 1680 | N71: 2230
B72: Development | C72: P3 | D72: UNIVERSITY OF MARIBOR | E72: Slovenia | F72: MARIBOR | G72: Staff | H72: 2 | I72: PODGORICA | J72: 500 KM and 1999 KM | K72: 7 | L72: 550 | M72: 1680 | N72: 2230
B73: Development | C73: P4 | D73: FAC. OF EDU. AND REH, SCIENCES (UniZAGREB), | E73: Croatia | F73: ZAGREB | G73: Staff | H73: 2 | I73: PODGORICA | J73: 100 KM and 499 KM | K73: 7 | L73: 360 | M73: 1680 | N73: 2040
B74: Development | C74: P5 | D74: UNIVERSITY OF BANSKA BISTRICA | E74: Slovakia | F74: BANSKA BISTRICA | G74: Staff | H74: 2 | I74: PODGORICA | J74: 500 KM and 1999 KM | K74: 7 | L74: 550 | M74: 1680 | N74: 2230
B75: Development | C75: P2 | D75: UNIVERSITY OF VIENNA | E75: Austria | F75: VIENNA | G75: Staff | H75: 2 | I75: SHKODRA | J75: 500 KM and 1999 KM | K75: 7 | L75: 550 | M75: 1680 | N75: 2230
B76: Development | C76: P3 | D76: UNIVERSITY OF MARIBOR | E76: Slovenia | F76: MARIBOR | G76: Staff | H76: 2 | I76: SHKODRA | J76: 500 KM and 1999 KM | K76: 7 | L76: 550 | M76: 1680 | N76: 2230
B77: Development | C77: P4 | D77: FAC. OF EDU. AND REH, SCIENCES (UniZAGREB), | E77: Croatia | F77: ZAGREB | G77: Staff | H77: 2 | I77: SHKODRA | J77: 500 KM and 1999 KM | K77: 7 | L77: 550 | M77: 1680 | N77: 2230
B78: Development | C78: P5 | D78: UNIVERSITY OF BANSKA BISTRICA | E78: Slovakia | F78: BANSKA BISTRICA | G78: Staff | H78: 2 | I78: SHKODRA | J78: 500 KM and 1999 KM | K78: 7 | L78: 550 | M78: 1680 | N78: =L78+M78 -> 2230
B79: Development | C79: P1 | D79: =IFERROR(IF(VLOOKUP(C79,PartnerN°Ref,2,FALSE)=0,"",VLOOKUP(C79,PartnerN°Ref,2,FALSE)),"") -> UNIVERSITY OF MONTENEGRO | E79: =IFERROR(IF(OR(VLOOKUP(C79,PartnerN°Ref,4,FALSE)="Country not found",VLOOKUP(C79,PartnerN°Ref,3,FALSE)=0),"",VLOOKUP(C79,PartnerN°Ref,3,FALSE)),"") -> Montenegro | F79: PODGORICA | G79: Student | H79: 3 | I79: VIENNA | J79: 500 KM and 1999 KM | K79: 14 | L79: =IF(O79="Error",0,ROUND(ROUND(H79,0)*(VLOOKUP(J79,TravelCosts,2,FALSE)),2)) -> 825 | M79: =IF(O79="Error",0,IF(AND(G79="Staff",K79>0,K79<15),(120*K79)*H79,IF(AND(G79="Staff",K79>14,K79<61),(1680+((K79-14)*70))*H79,IF(AND(G79="Staff",K79>60,K79<91),(4900+((K79-60)*50))*H79,IF(AND(G79="Student",K79>0,K79<15),(55*K79)*H79,IF(AND(G79="Student",K79>14,K79<91),(770+((K79-14)*40))*H79,0)))))) -> 2310 | N79: 3135 | O79: =IF(OR(COUNTIF(WorkPackage,B79)=0,COUNTIF(PartnerN°,C79)=0,D79="",COUNTIF(CountryALL,E79)=0,F79="",COUNTIF(Category2,G79)=0,ISNUMBER(H79)=FALSE,H79<=0,I79="",COUNTIF(TravelBands,J79)=0,ISNUMBER(K79)=FALSE,OR(K79<0,K79>90),IF(ISNUMBER(H79)=TRUE,H79=INT(H79*1)/1=FALSE),IF(ISNUMBER(K79)=TRUE,K79=INT(K79*1)/1=FALSE)),"Error","") -> 
B80: Development | C80: P1 | D80: UNIVERSITY OF MONTENEGRO | E80: Montenegro | F80: PODGORICA | G80: Student | H80: 3 | I80: MARIBOR | J80: 500 KM and 1999 KM | K80: 21 | L80: 825 | M80: 3150 | N80: 3975
B81: Development | C81: P1 | D81: UNIVERSITY OF MONTENEGRO | E81: Montenegro | F81: PODGORICA | G81: Student | H81: 3 | I81: ZAGREB | J81: 100 KM and 499 KM | K81: 21 | L81: 540 | M81: 3150 | N81: 3690
B82: Development | C82: P1 | D82: UNIVERSITY OF MONTENEGRO | E82: Montenegro | F82: PODGORICA | G82: Student | H82: 3 | I82: BANSKA BISTRICA | J82: 500 KM and 1999 KM | K82: 21 | L82: 825 | M82: 3150 | N82: 3975
B83: Development | C83: P6 | D83: UNIVERSITY OF DONJA GORICA | E83: Montenegro | F83: PODGORICA | G83: Student | H83: 2 | I83: VIENNA | J83: 500 KM and 1999 KM | K83: 21 | L83: 550 | M83: 2100 | N83: 2650
B84: Development | C84: P6 | D84: UNIVERSITY OF DONJA GORICA | E84: Montenegro | F84: PODGORICA | G84: Student | H84: 2 | I84: MARIBOR | J84: 500 KM and 1999 KM | K84: 21 | L84: 550 | M84: 2100 | N84: 2650
B85: Development | C85: P6 | D85: UNIVERSITY OF DONJA GORICA | E85: Montenegro | F85: PODGORICA | G85: Student | H85: 2 | I85: ZAGREB | J85: 100 KM and 499 KM | K85: 21 | L85: 360 | M85: 2100 | N85: 2460
B86: Development | C86: P6 | D86: UNIVERSITY OF DONJA GORICA | E86: Montenegro | F86: PODGORICA | G86: Student | H86: 2 | I86: BANSKA BISTRICA | J86: 500 KM and 1999 KM | K86: 21 | L86: 550 | M86: 2100 | N86: 2650
B87: Development | C87: P7 | D87: UNIVERSITY OF SHKODRA "LUIGJ GURAKUQI" | E87: Albania | F87: SHKODRA | G87: Student | H87: 3 | I87: VIENNA | J87: 500 KM and 1999 KM | K87: 21 | L87: 825 | M87: 3150 | N87: 3975
B88: Development | C88: P7 | D88: UNIVERSITY OF SHKODRA "LUIGJ GURAKUQI" | E88: Albania | F88: SHKODRA | G88: Student | H88: 3 | I88: MARIBOR | J88: 500 KM and 1999 KM | K88: 21 | L88: 825 | M88: 3150 | N88: 3975
B89: Development | C89: P7 | D89: UNIVERSITY OF SHKODRA "LUIGJ GURAKUQI" | E89: Albania | F89: SHKODRA | G89: Student | H89: 3 | I89: ZAGREB | J89: 500 KM and 1999 KM | K89: 21 | L89: 825 | M89: 3150 | N89: 3975
B90: Development | C90: P7 | D90: UNIVERSITY OF SHKODRA "LUIGJ GURAKUQI" | E90: Albania | F90: SHKODRA | G90: Student | H90: 3 | I90: BANSKA BISTRICA | J90: 500 KM and 1999 KM | K90: 21 | L90: 825 | M90: 3150 | N90: 3975
B91: Development | C91: P8 | D91: POLYTECHNIC UNIVERSITY OF TIRANA | E91: Albania | F91: TIRANA | G91: Student | H91: 2 | I91: VIENNA | J91: 500 KM and 1999 KM | K91: 21 | L91: 550 | M91: 2100 | N91: 2650
B92: Development | C92: P8 | D92: POLYTECHNIC UNIVERSITY OF TIRANA | E92: Albania | F92: TIRANA | G92: Student | H92: 2 | I92: MARIBOR | J92: 500 KM and 1999 KM | K92: 21 | L92: 550 | M92: 2100 | N92: 2650
B93: Development | C93: P8 | D93: POLYTECHNIC UNIVERSITY OF TIRANA | E93: Albania | F93: TIRANA | G93: Student | H93: 2 | I93: ZAGREB | J93: 500 KM and 1999 KM | K93: 21 | L93: 550 | M93: 2100 | N93: 2650
B94: Development | C94: P8 | D94: POLYTECHNIC UNIVERSITY OF TIRANA | E94: Albania | F94: TIRANA | G94: Student | H94: 2 | I94: BANSKA BISTRICA | J94: 500 KM and 1999 KM | K94: 21 | L94: 550 | M94: 2100 | N94: 2650
B95: Development | C95: P9 | D95: UNIVERSITY OF VLORA "ISMAIL QEMALI" | E95: Albania | F95: VLORA | G95: Student | H95: 2 | I95: VIENNA | J95: 500 KM and 1999 KM | K95: 21 | L95: 550 | M95: 2100 | N95: 2650
B96: Development | C96: P9 | D96: UNIVERSITY OF VLORA "ISMAIL QEMALI" | E96: Albania | F96: VLORA | G96: Student | H96: 2 | I96: MARIBOR | J96: 500 KM and 1999 KM | K96: 21 | L96: 550 | M96: 2100 | N96: 2650
B97: Development | C97: P9 | D97: UNIVERSITY OF VLORA "ISMAIL QEMALI" | E97: Albania | F97: VLORA | G97: Student | H97: 2 | I97: ZAGREB | J97: 500 KM and 1999 KM | K97: 21 | L97: 550 | M97: 2100 | N97: 2650
B98: Development | C98: P9 | D98: UNIVERSITY OF VLORA "ISMAIL QEMALI" | E98: Albania | F98: VLORA | G98: Student | H98: 2 | I98: BANSKA BISTRICA | J98: 500 KM and 1999 KM | K98: 21 | L98: 550 | M98: 2100 | N98: 2650
B99: Development | C99: P10 | D99: METROPOLITAN UNIVERSITY OF TIRANA | E99: Albania | F99: TIRANA | G99: Student | H99: 2 | I99: VIENNA | J99: 500 KM and 1999 KM | K99: 21 | L99: 550 | M99: 2100 | N99: 2650
B100: Development | C100: P10 | D100: METROPOLITAN UNIVERSITY OF TIRANA | E100: Albania | F100: TIRANA | G100: Student | H100: 2 | I100: MARIBOR | J100: 500 KM and 1999 KM | K100: 21 | L100: 550 | M100: 2100 | N100: 2650
B101: Development | C101: P10 | D101: METROPOLITAN UNIVERSITY OF TIRANA | E101: Albania | F101: TIRANA | G101: Student | H101: 2 | I101: MARIBOR | J101: 500 KM and 1999 KM | K101: 21 | L101: 550 | M101: 2100 | N101: 2650
B102: Development | C102: P10 | D102: METROPOLITAN UNIVERSITY OF TIRANA | E102: Albania | F102: TIRANA | G102: Student | H102: 2 | I102: MARIBOR | J102: 500 KM and 1999 KM | K102: 21 | L102: 550 | M102: 2100 | N102: 2650
B103: Development | C103: P1 | D103: UNIVERSITY OF MONTENEGRO | E103: Montenegro | F103: PODGORICA | G103: Staff | H103: 2 | I103: SHKODRA | J103: 10 KM and 99 KM | K103: 7 | L103: 40 | M103: 1680 | N103: 1720
B104: Development | C104: P7 | D104: UNIVERSITY OF SHKODRA "LUIGJ GURAKUQI" | E104: Albania | F104: SHKODRA | G104: Staff | H104: 2 | I104: PODGORICA | J104: 10 KM and 99 KM | K104: 7 | L104: 40 | M104: 1680 | N104: 1720
B105: Development | C105: P8 | D105: POLYTECHNIC UNIVERSITY OF TIRANA | E105: Albania | F105: TIRANA | G105: Staff | H105: 1 | I105: PODGORICA | J105: 100 KM and 499 KM | K105: 7 | L105: 180 | M105: 840 | N105: 1020
B106: Development | C106: P9 | D106: UNIVERSITY OF VLORA "ISMAIL QEMALI" | E106: Albania | F106: VLORA | G106: Staff | H106: 1 | I106: PODGORICA | J106: 100 KM and 499 KM | K106: 7 | L106: 180 | M106: 840 | N106: 1020
B107: Quality Plan | C107: P3 | D107: UNIVERSITY OF MARIBOR | E107: Slovenia | F107: MARIBOR | G107: Staff | H107: 2 | I107: PODGORICA | J107: 500 KM and 1999 KM | K107: 3 | L107: 550 | M107: 720 | N107: 1270
B108: Quality Plan | C108: P3 | D108: UNIVERSITY OF MARIBOR | E108: Slovenia | F108: MARIBOR | G108: Staff | H108: 1 | I108: TIRANA | J108: 500 KM and 1999 KM | K108: 3 | L108: 275 | M108: 360 | N108: 635
B109: Quality Plan | C109: P1 | D109: UNIVERSITY OF MONTENEGRO | E109: Montenegro | F109: PODGORICA | G109: Staff | H109: 1 | I109: SHKODRA | J109: 10 KM and 99 KM | K109: 2 | L109: 20 | M109: 240 | N109: 260
B110: Quality Plan | C110: P1 | D110: UNIVERSITY OF MONTENEGRO | E110: Montenegro | F110: PODGORICA | G110: Staff | H110: 1 | I110: TIRANA | J110: 100 KM and 499 KM | K110: 3 | L110: 180 | M110: 360 | N110: 540
B111: Quality Plan | C111: P1 | D111: UNIVERSITY OF MONTENEGRO | E111: Montenegro | F111: PODGORICA | G111: Staff | H111: 1 | I111: VLORA | J111: 100 KM and 499 KM | K111: 3 | L111: 180 | M111: 360 | N111: 540
B112: Quality Plan | C112: P1 | D112: UNIVERSITY OF MONTENEGRO | E112: Montenegro | F112: MARIBOR | G112: Staff | H112: 1 | I112: MARIBOR | J112: 500 KM and 1999 KM | K112: 3 | L112: 275 | M112: 360 | N112: 635
B113: Dissemination & Exploitation | C113: P14 | D113: CHAMBER OF ECONOMY OF MONTENEGRO | E113: Montenegro | F113: PODGORICA | G113: Staff | H113: 2 | I113: PODGORICA | J113: 0 KM and 9 KM | K113: 1 | L113: 0 | M113: 240 | N113: 240
B114: Dissemination & Exploitation | C114: P11 | D114: MINISTRY OF EDUCATION OF MONTENEGRO | E114: Montenegro | F114: PODGORICA | G114: Staff | H114: 2 | I114: PODGORICA | J114: 0 KM and 9 KM | K114: 1 | L114: 0 | M114: 240 | N114: 240
B115: Dissemination & Exploitation | C115: P12 | D115: MINISTRY OF SCIENCE OF MONTENEGRO | E115: Montenegro | F115: PODGORICA | G115: Staff | H115: 2 | I115: PODGORICA | J115: 0 KM and 9 KM | K115: 1 | L115: 0 | M115: 240 | N115: 240
B116: Dissemination & Exploitation | C116: P13 | D116: MINISTRY OF EDUCATION, SPORTS AND YOUTH OF ALBANIA | E116: Albania | F116: TIRANA | G116: Staff | H116: 1 | I116: PODGORICA | J116: 100 KM and 499 KM | K116: 2 | L116: 180 | M116: 240 | N116: 420
B117: Dissemination & Exploitation | C117: P16 | D117: UNION OF CHAMBERS OF COMMERCE AND INDUSTRY OF ALBANIA | E117: Albania | F117: TIRANA | G117: Staff | H117: 1 | I117: PODGORICA | J117: 100 KM and 499 KM | K117: 2 | L117: 180 | M117: 240 | N117: 420
B118: Dissemination & Exploitation | C118: P7 | D118: UNIVERSITY OF SHKODRA "LUIGJ GURAKUQI" | E118: Albania | F118: SHKODRA | G118: Staff | H118: 2 | I118: PODGORICA | J118: 10 KM and 99 KM | K118: 2 | L118: 40 | M118: 480 | N118: 520
B119: Dissemination & Exploitation | C119: P15 | D119: ASSOCIATION FOR PROFESSIONALS IN DOCTORAL EDUCATION - PRIDE | E119: Austria | F119: VIENNA | G119: Staff | H119: 1 | I119: PODGORICA | J119: 500 KM and 1999 KM | K119: 3 | L119: 275 | M119: 360 | N119: 635
B120: Dissemination & Exploitation | C120: P1 | D120: UNIVERSITY OF MONTENEGRO | E120: Montenegro | F120: PODGORICA | G120: Staff | H120: 2 | I120: SHKODRA | J120: 10 KM and 99 KM | K120: 2 | L120: 40 | M120: 480 | N120: 520
B121: Dissemination & Exploitation | C121: P11 | D121: MINISTRY OF EDUCATION OF MONTENEGRO | E121: Montenegro | F121: PODGORICA | G121: staff | H121: 1 | I121: SHKODRA | J121: 10 KM and 99 KM | K121: 2 | L121: 20 | M121: 240 | N121: 260
B122: Dissemination & Exploitation | C122: P12 | D122: MINISTRY OF SCIENCE OF MONTENEGRO | E122: Montenegro | F122: PODGORICA | G122: Staff | H122: 1 | I122: SHKODRA | J122: 10 KM and 99 KM | K122: 2 | L122: 20 | M122: 240 | N122: 260
B123: Dissemination & Exploitation | C123: P14 | D123: CHAMBER OF ECONOMY OF MONTENEGRO | E123: Montenegro | F123: PODGORICA | G123: Staff | H123: 1 | I123: SHKODRA | J123: 10 KM and 99 KM | K123: 2 | L123: 20 | M123: 240 | N123: 260
B124: Dissemination & Exploitation | C124: P15 | D124: ASSOCIATION FOR PROFESSIONALS IN DOCTORAL EDUCATION - PRIDE | E124: Austria | F124: VIENNA | G124: Staff | H124: 1 | I124: SHKODRA | J124: 500 KM and 1999 KM | K124: 3 | L124: 275 | M124: 360 | N124: 635
B125: Dissemination & Exploitation | C125: P2 | D125: UNIVERSITY OF VIENNA | E125: Austria | F125: VIENNA | G125: Staff | H125: 1 | I125: PODGORICA | J125: 500 KM and 1999 KM | K125: 3 | L125: 275 | M125: 360 | N125: 635
B126: Dissemination & Exploitation | C126: P3 | D126: UNIVERSITY OF MARIBOR | E126: Slovenia | F126: MARIBOR | G126: Staff | H126: 1 | I126: PODGORICA | J126: 500 KM and 1999 KM | K126: 3 | L126: 275 | M126: 360 | N126: 635
B127: Dissemination & Exploitation | C127: P4 | D127: FAC. OF EDU. AND REH, SCIENCES (UniZAGREB), | E127: Croatia | F127: ZAGREB | G127: Staff | H127: 1 | I127: PODGORICA | J127: 500 KM and 1999 KM | K127: 3 | L127: 275 | M127: 360 | N127: 635
B128: Dissemination & Exploitation | C128: P5 | D128: UNIVERSITY OF BANSKA BISTRICA | E128: Slovakia | F128: BANSKA BISTRICA | G128: Staff | H128: 1 | I128: PODGORICA | J128: 500 KM and 1999 KM | K128: 3 | L128: 275 | M128: 360 | N128: 635
B129: Dissemination & Exploitation | C129: P7 | D129: UNIVERSITY OF SHKODRA "LUIGJ GURAKUQI" | E129: Albania | F129: SHKODRA | G129: Staff | H129: 2 | I129: PODGORICA | J129: 10 KM and 99 KM | K129: 2 | L129: 40 | M129: 480 | N129: 520
B130: Dissemination & Exploitation | C130: P8 | D130: POLYTECHNIC UNIVERSITY OF TIRANA | E130: Albania | F130: TIRANA | G130: Staff | H130: 1 | I130: PODGORICA | J130: 100 KM and 499 KM | K130: 3 | L130: 180 | M130: 360 | N130: 540
B131: Dissemination & Exploitation | C131: P9 | D131: UNIVERSITY OF VLORA "ISMAIL QEMALI" | E131: Albania | F131: VLORA | G131: Staff | H131: 1 | I131: PODGORICA | J131: 100 KM and 499 KM | K131: 3 | L131: 180 | M131: 360 | N131: 540
B132: Dissemination & Exploitation | C132: P10 | D132: METROPOLITAN UNIVERSITY OF TIRANA | E132: Albania | F132: TIRANA | G132: Staff | H132: 1 | I132: PODGORICA | J132: 100 KM and 499 KM | K132: 3 | L132: 180 | M132: 360 | N132: 540
B133: Dissemination & Exploitation | C133: P7 | D133: UNIVERSITY OF SHKODRA "LUIGJ GURAKUQI" | E133: Albania | F133: SHKODRA | G133: Student | H133: 5 | I133: PODGORICA | J133: 10 KM and 99 KM | K133: 2 | L133: 100 | M133: 550 | N133: 650
B134: Dissemination & Exploitation | C134: P8 | D134: POLYTECHNIC UNIVERSITY OF TIRANA | E134: Albania | F134: TIRANA | G134: Student | H134: 1 | I134: PODGORICA | J134: 100 KM and 499 KM | K134: 3 | L134: 180 | M134: 165 | N134: 345
B135: Dissemination & Exploitation | C135: P9 | D135: UNIVERSITY OF VLORA "ISMAIL QEMALI" | E135: Albania | F135: VLORA | G135: Student | H135: 1 | I135: PODGORICA | J135: 100 KM and 499 KM | K135: 3 | L135: 180 | M135: 165 | N135: 345
B136: Dissemination & Exploitation | C136: P10 | D136: METROPOLITAN UNIVERSITY OF TIRANA | E136: Albania | F136: TIRANA | G136: Student | H136: 1 | I136: PODGORICA | J136: 100 KM and 499 KM | K136: 3 | L136: 180 | M136: 165 | N136: 345
B137: Dissemination & Exploitation | C137: P1 | D137: UNIVERSITY OF MONTENEGRO | E137: Montenegro | F137: PODGORICA | G137: Staff | H137: 3 | I137: BUDVA | J137: 10 KM and 99 KM | K137: 2 | L137: 60 | M137: 720 | N137: 780
B138: Dissemination & Exploitation | C138: P7 | D138: UNIVERSITY OF SHKODRA "LUIGJ GURAKUQI" | E138: Albania | F138: SHKODRA | G138: Staff | H138: 2 | I138: BUDVA | J138: 10 KM and 99 KM | K138: 2 | L138: 40 | M138: 480 | N138: 520
B139: Dissemination & Exploitation | C139: P1 | D139: UNIVERSITY OF MONTENEGRO | E139: Montenegro | F139: PODGORICA | G139: Staff | H139: 2 | I139: PRISTHINA | J139: 100 KM and 499 KM | K139: 3 | L139: 360 | M139: 720 | N139: 1080
B140: Dissemination & Exploitation | C140: P7 | D140: UNIVERSITY OF SHKODRA "LUIGJ GURAKUQI" | E140: Albania | F140: SHKODRA | G140: Staff | H140: 2 | I140: PRISTHINA | J140: 100 KM and 499 KM | K140: 3 | L140: 360 | M140: 720 | N140: 1080
B141: Management | C141: P2 | D141: UNIVERSITY OF VIENNA | E141: Austria | F141: VIENNA | G141: Staff | H141: 1 | I141: PODGORICA | J141: 500 KM and 1999 KM | K141: 4 | L141: 275 | M141: 480 | N141: 755
B142: Management | C142: P3 | D142: UNIVERSITY OF MARIBOR | E142: Slovenia | F142: MARIBOR | G142: Staff | H142: 1 | I142: PODGORICA | J142: 500 KM and 1999 KM | K142: 4 | L142: 275 | M142: 480 | N142: 755
B143: Management | C143: P4 | D143: FAC. OF EDU. AND REH, SCIENCES (UniZAGREB), | E143: Croatia | F143: ZAGREB | G143: Staff | H143: 1 | I143: PODGORICA | J143: 100 KM and 499 KM | K143: 4 | L143: 180 | M143: 480 | N143: =L143+M143 -> 660
B144: Management | C144: P5 | D144: =IFERROR(IF(VLOOKUP(C144,PartnerN°Ref,2,FALSE)=0,"",VLOOKUP(C144,PartnerN°Ref,2,FALSE)),"") -> UNIVERSITY OF BANSKA BISTRICA | E144: =IFERROR(IF(OR(VLOOKUP(C144,PartnerN°Ref,4,FALSE)="Country not found",VLOOKUP(C144,PartnerN°Ref,3,FALSE)=0),"",VLOOKUP(C144,PartnerN°Ref,3,FALSE)),"") -> Slovakia | F144: BANSKA BISTRICA | G144: Staff | H144: 1 | I144: PODGORICA | J144: 500 KM and 1999 KM | K144: 4 | L144: =IF(O144="Error",0,ROUND(ROUND(H144,0)*(VLOOKUP(J144,TravelCosts,2,FALSE)),2)) -> 275 | M144: =IF(O144="Error",0,IF(AND(G144="Staff",K144>0,K144<15),(120*K144)*H144,IF(AND(G144="Staff",K144>14,K144<61),(1680+((K144-14)*70))*H144,IF(AND(G144="Staff",K144>60,K144<91),(4900+((K144-60)*50))*H144,IF(AND(G144="Student",K144>0,K144<15),(55*K144)*H144,IF(AND(G144="Student",K144>14,K144<91),(770+((K144-14)*40))*H144,0)))))) -> 480 | N144: 755 | O144: =IF(OR(COUNTIF(WorkPackage,B144)=0,COUNTIF(PartnerN°,C144)=0,D144="",COUNTIF(CountryALL,E144)=0,F144="",COUNTIF(Category2,G144)=0,ISNUMBER(H144)=FALSE,H144<=0,I144="",COUNTIF(TravelBands,J144)=0,ISNUMBER(K144)=FALSE,OR(K144<0,K144>90),IF(ISNUMBER(H144)=TRUE,H144=INT(H144*1)/1=FALSE),IF(ISNUMBER(K144)=TRUE,K144=INT(K144*1)/1=FALSE)),"Error","") -> 
B145: Management | C145: P6 | D145: UNIVERSITY OF DONJA GORICA | E145: Montenegro | F145: PODGORICA | G145: Staff | H145: 1 | I145: PODGORICA | J145: 0 KM and 9 KM | K145: 4 | L145: 0 | M145: 480 | N145: 480
B146: Management | C146: P7 | D146: UNIVERSITY OF SHKODRA "LUIGJ GURAKUQI" | E146: Albania | F146: SHKODRA | G146: Staff | H146: 1 | I146: PODGORICA | J146: 10 KM and 99 KM | K146: 2 | L146: 20 | M146: 240 | N146: 260
B147: Management | C147: P8 | D147: POLYTECHNIC UNIVERSITY OF TIRANA | E147: Albania | F147: TIRANA | G147: Staff | H147: 1 | I147: PODGORICA | J147: 100 KM and 499 KM | K147: 3 | L147: 180 | M147: 360 | N147: 540
B148: Management | C148: P9 | D148: UNIVERSITY OF VLORA "ISMAIL QEMALI" | E148: Albania | F148: VLORA | G148: Staff | H148: 1 | I148: PODGORICA | J148: 100 KM and 499 KM | K148: 3 | L148: 180 | M148: 360 | N148: 540
B149: Management | C149: P10 | D149: METROPOLITAN UNIVERSITY OF TIRANA | E149: Albania | F149: TIRANA | G149: Staff | H149: 1 | I149: PODGORICA | J149: 100 KM and 499 KM | K149: 3 | L149: 180 | M149: 360 | N149: 540
B150: Management | C150: P11 | D150: MINISTRY OF EDUCATION OF MONTENEGRO | E150: Montenegro | F150: PODGORICA | G150: Staff | H150: 1 | I150: PODGORICA | J150: 0 KM and 9 KM | K150: 2 | L150: 0 | M150: 240 | N150: 240
B151: Management | C151: P12 | D151: MINISTRY OF SCIENCE OF MONTENEGRO | E151: Montenegro | F151: PODGORICA | G151: Staff | H151: 1 | I151: PODGORICA | J151: 0 KM and 9 KM | K151: 2 | L151: 0 | M151: 240 | N151: 240
B152: Management | C152: P13 | D152: MINISTRY OF EDUCATION, SPORTS AND YOUTH OF ALBANIA | E152: Albania | F152: TIRANA | G152: Staff | H152: 1 | I152: PODGORICA | J152: 100 KM and 499 KM | K152: 3 | L152: 180 | M152: 360 | N152: 540
B153: Management | C153: P14 | D153: CHAMBER OF ECONOMY OF MONTENEGRO | E153: Montenegro | F153: PODGORICA | G153: Staff | H153: 1 | I153: PODGORICA | J153: 0 KM and 9 KM | K153: 2 | L153: 0 | M153: 240 | N153: 240
B154: Management | C154: P15 | D154: ASSOCIATION FOR PROFESSIONALS IN DOCTORAL EDUCATION - PRIDE | E154: Austria | F154: VIENNA | G154: Staff | H154: 1 | I154: PODGORICA | J154: 500 KM and 1999 KM | K154: 4 | L154: 275 | M154: 480 | N154: 755
B155: Management | C155: P16 | D155: UNION OF CHAMBERS OF COMMERCE AND INDUSTRY OF ALBANIA | E155: Albania | F155: TIRANA | G155: Staff | H155: 1 | I155: PODGORICA | J155: 100 KM and 499 KM | K155: 3 | L155: 180 | M155: 360 | N155: 540
B156: Management | C156: P1 | D156: UNIVERSITY OF MONTENEGRO | E156: Montenegro | F156: PODGORICA | G156: Staff | H156: 2 | I156: VIENNA | J156: 500 KM and 1999 KM | K156: 4 | L156: 550 | M156: 960 | N156: 1510
B157: Management | C157: P3 | D157: UNIVERSITY OF MARIBOR | E157: Slovenia | F157: MARIBOR | G157: Staff | H157: 2 | I157: VIENNA | J157: 100 KM and 499 KM | K157: 4 | L157: 360 | M157: 960 | N157: 1320
B158: Management | C158: P4 | D158: FAC. OF EDU. AND REH, SCIENCES (UniZAGREB), | E158: Croatia | F158: ZAGREB | G158: Staff | H158: 2 | I158: VIENNA | J158: 100 KM and 499 KM | K158: 4 | L158: 360 | M158: 960 | N158: 1320
B159: Management | C159: P5 | D159: UNIVERSITY OF BANSKA BISTRICA | E159: Slovakia | F159: BANSKA BISTRICA | G159: Staff | H159: 2 | I159: VIENNA | J159: 100 KM and 499 KM | K159: 3 | L159: 360 | M159: 720 | N159: 1080
B160: Management | C160: P6 | D160: UNIVERSITY OF DONJA GORICA | E160: Montenegro | F160: PODGORICA | G160: Staff | H160: 2 | I160: VIENNA | J160: 500 KM and 1999 KM | K160: 4 | L160: 550 | M160: 960 | N160: 1510
B161: Management | C161: P7 | D161: UNIVERSITY OF SHKODRA "LUIGJ GURAKUQI" | E161: Albania | F161: SHKODRA | G161: Staff | H161: 2 | I161: VIENNA | J161: 500 KM and 1999 KM | K161: 4 | L161: 550 | M161: 960 | N161: 1510
B162: Management | C162: P8 | D162: POLYTECHNIC UNIVERSITY OF TIRANA | E162: Albania | F162: TIRANA | G162: Staff | H162: 2 | I162: VIENNA | J162: 500 KM and 1999 KM | K162: 4 | L162: 550 | M162: 960 | N162: 1510
B163: Management | C163: P9 | D163: UNIVERSITY OF VLORA "ISMAIL QEMALI" | E163: Albania | F163: VLORA | G163: Staff | H163: 2 | I163: VIENNA | J163: 500 KM and 1999 KM | K163: 4 | L163: 550 | M163: 960 | N163: 1510
B164: Management | C164: P10 | D164: METROPOLITAN UNIVERSITY OF TIRANA | E164: Albania | F164: TIRANA | G164: Staff | H164: 2 | I164: VIENNA | J164: 500 KM and 1999 KM | K164: 4 | L164: 550 | M164: 960 | N164: 1510
B165: Management | C165: P11 | D165: MINISTRY OF EDUCATION OF MONTENEGRO | E165: Montenegro | F165: PODGORICA | G165: Staff | H165: 2 | I165: VIENNA | J165: 500 KM and 1999 KM | K165: 4 | L165: 550 | M165: 960 | N165: 1510
B166: Management | C166: P12 | D166: MINISTRY OF SCIENCE OF MONTENEGRO | E166: Montenegro | F166: PODGORICA | G166: Staff | H166: 2 | I166: VIENNA | J166: 500 KM and 1999 KM | K166: 4 | L166: 550 | M166: 960 | N166: 1510
B167: Management | C167: P13 | D167: MINISTRY OF EDUCATION, SPORTS AND YOUTH OF ALBANIA | E167: Albania | F167: TIRANA | G167: Staff | H167: 2 | I167: VIENNA | J167: 500 KM and 1999 KM | K167: 4 | L167: 550 | M167: 960 | N167: 1510
B168: Management | C168: P14 | D168: CHAMBER OF ECONOMY OF MONTENEGRO | E168: Montenegro | F168: PODGORICA | G168: Staff | H168: 2 | I168: VIENNA | J168: 500 KM and 1999 KM | K168: 4 | L168: 550 | M168: 960 | N168: 1510
B169: Management | C169: P15 | D169: ASSOCIATION FOR PROFESSIONALS IN DOCTORAL EDUCATION - PRIDE | E169: Austria | F169: VIENNA | G169: Staff | H169: 2 | I169: VIENNA | J169: 0 KM and 9 KM | K169: 2 | L169: 0 | M169: 480 | N169: 480
B170: Management | C170: P16 | D170: UNION OF CHAMBERS OF COMMERCE AND INDUSTRY OF ALBANIA | E170: Albania | F170: TIRANA | G170: Staff | H170: 2 | I170: VIENNA | J170: 500 KM and 1999 KM | K170: 4 | L170: 550 | M170: 960 | N170: 1510
B171: Management | C171: P1 | D171: UNIVERSITY OF MONTENEGRO | E171: Montenegro | F171: PODGORICA | G171: Staff | H171: 2 | I171: BANSKA BISTRICA | J171: 500 KM and 1999 KM | K171: 4 | L171: 550 | M171: 960 | N171: 1510
B172: Management | C172: P2 | D172: UNIVERSITY OF VIENNA | E172: Austria | F172: VIENNA | G172: Staff | H172: 2 | I172: BANSKA BISTRICA | J172: 100 KM and 499 KM | K172: 4 | L172: 360 | M172: 960 | N172: 1320
B173: Management | C173: P3 | D173: UNIVERSITY OF MARIBOR | E173: Slovenia | F173: MARIBOR | G173: Staff | H173: 2 | I173: BANSKA BISTRICA | J173: 100 KM and 499 KM | K173: 4 | L173: 360 | M173: 960 | N173: 1320
B174: Management | C174: P4 | D174: FAC. OF EDU. AND REH, SCIENCES (UniZAGREB), | E174: Croatia | F174: ZAGREB | G174: Staff | H174: 2 | I174: BANSKA BISTRICA | J174: 100 KM and 499 KM | K174: 4 | L174: 360 | M174: 960 | N174: 1320
B175: Management | C175: P6 | D175: UNIVERSITY OF DONJA GORICA | E175: Montenegro | F175: PODGORICA | G175: Staff | H175: 2 | I175: BANSKA BISTRICA | J175: 500 KM and 1999 KM | K175: 4 | L175: 550 | M175: 960 | N175: 1510
B176: Management | C176: P7 | D176: UNIVERSITY OF SHKODRA "LUIGJ GURAKUQI" | E176: Albania | F176: SHKODRA | G176: Staff | H176: 2 | I176: BANSKA BISTRICA | J176: 500 KM and 1999 KM | K176: 4 | L176: 550 | M176: 960 | N176: 1510
B177: Management | C177: P8 | D177: POLYTECHNIC UNIVERSITY OF TIRANA | E177: Albania | F177: TIRANA | G177: Staff | H177: 2 | I177: BANSKA BISTRICA | J177: 500 KM and 1999 KM | K177: 4 | L177: 550 | M177: 960 | N177: 1510
B178: Management | C178: P9 | D178: UNIVERSITY OF VLORA "ISMAIL QEMALI" | E178: Albania | F178: VLORA | G178: Staff | H178: 2 | I178: BANSKA BISTRICA | J178: 500 KM and 1999 KM | K178: 4 | L178: 550 | M178: 960 | N178: 1510
B179: Management | C179: P10 | D179: METROPOLITAN UNIVERSITY OF TIRANA | E179: Albania | F179: TIRANA | G179: Staff | H179: 2 | I179: BANSKA BISTRICA | J179: 500 KM and 1999 KM | K179: 4 | L179: 550 | M179: 960 | N179: 1510
B180: Management | C180: P11 | D180: MINISTRY OF EDUCATION OF MONTENEGRO | E180: Montenegro | F180: PODGORICA | G180: Staff | H180: 2 | I180: BANSKA BISTRICA | J180: 500 KM and 1999 KM | K180: 4 | L180: 550 | M180: 960 | N180: 1510
B181: Management | C181: P12 | D181: MINISTRY OF SCIENCE OF MONTENEGRO | E181: Montenegro | F181: PODGORICA | G181: Staff | H181: 2 | I181: BANSKA BISTRICA | J181: 500 KM and 1999 KM | K181: 4 | L181: 550 | M181: 960 | N181: 1510
B182: Management | C182: P13 | D182: MINISTRY OF EDUCATION, SPORTS AND YOUTH OF ALBANIA | E182: Albania | F182: TIRANA | G182: Staff | H182: 2 | I182: BANSKA BISTRICA | J182: 500 KM and 1999 KM | K182: 4 | L182: 550 | M182: 960 | N182: 1510
B183: Management | C183: P14 | D183: CHAMBER OF ECONOMY OF MONTENEGRO | E183: Montenegro | F183: PODGORICA | G183: Staff | H183: 2 | I183: BANSKA BISTRICA | J183: 500 KM and 1999 KM | K183: 4 | L183: 550 | M183: 960 | N183: 1510
B184: Management | C184: P15 | D184: ASSOCIATION FOR PROFESSIONALS IN DOCTORAL EDUCATION - PRIDE | E184: Austria | F184: VIENNA | G184: Staff | H184: 2 | I184: BANSKA BISTRICA | J184: 100 KM and 499 KM | K184: 4 | L184: 360 | M184: 960 | N184: 1320
B185: Management | C185: P16 | D185: UNION OF CHAMBERS OF COMMERCE AND INDUSTRY OF ALBANIA | E185: Albania | F185: TIRANA | G185: Staff | H185: 2 | I185: BANSKA BISTRICA | J185: 500 KM and 1999 KM | K185: 4 | L185: 550 | M185: 960 | N185: 1510
B186: Management | C186: P2 | D186: UNIVERSITY OF VIENNA | E186: Austria | F186: VIENNA | G186: Staff | H186: 2 | I186: PODGORICA | J186: 500 KM and 1999 KM | K186: 4 | L186: 550 | M186: 960 | N186: 1510
B187: Management | C187: P3 | D187: UNIVERSITY OF MARIBOR | E187: Slovenia | F187: MARIBOR | G187: Staff | H187: 2 | I187: PODGORICA | J187: 500 KM and 1999 KM | K187: 4 | L187: 550 | M187: 960 | N187: 1510
B188: Management | C188: P4 | D188: FAC. OF EDU. AND REH, SCIENCES (UniZAGREB), | E188: Croatia | F188: ZAGREB | G188: Staff | H188: 2 | I188: PODGORICA | J188: 100 KM and 499 KM | K188: 4 | L188: 360 | M188: 960 | N188: 1320
B189: Management | C189: P5 | D189: UNIVERSITY OF BANSKA BISTRICA | E189: Slovakia | F189: BANSKA BISTRICA | G189: Staff | H189: 2 | I189: PODGORICA | J189: 500 KM and 1999 KM | K189: 4 | L189: 550 | M189: 960 | N189: 1510
B190: Management | C190: P6 | D190: UNIVERSITY OF DONJA GORICA | E190: Montenegro | F190: PODGORICA | G190: Staff | H190: 2 | I190: PODGORICA | J190: 0 KM and 9 KM | K190: 2 | L190: 0 | M190: 480 | N190: 480
B191: Management | C191: P7 | D191: UNIVERSITY OF SHKODRA "LUIGJ GURAKUQI" | E191: Albania | F191: SHKODRA | G191: Staff | H191: 2 | I191: PODGORICA | J191: 10 KM and 99 KM | K191: 3 | L191: 40 | M191: 720 | N191: 760
B192: Management | C192: P8 | D192: POLYTECHNIC UNIVERSITY OF TIRANA | E192: Albania | F192: TIRANA | G192: Staff | H192: 2 | I192: PODGORICA | J192: 100 KM and 499 KM | K192: 3 | L192: 360 | M192: 720 | N192: 1080
B193: Management | C193: P9 | D193: UNIVERSITY OF VLORA "ISMAIL QEMALI" | E193: Albania | F193: VLORA | G193: Staff | H193: 2 | I193: PODGORICA | J193: 100 KM and 499 KM | K193: 3 | L193: 360 | M193: 720 | N193: 1080
B194: Management | C194: P10 | D194: METROPOLITAN UNIVERSITY OF TIRANA | E194: Albania | F194: TIRANA | G194: Staff | H194: 2 | I194: PODGORICA | J194: 100 KM and 499 KM | K194: 3 | L194: 360 | M194: 720 | N194: 1080
B195: Management | C195: P11 | D195: MINISTRY OF EDUCATION OF MONTENEGRO | E195: Montenegro | F195: PODGORICA | G195: Staff | H195: 2 | I195: PODGORICA | J195: 0 KM and 9 KM | K195: 2 | L195: 0 | M195: 480 | N195: 480
B196: Management | C196: P12 | D196: MINISTRY OF SCIENCE OF MONTENEGRO | E196: Montenegro | F196: PODGORICA | G196: Staff | H196: 2 | I196: PODGORICA | J196: 0 KM and 9 KM | K196: 2 | L196: 0 | M196: 480 | N196: 480
B197: Management | C197: P13 | D197: MINISTRY OF EDUCATION, SPORTS AND YOUTH OF ALBANIA | E197: Albania | F197: TIRANA | G197: Staff | H197: 2 | I197: PODGORICA | J197: 100 KM and 499 KM | K197: 3 | L197: 360 | M197: 720 | N197: 1080
B198: Management | C198: P14 | D198: CHAMBER OF ECONOMY OF MONTENEGRO | E198: Montenegro | F198: PODGORICA | G198: Staff | H198: 2 | I198: PODGORICA | J198: 0 KM and 9 KM | K198: 2 | L198: 0 | M198: 480 | N198: 480
B199: Management | C199: P15 | D199: ASSOCIATION FOR PROFESSIONALS IN DOCTORAL EDUCATION - PRIDE | E199: Austria | F199: VIENNA | G199: Staff | H199: 2 | I199: PODGORICA | J199: 500 KM and 1999 KM | K199: 4 | L199: 550 | M199: 960 | N199: 1510
B200: Management | C200: P16 | D200: UNION OF CHAMBERS OF COMMERCE AND INDUSTRY OF ALBANIA | E200: Albania | F200: TIRANA | G200: Staff | H200: 2 | I200: PODGORICA | J200: 100 KM and 499 KM | K200: 3 | L200: 360 | M200: 720 | N200: 1080
B201: Management | C201: P1 | D201: UNIVERSITY OF MONTENEGRO | E201: Montenegro | F201: TIRANA | G201: Staff | H201: 2 | I201: TIRANA | J201: 100 KM and 499 KM | K201: 3 | L201: 360 | M201: 720 | N201: 1080
B202: Management | C202: P1 | D202: UNIVERSITY OF MONTENEGRO | E202: Montenegro | F202: TIRANA | G202: Staff | H202: 1 | I202: TIRANA | J202: 100 KM and 499 KM | K202: 3 | L202: 180 | M202: 360 | N202: 540

Sheet 4. Equipment Costs
B2: 4. Equipment Costs
B4: Total (EUR) | C4: =SUM(H:H) -> 209650
B11: Work Package | C11: Partner N° | D11: Name of Partner (to encode in overview sheet) | E11: Country (to encode in overview sheet) | F11: Nature, type and specifications of the item | G11: Amount Excluding VAT (EUR) | H11: Total (EUR) | I11: Check Data Encoding
D13: =IFERROR(IF(VLOOKUP(C13,PartnerN°Ref,2,FALSE)=0,"",VLOOKUP(C13,PartnerN°Ref,2,FALSE)),"") ->  | E13: =IFERROR(IF(OR(VLOOKUP(C13,PartnerN°Ref,4,FALSE)="Country not found",VLOOKUP(C13,PartnerN°Ref,3,FALSE)=0),"",VLOOKUP(C13,PartnerN°Ref,3,FALSE)),"") ->  | G13: 0 | H13: =IF(I13="Error",0,ROUND(G13,2)) -> 0 | I13: =IF(OR(COUNTIF(WorkPackage,B13)=0,COUNTIF(PartnerN°,C13)=0,D13="",COUNTIF(CountryEligEquip,E13)=0,F13="",ISNUMBER(G13)=FALSE,IF(ISNUMBER(G13)=TRUE,G13=INT(G13*100)/100=FALSE)),"Error","") -> Error
B14: Development | C14: P1 | D14: UNIVERSITY OF MONTENEGRO | E14: Montenegro | F14: Laptop, 600 Eur, 10 pcs = 6000 Eur Computer, 800 Eur, 15 pcs= 12000 Eur Printer/Skaner, 650 Euro, 1pcs = 650 Eur Video Projector, 400 Eur, 2pcs=800 Eur HDX 8000 (telekonferencing master system) + network devices + server =20000Eur TV/Monitor Display 55 inch, smart with base = 1500 Software for document managment system and following research and teaching performaces = 15000 Selected books and journals purchase for the courses within Joint School in Montenegro= 2000 | G14: 57950 | H14: 57950
B15: Development | C15: P6 | D15: UNIVERSITY OF DONJA GORICA | E15: Montenegro | F15: Laptop, 600 Eur, 5pcs = 3000 Eur Computer, 800 Eur, 5 pcs= 4000 Eur Printer/Skaner, 650 Euro, 1pcs = 650 Eur Video Projector, 400 Eur, 2pcs=800 Eur HDX 6000 around + network devices + server + 1 laptop=15000 Euro | G15: 23450 | H15: 23450
B16: Development | C16: P7 | D16: UNIVERSITY OF SHKODRA "LUIGJ GURAKUQI" | E16: Albania | F16: Laptop, 600 Eur, 10 pcs = 6000 Eur Computer, 800 Eur, 15 pcs= 12000 Eur Printer/Skaner, 650 Euro, 1pcs = 650 Eur Video Projector, 400 Eur, 2pcs=800 Eur HDX 8000 (telekonferencing master system) + network devices + server =20000Eur Software for measurement and visualisation research performances in tourism and economy = 10000 Selected books and journals purchase for the courses within Joint School in Montenegro= 1000 Slected books and journals purchase for the courses within Joint School in Albania= 2000 | G16: 38650 | H16: 38650
B17: Development | C17: P8 | D17: POLYTECHNIC UNIVERSITY OF TIRANA | E17: Albania | F17: Workstation computer, 8pcs, 12000 Eur Monitor 24 inch ,8, 1600 UPS, 8pcs, 1600 Xerox, Printer, Scaner 2, 5000 HDX 6000 around + network devices + server + 1 laptop=15000 Euro Books and journals for internal MARDS library = 2000 | G17: 40200 | H17: 40200
B18: Development | C18: P9 | D18: UNIVERSITY OF VLORA "ISMAIL QEMALI" | E18: Albania | F18: Laptop, 600 Eur, 5pcs = 3000 Eur Computer, 800 Eur, 5 pcs= 4000 Eur Printer/Skaner, 650 Euro, 1pcs = 650 Eur Video Projector, 400 Eur, 2pcs=800 Eur HDX 6000 around + network devices + server + 1 laptop=15000 Euro Selected books and journals purchase for internal library=1000 | G18: 24450 | H18: 24450
B19: Development | C19: P10 | D19: METROPOLITAN UNIVERSITY OF TIRANA | E19: Albania | F19: Laptop, 600 Eur, 5 pcs = 3000 Eur Computer, 800 Eur, 5 pcs= 4000 Eur Printer/Skaner, 650 Euro, 1pcs = 650 Eur Video Projector, 400 Eur, 2pcs=800 Eur HDX 6000 around + network devices + server + 1 laptop=15000 Euro TV/Monitor Display 55 inch, smart with base = 1500 | G19: 24950 | H19: 24950

Sheet 5. Subcontracting Costs
B2: 5. Subcontracting Costs
B4: Total (EUR) | C4: =SUM(H:H) -> 39000
B11: Work Package | C11: Partner N° | D11: Name of Partner (to encode in overview sheet) | E11: Country (to encode in overview sheet) | F11: Nature, type and specifications of the item | G11: Amount Excluding VAT (EUR) | H11: Total (EUR) | I11: Check Data Encoding
D13: =IFERROR(IF(VLOOKUP(C13,PartnerN°Ref,2,FALSE)=0,"",VLOOKUP(C13,PartnerN°Ref,2,FALSE)),"") ->  | E13: =IFERROR(IF(OR(VLOOKUP(C13,PartnerN°Ref,4,FALSE)="Country not found",VLOOKUP(C13,PartnerN°Ref,3,FALSE)=0),"",VLOOKUP(C13,PartnerN°Ref,3,FALSE)),"") ->  | G13: 0 | H13: =IF(I13="Error",0,ROUND(G13,2)) -> 0 | I13: =IF(OR(COUNTIF(WorkPackage,B13)=0,COUNTIF(PartnerN°,C13)=0,D13="",COUNTIF(CountryALL,E13)=0,F13="",ISNUMBER(G13)=FALSE,IF(ISNUMBER(G13)=TRUE,G13=INT(G13*100)/100=FALSE)),"Error","") -> Error
B14: Dissemination & Exploitation | C14: P1 | D14: UNIVERSITY OF MONTENEGRO | E14: Montenegro | F14: Translation of some dissemination documents to Montenegrin language | G14: 2500 | H14: 2500
B15: Dissemination & Exploitation | C15: P10 | D15: METROPOLITAN UNIVERSITY OF TIRANA | E15: Albania | F15: Translation of some dissemination documents to Albanian language | G15: 2500 | H15: 2500
B16: Quality Plan | C16: P1 | D16: UNIVERSITY OF MONTENEGRO | E16: Montenegro | F16: Engagement of two external experts for quality control activities (travel cost, costs of stay, staff cost). During their engagement they will visit all WBC universities in the second/third project year. | G16: 9000 | H16: 9000
B17: Development | C17: P1 | D17: UNIVERSITY OF MONTENEGRO | E17: Montenegro | F17: The expenses for accreditation of Joint PhD Programme in Montenegro | G17: 5000 | H17: 5000
B18: Development | C18: P7 | D18: UNIVERSITY OF SHKODRA "LUIGJ GURAKUQI" | E18: Albania | F18: The expenses for accreditation of Joint PhD Programme in Montenegro | G18: 5000 | H18: 5000
B19: Management | C19: P1 | D19: UNIVERSITY OF MONTENEGRO | E19: Montenegro | F19: Translation of some managmential documents to Montenegrin language | G19: 2500 | H19: 2500
B20: Management | C20: P10 | D20: METROPOLITAN UNIVERSITY OF TIRANA | E20: Albania | F20: Translation of some managmential documents to Montenegrin language | G20: 2500 | H20: 2500
B21: Management | C21: P1 | D21: UNIVERSITY OF MONTENEGRO | E21: Montenegro | F21: External financial audit by audit firm | G21: 10000 | H21: 10000
B22: Management | C22: P1 | D22: UNIVERSITY OF MONTENEGRO | E22: Montenegro | F22: Bank charges | G22: 0 | H22: 0

Sheet Co-financing
B2: Information for the Co-financing
B4: Total (EUR) | C4: =SUM(I:I) -> 25100
B11: Partner N° | C11: Name of Partner (to encode in overview sheet) | D11: Country (to encode in overview sheet) | E11: Item* | F11: Source of Co-financing** | G11: Justification*** | H11: Amount Excluding VAT (EUR) | I11: Total (EUR) | J11: Check Data Encoding
C13: =IFERROR(IF(VLOOKUP(B13,PartnerN°Ref,2,FALSE)=0,"",VLOOKUP(B13,PartnerN°Ref,2,FALSE)),"") ->  | D13: =IFERROR(IF(OR(VLOOKUP(B13,PartnerN°Ref,4,FALSE)="Country not found",VLOOKUP(B13,PartnerN°Ref,3,FALSE)=0),"",VLOOKUP(B13,PartnerN°Ref,3,FALSE)),"") ->  | H13: 0 | I13: =IF(J13="Error",0,ROUND(H13,2)) -> 0 | J13: =IF(OR(COUNTIF(PartnerN°,B13)=0,C13="",COUNTIF(CountryALL,D13)=0,E13="",F13="",G13="",ISNUMBER(H13)=FALSE,IF(ISNUMBER(H13)=TRUE,H13=INT(H13*100)/100=FALSE)),"Error","") -> Error
B14: P1 | C14: UNIVERSITY OF MONTENEGRO | D14: Montenegro | E14: Staff cost, dissemination printed, material, overheads | F14: own resources | G14: cretaion of PhD comptences courses 3 professors work 10 days x 8 hours | H14: 5000 | I14: 5000
B15: P2 | C15: UNIVERSITY OF VIENNA | D15: Austria | E15: Dissemination over EU PhD studens networks and events. Overheads | F15: own resources | G15: Will disseminate MARDS over EU space related to doctpral education. Also support in term of ocerheads during Vienna consortium meeting | H15: 3000 | I15: 3000
B16: P3 | C16: UNIVERSITY OF MARIBOR | D16: Slovenia | E16: Dissemination material, printed materials, overheads related to the project | F16: own resources | G16: Will prepare all printed material on dissemination via Slovenia as well some teaching material | H16: 3000 | I16: 3000
B17: P4 | C17: FAC. OF EDU. AND REH, SCIENCES (UniZAGREB), | D17: Croatia | E17: staff cost, overheads related to project | F17: own resources | G17: Staff cost on preparation guidelines for good doctoral education practices 2 profesors x 5 days | H17: 1500 | I17: 1500
B18: P5 | C18: UNIVERSITY OF BANSKA BISTRICA | D18: Slovakia | E18: Overheads for meeting organisation | F18: own resources | G18: As the third consortium meeting is planned in B. Bistrica, overheads will be covered by this institution | H18: 1500 | I18: 1500
B19: P6 | C19: UNIVERSITY OF DONJA GORICA | D19: Montenegro | E19: Dissemination material and event organisation overherheads | F19: own resources | G19: As UDG has design scholl and experiences in organisation events they will prepare material | H19: 1500 | I19: 1500
B20: P7 | C20: UNIVERSITY OF SHKODRA "LUIGJ GURAKUQI" | D20: Albania | E20: Staff contribution, overheads, translatiing | F20: own resources | G20: The staff of Unishk will contribute in lessons in their PhD school 5professors x 2 weeks courses | H20: 3000 | I20: 3000
B21: P8 | C21: POLYTECHNIC UNIVERSITY OF TIRANA | D21: Albania | E21: Staff contribution, overheads, translatiing | F21: own resources | G21: will contribute in lessons on Joint PhD Schools PhD 2 professors x 2 weeks courses | H21: 1500 | I21: 1500
B22: P9 | C22: UNIVERSITY OF VLORA "ISMAIL QEMALI" | D22: Albania | E22: Staff contribution, overheads, translatiing | F22: own resources | G22: will contribute in lessons on Joint PhD Schools PhD 2 professors x 2 weeks courses | H22: 1500 | I22: 1500
B23: P10 | C23: METROPOLITAN UNIVERSITY OF TIRANA | D23: Albania | E23: Staff contribution, overheads, translatiing | F23: own resources | G23: will contribute in lessons on Joint PhD Schools PhD 2 professors x 2 weeks courses | H23: 1500 | I23: 1500
B24: P11 | C24: MINISTRY OF EDUCATION OF MONTENEGRO | D24: Montenegro | E24: Accreditation administrative support | F24: own resources | G24: some printed materila considering accreditation | H24: 500 | I24: 500
B25: P12 | C25: MINISTRY OF SCIENCE OF MONTENEGRO | D25: Montenegro | E25: Accreditation administrative support | F25: own resources | G25: some printed materila considering accreditation | H25: 500 | I25: 500
B26: P13 | C26: MINISTRY OF EDUCATION, SPORTS AND YOUTH OF ALBANIA | D26: Albania | E26: Accreditation administrative support | F26: own resources | G26: some printed materila considering accreditation | H26: 500 | I26: 500
B27: P14 | C27: CHAMBER OF ECONOMY OF MONTENEGRO | D27: Montenegro | E27: dissemination printed material about MARDS | F27: own resources | G27: will print material and disseminatin through the its network | H27: 200 | I27: 200
B28: P15 | C28: ASSOCIATION FOR PROFESSIONALS IN DOCTORAL EDUCATION - PRIDE | D28: Austria | E28: dissemination printed material about MARDS | F28: own resources | G28: will print material and disseminatin through the its network | H28: 200 | I28: 200
B29: P16 | C29: UNION OF CHAMBERS OF COMMERCE AND INDUSTRY OF ALBANIA | D29: Albania | E29: dissemination printed material about MARDS | F29: own resources | G29: will print material and disseminatin through the its network | H29: 200 | I29: 200
B31: * e.g.: Equipment, Staff costs, travel costs and/or costs of stay, printing & publishing
B32: ** e.g.: governmental grant, organisation/institution's own resources
B33: *** e.g.: Preparation of training materials - 2 days x 7,5 hours x 3 persons x € 25

Sheet Breakdown & Project Funding
B2: Budget Breakdown by Workpackage / Budget Headings
B4: Work Package | C4: 1. Staff Costs | D4: 2. Travel Costs | E4: 3. Costs of Stay | F4: 4. Equipment Costs | G4: 5. Subcontracting Costs | H4: a) Exceptional Travel Costs | I4: Total (EUR)
B5: ='Unit Costs & Funding Rule'!P10 -> Preparation | C5: =SUMIF('1. Staff costs'!B:B,B5,'1. Staff costs'!S:S) -> 41945 | D5: =SUMIF('2-3. Travel Costs&Costs of Stay'!B:B,B5,'2-3. Travel Costs&Costs of Stay'!L:L) -> 7890 | E5: =SUMIF('2-3. Travel Costs&Costs of Stay'!B:B,B5,'2-3. Travel Costs&Costs of Stay'!M:M) -> 16560 | F5: =SUMIF('4. Equipment Costs'!B:B,B5,'4. Equipment Costs'!H:H) -> 0 | G5: =SUMIF('5. Subcontracting Costs'!B:B,B5,'5. Subcontracting Costs'!H:H) -> 0 | I5: =SUM(C5:G5) -> 66395
B6: ='Unit Costs & Funding Rule'!P11 -> Development | C6: =SUMIF('1. Staff costs'!B:B,B6,'1. Staff costs'!S:S) -> 73131 | D6: =SUMIF('2-3. Travel Costs&Costs of Stay'!B:B,B6,'2-3. Travel Costs&Costs of Stay'!L:L) -> 40205 | E6: =SUMIF('2-3. Travel Costs&Costs of Stay'!B:B,B6,'2-3. Travel Costs&Costs of Stay'!M:M) -> 141600 | F6: =SUMIF('4. Equipment Costs'!B:B,B6,'4. Equipment Costs'!H:H) -> 209650 | G6: =SUMIF('5. Subcontracting Costs'!B:B,B6,'5. Subcontracting Costs'!H:H) -> 10000 | I6: =SUM(C6:G6) -> 474586
B7: ='Unit Costs & Funding Rule'!P12 -> Quality Plan | C7: =SUMIF('1. Staff costs'!B:B,B7,'1. Staff costs'!S:S) -> 20739 | D7: =SUMIF('2-3. Travel Costs&Costs of Stay'!B:B,B7,'2-3. Travel Costs&Costs of Stay'!L:L) -> 1480 | E7: =SUMIF('2-3. Travel Costs&Costs of Stay'!B:B,B7,'2-3. Travel Costs&Costs of Stay'!M:M) -> 2400 | F7: =SUMIF('4. Equipment Costs'!B:B,B7,'4. Equipment Costs'!H:H) -> 0 | G7: =SUMIF('5. Subcontracting Costs'!B:B,B7,'5. Subcontracting Costs'!H:H) -> 9000 | I7: 33619
B8: ='Unit Costs & Funding Rule'!P13 -> Dissemination & Exploitation | C8: =SUMIF('1. Staff costs'!B:B,B8,'1. Staff costs'!S:S) -> 36610 | D8: =SUMIF('2-3. Travel Costs&Costs of Stay'!B:B,B8,'2-3. Travel Costs&Costs of Stay'!L:L) -> 4190 | E8: =SUMIF('2-3. Travel Costs&Costs of Stay'!B:B,B8,'2-3. Travel Costs&Costs of Stay'!M:M) -> 10285 | F8: =SUMIF('4. Equipment Costs'!B:B,B8,'4. Equipment Costs'!H:H) -> 0 | G8: =SUMIF('5. Subcontracting Costs'!B:B,B8,'5. Subcontracting Costs'!H:H) -> 5000 | I8: 56085
B9: ='Unit Costs & Funding Rule'!P14 -> Management | C9: =SUMIF('1. Staff costs'!B:B,B9,'1. Staff costs'!S:S) -> 147435 | D9: =SUMIF('2-3. Travel Costs&Costs of Stay'!B:B,B9,'2-3. Travel Costs&Costs of Stay'!L:L) -> 21760 | E9: =SUMIF('2-3. Travel Costs&Costs of Stay'!B:B,B9,'2-3. Travel Costs&Costs of Stay'!M:M) -> 45840 | F9: =SUMIF('4. Equipment Costs'!B:B,B9,'4. Equipment Costs'!H:H) -> 0 | G9: =SUMIF('5. Subcontracting Costs'!B:B,B9,'5. Subcontracting Costs'!H:H) -> 15000 | I9: 230035
B10: Total | C10: =SUM(C5:C9) -> 319860 | D10: 75525 | E10: 216685 | F10: 209650 | G10: =SUM(G5:G9) -> 39000 | H10: =IF(OR(Overview!C26="",Overview!D26=""),0,'2-3. Travel Costs&Costs of Stay'!J4) -> 7400 | I10: =SUM(C10:H10) -> 868120
B12: Budget Breakdown by Programme or Partner Countries / Budget Headings
B14: Countries | C14: 1. Staff Costs | D14: 2. Travel Costs + Exceptional Travel Costs | E14: 3. Costs of Stay | F14: 4. Equipment Costs | G14: 5. Subcontracting Costs | H14: Total (EUR)
B15: Programme Countries | C15: =SUMIF(Overview!$E$26:$E$80,B15,Overview!$F$26:$F$80) -> 127953 | D15: =SUMIF(Overview!$E$26:$E$80,B15,Overview!$G$26:$G$80) -> 19360 | E15: =SUMIF(Overview!$E$26:$E$80,B15,Overview!$H$26:$H$80) -> 42360 | F15: =SUMIF(Overview!$E$26:$E$80,B15,Overview!$I$26:$I$80) -> 0 | G15: =SUMIF(Overview!$E$26:$E$80,B15,Overview!$J$26:$J$80) -> 0 | H15: =SUM(C15:G15) -> 189673
B16: Partner Countries | C16: =SUMIF(Overview!$E$26:$E$80,B16,Overview!$F$26:$F$80) -> 191907 | D16: =SUMIF(Overview!$E$26:$E$80,B16,Overview!$G$26:$G$80) -> 63565 | E16: =SUMIF(Overview!$E$26:$E$80,B16,Overview!$H$26:$H$80) -> 174325 | F16: =SUMIF(Overview!$E$26:$E$80,B16,Overview!$I$26:$I$80) -> 209650 | G16: =SUMIF(Overview!$E$26:$E$80,B16,Overview!$J$26:$J$80) -> 39000 | H16: =SUM(C16:G16) -> 678447
B17: Total | C17: =SUM(C15:C16) -> 319860 | D17: 82925 | E17: 216685 | F17: 209650 | G17: 39000 | H17: =SUM(C17:G17) -> 868120
B19: Budget Breakdown by Partner / Work Package
B21: Partner N° | C21: ='Unit Costs & Funding Rule'!P10 -> Preparation | D21: ='Unit Costs & Funding Rule'!P11 -> Development | E21: ='Unit Costs & Funding Rule'!P12 -> Quality Plan | F21: ='Unit Costs & Funding Rule'!P13 -> Dissemination & Exploitation | G21: ='Unit Costs & Funding Rule'!P14 -> Management | H21: a) Exceptional Travel Costs | I21: Total (EUR)
B22: P1 | C22: =SUMIFS('1. Staff costs'!S:S,'1. Staff costs'!C:C,B22,'1. Staff costs'!B:B,$C$21)+SUMIFS('2-3. Travel Costs&Costs of Stay'!N:N,'2-3. Travel Costs&Costs of Stay'!C:C,B22,'2-3. Travel Costs&Costs of Stay'!B:B,$C$21)+SUMIFS('4. Equipment Costs'!H:H,'4. Equipment Costs'!C:C,B22,'4. Equipment Costs'!B:B,$C$21)+SUMIFS('5. Subcontracting Costs'!H:H,'5. Subcontracting Costs'!C:C,B22,'5. Subcontracting Costs'!B:B,$C$21) -> 6380 | D22: =SUMIFS('1. Staff costs'!S:S,'1. Staff costs'!C:C,B22,'1. Staff costs'!B:B,$D$21)+SUMIFS('2-3. Travel Costs&Costs of Stay'!N:N,'2-3. Travel Costs&Costs of Stay'!C:C,B22,'2-3. Travel Costs&Costs of Stay'!B:B,$D$21)+SUMIFS('4. Equipment Costs'!H:H,'4. Equipment Costs'!C:C,B22,'4. Equipment Costs'!B:B,$D$21)+SUMIFS('5. Subcontracting Costs'!H:H,'5. Subcontracting Costs'!C:C,B22,'5. Subcontracting Costs'!B:B,$D$21) -> 110045 | E22: =SUMIFS('1. Staff costs'!S:S,'1. Staff costs'!C:C,B22,'1. Staff costs'!B:B,$E$21)+SUMIFS('2-3. Travel Costs&Costs of Stay'!N:N,'2-3. Travel Costs&Costs of Stay'!C:C,B22,'2-3. Travel Costs&Costs of Stay'!B:B,$E$21)+SUMIFS('4. Equipment Costs'!H:H,'4. Equipment Costs'!C:C,B22,'4. Equipment Costs'!B:B,$E$21)+SUMIFS('5. Subcontracting Costs'!H:H,'5. Subcontracting Costs'!C:C,B22,'5. Subcontracting Costs'!B:B,$E$21) -> 13775 | F22: =SUMIFS('1. Staff costs'!S:S,'1. Staff costs'!C:C,B22,'1. Staff costs'!B:B,$B$8)+SUMIFS('2-3. Travel Costs&Costs of Stay'!N:N,'2-3. Travel Costs&Costs of Stay'!C:C,B22,'2-3. Travel Costs&Costs of Stay'!B:B,$B$8)+SUMIFS('4. Equipment Costs'!H:H,'4. Equipment Costs'!C:C,B22,'4. Equipment Costs'!B:B,$B$8)+SUMIFS('5. Subcontracting Costs'!H:H,'5. Subcontracting Costs'!C:C,B22,'5. Subcontracting Costs'!B:B,$B$8) -> 12070 | G22: =SUMIFS('1. Staff costs'!S:S,'1. Staff costs'!C:C,B22,'1. Staff costs'!B:B,$G$21)+SUMIFS('2-3. Travel Costs&Costs of Stay'!N:N,'2-3. Travel Costs&Costs of Stay'!C:C,B22,'2-3. Travel Costs&Costs of Stay'!B:B,$G$21)+SUMIFS('4. Equipment Costs'!H:H,'4. Equipment Costs'!C:C,B22,'4. Equipment Costs'!B:B,$G$21)+SUMIFS('5. Subcontracting Costs'!H:H,'5. Subcontracting Costs'!C:C,B22,'5. Subcontracting Costs'!B:B,$G$21) -> 51070 | H22: =IF(OR(Overview!C26="",Overview!D26=""),0,'2-3. Travel Costs&Costs of Stay'!J4) -> 7400 | I22: =SUM(C22:H22) -> 200740
B23: P2 | C23: =SUMIFS('1. Staff costs'!S:S,'1. Staff costs'!C:C,B23,'1. Staff costs'!B:B,$C$21)+SUMIFS('2-3. Travel Costs&Costs of Stay'!N:N,'2-3. Travel Costs&Costs of Stay'!C:C,B23,'2-3. Travel Costs&Costs of Stay'!B:B,$C$21)+SUMIFS('4. Equipment Costs'!H:H,'4. Equipment Costs'!C:C,B23,'4. Equipment Costs'!B:B,$C$21)+SUMIFS('5. Subcontracting Costs'!H:H,'5. Subcontracting Costs'!C:C,B23,'5. Subcontracting Costs'!B:B,$C$21) -> 10250 | D23: =SUMIFS('1. Staff costs'!S:S,'1. Staff costs'!C:C,B23,'1. Staff costs'!B:B,$D$21)+SUMIFS('2-3. Travel Costs&Costs of Stay'!N:N,'2-3. Travel Costs&Costs of Stay'!C:C,B23,'2-3. Travel Costs&Costs of Stay'!B:B,$D$21)+SUMIFS('4. Equipment Costs'!H:H,'4. Equipment Costs'!C:C,B23,'4. Equipment Costs'!B:B,$D$21)+SUMIFS('5. Subcontracting Costs'!H:H,'5. Subcontracting Costs'!C:C,B23,'5. Subcontracting Costs'!B:B,$D$21) -> 20125 | E23: =SUMIFS('1. Staff costs'!S:S,'1. Staff costs'!C:C,B23,'1. Staff costs'!B:B,$E$21)+SUMIFS('2-3. Travel Costs&Costs of Stay'!N:N,'2-3. Travel Costs&Costs of Stay'!C:C,B23,'2-3. Travel Costs&Costs of Stay'!B:B,$E$21)+SUMIFS('4. Equipment Costs'!H:H,'4. Equipment Costs'!C:C,B23,'4. Equipment Costs'!B:B,$E$21)+SUMIFS('5. Subcontracting Costs'!H:H,'5. Subcontracting Costs'!C:C,B23,'5. Subcontracting Costs'!B:B,$E$21) -> 3615 | F23: =SUMIFS('1. Staff costs'!S:S,'1. Staff costs'!C:C,B23,'1. Staff costs'!B:B,$B$8)+SUMIFS('2-3. Travel Costs&Costs of Stay'!N:N,'2-3. Travel Costs&Costs of Stay'!C:C,B23,'2-3. Travel Costs&Costs of Stay'!B:B,$B$8)+SUMIFS('4. Equipment Costs'!H:H,'4. Equipment Costs'!C:C,B23,'4. Equipment Costs'!B:B,$B$8)+SUMIFS('5. Subcontracting Costs'!H:H,'5. Subcontracting Costs'!C:C,B23,'5. Subcontracting Costs'!B:B,$B$8) -> 3045 | G23: =SUMIFS('1. Staff costs'!S:S,'1. Staff costs'!C:C,B23,'1. Staff costs'!B:B,$G$21)+SUMIFS('2-3. Travel Costs&Costs of Stay'!N:N,'2-3. Travel Costs&Costs of Stay'!C:C,B23,'2-3. Travel Costs&Costs of Stay'!B:B,$G$21)+SUMIFS('4. Equipment Costs'!H:H,'4. Equipment Costs'!C:C,B23,'4. Equipment Costs'!B:B,$G$21)+SUMIFS('5. Subcontracting Costs'!H:H,'5. Subcontracting Costs'!C:C,B23,'5. Subcontracting Costs'!B:B,$G$21) -> 27345 | H23: 0 | I23: =SUM(C23:H23) -> 64380
B24: P3 | C24: =SUMIFS('1. Staff costs'!S:S,'1. Staff costs'!C:C,B24,'1. Staff costs'!B:B,$C$21)+SUMIFS('2-3. Travel Costs&Costs of Stay'!N:N,'2-3. Travel Costs&Costs of Stay'!C:C,B24,'2-3. Travel Costs&Costs of Stay'!B:B,$C$21)+SUMIFS('4. Equipment Costs'!H:H,'4. Equipment Costs'!C:C,B24,'4. Equipment Costs'!B:B,$C$21)+SUMIFS('5. Subcontracting Costs'!H:H,'5. Subcontracting Costs'!C:C,B24,'5. Subcontracting Costs'!B:B,$C$21) -> 6445 | D24: =SUMIFS('1. Staff costs'!S:S,'1. Staff costs'!C:C,B24,'1. Staff costs'!B:B,$D$21)+SUMIFS('2-3. Travel Costs&Costs of Stay'!N:N,'2-3. Travel Costs&Costs of Stay'!C:C,B24,'2-3. Travel Costs&Costs of Stay'!B:B,$D$21)+SUMIFS('4. Equipment Costs'!H:H,'4. Equipment Costs'!C:C,B24,'4. Equipment Costs'!B:B,$D$21)+SUMIFS('5. Subcontracting Costs'!H:H,'5. Subcontracting Costs'!C:C,B24,'5. Subcontracting Costs'!B:B,$D$21) -> 9940 | E24: =SUMIFS('1. Staff costs'!S:S,'1. Staff costs'!C:C,B24,'1. Staff costs'!B:B,$E$21)+SUMIFS('2-3. Travel Costs&Costs of Stay'!N:N,'2-3. Travel Costs&Costs of Stay'!C:C,B24,'2-3. Travel Costs&Costs of Stay'!B:B,$E$21)+SUMIFS('4. Equipment Costs'!H:H,'4. Equipment Costs'!C:C,B24,'4. Equipment Costs'!B:B,$E$21)+SUMIFS('5. Subcontracting Costs'!H:H,'5. Subcontracting Costs'!C:C,B24,'5. Subcontracting Costs'!B:B,$E$21) -> 4645 | F24: =SUMIFS('1. Staff costs'!S:S,'1. Staff costs'!C:C,B24,'1. Staff costs'!B:B,$B$8)+SUMIFS('2-3. Travel Costs&Costs of Stay'!N:N,'2-3. Travel Costs&Costs of Stay'!C:C,B24,'2-3. Travel Costs&Costs of Stay'!B:B,$B$8)+SUMIFS('4. Equipment Costs'!H:H,'4. Equipment Costs'!C:C,B24,'4. Equipment Costs'!B:B,$B$8)+SUMIFS('5. Subcontracting Costs'!H:H,'5. Subcontracting Costs'!C:C,B24,'5. Subcontracting Costs'!B:B,$B$8) -> 2005 | G24: =SUMIFS('1. Staff costs'!S:S,'1. Staff costs'!C:C,B24,'1. Staff costs'!B:B,$G$21)+SUMIFS('2-3. Travel Costs&Costs of Stay'!N:N,'2-3. Travel Costs&Costs of Stay'!C:C,B24,'2-3. Travel Costs&Costs of Stay'!B:B,$G$21)+SUMIFS('4. Equipment Costs'!H:H,'4. Equipment Costs'!C:C,B24,'4. Equipment Costs'!B:B,$G$21)+SUMIFS('5. Subcontracting Costs'!H:H,'5. Subcontracting Costs'!C:C,B24,'5. Subcontracting Costs'!B:B,$G$21) -> 16405 | H24: 0 | I24: 39440
B25: P4 | C25: =SUMIFS('1. Staff costs'!S:S,'1. Staff costs'!C:C,B25,'1. Staff costs'!B:B,$C$21)+SUMIFS('2-3. Travel Costs&Costs of Stay'!N:N,'2-3. Travel Costs&Costs of Stay'!C:C,B25,'2-3. Travel Costs&Costs of Stay'!B:B,$C$21)+SUMIFS('4. Equipment Costs'!H:H,'4. Equipment Costs'!C:C,B25,'4. Equipment Costs'!B:B,$C$21)+SUMIFS('5. Subcontracting Costs'!H:H,'5. Subcontracting Costs'!C:C,B25,'5. Subcontracting Costs'!B:B,$C$21) -> 6900 | D25: =SUMIFS('1. Staff costs'!S:S,'1. Staff costs'!C:C,B25,'1. Staff costs'!B:B,$D$21)+SUMIFS('2-3. Travel Costs&Costs of Stay'!N:N,'2-3. Travel Costs&Costs of Stay'!C:C,B25,'2-3. Travel Costs&Costs of Stay'!B:B,$D$21)+SUMIFS('4. Equipment Costs'!H:H,'4. Equipment Costs'!C:C,B25,'4. Equipment Costs'!B:B,$D$21)+SUMIFS('5. Subcontracting Costs'!H:H,'5. Subcontracting Costs'!C:C,B25,'5. Subcontracting Costs'!B:B,$D$21) -> 11605 | E25: =SUMIFS('1. Staff costs'!S:S,'1. Staff costs'!C:C,B25,'1. Staff costs'!B:B,$E$21)+SUMIFS('2-3. Travel Costs&Costs of Stay'!N:N,'2-3. Travel Costs&Costs of Stay'!C:C,B25,'2-3. Travel Costs&Costs of Stay'!B:B,$E$21)+SUMIFS('4. Equipment Costs'!H:H,'4. Equipment Costs'!C:C,B25,'4. Equipment Costs'!B:B,$E$21)+SUMIFS('5. Subcontracting Costs'!H:H,'5. Subcontracting Costs'!C:C,B25,'5. Subcontracting Costs'!B:B,$E$21) -> 1110 | F25: =SUMIFS('1. Staff costs'!S:S,'1. Staff costs'!C:C,B25,'1. Staff costs'!B:B,$B$8)+SUMIFS('2-3. Travel Costs&Costs of Stay'!N:N,'2-3. Travel Costs&Costs of Stay'!C:C,B25,'2-3. Travel Costs&Costs of Stay'!B:B,$B$8)+SUMIFS('4. Equipment Costs'!H:H,'4. Equipment Costs'!C:C,B25,'4. Equipment Costs'!B:B,$B$8)+SUMIFS('5. Subcontracting Costs'!H:H,'5. Subcontracting Costs'!C:C,B25,'5. Subcontracting Costs'!B:B,$B$8) -> 2485 | G25: =SUMIFS('1. Staff costs'!S:S,'1. Staff costs'!C:C,B25,'1. Staff costs'!B:B,$G$21)+SUMIFS('2-3. Travel Costs&Costs of Stay'!N:N,'2-3. Travel Costs&Costs of Stay'!C:C,B25,'2-3. Travel Costs&Costs of Stay'!B:B,$G$21)+SUMIFS('4. Equipment Costs'!H:H,'4. Equipment Costs'!C:C,B25,'4. Equipment Costs'!B:B,$G$21)+SUMIFS('5. Subcontracting Costs'!H:H,'5. Subcontracting Costs'!C:C,B25,'5. Subcontracting Costs'!B:B,$G$21) -> 11685 | H25: 0 | I25: 33785
B26: P5 | C26: =SUMIFS('1. Staff costs'!S:S,'1. Staff costs'!C:C,B26,'1. Staff costs'!B:B,$C$21)+SUMIFS('2-3. Travel Costs&Costs of Stay'!N:N,'2-3. Travel Costs&Costs of Stay'!C:C,B26,'2-3. Travel Costs&Costs of Stay'!B:B,$C$21)+SUMIFS('4. Equipment Costs'!H:H,'4. Equipment Costs'!C:C,B26,'4. Equipment Costs'!B:B,$C$21)+SUMIFS('5. Subcontracting Costs'!H:H,'5. Subcontracting Costs'!C:C,B26,'5. Subcontracting Costs'!B:B,$C$21) -> 8600 | D26: =SUMIFS('1. Staff costs'!S:S,'1. Staff costs'!C:C,B26,'1. Staff costs'!B:B,$D$21)+SUMIFS('2-3. Travel Costs&Costs of Stay'!N:N,'2-3. Travel Costs&Costs of Stay'!C:C,B26,'2-3. Travel Costs&Costs of Stay'!B:B,$D$21)+SUMIFS('4. Equipment Costs'!H:H,'4. Equipment Costs'!C:C,B26,'4. Equipment Costs'!B:B,$D$21)+SUMIFS('5. Subcontracting Costs'!H:H,'5. Subcontracting Costs'!C:C,B26,'5. Subcontracting Costs'!B:B,$D$21) -> 11890 | E26: =SUMIFS('1. Staff costs'!S:S,'1. Staff costs'!C:C,B26,'1. Staff costs'!B:B,$E$21)+SUMIFS('2-3. Travel Costs&Costs of Stay'!N:N,'2-3. Travel Costs&Costs of Stay'!C:C,B26,'2-3. Travel Costs&Costs of Stay'!B:B,$E$21)+SUMIFS('4. Equipment Costs'!H:H,'4. Equipment Costs'!C:C,B26,'4. Equipment Costs'!B:B,$E$21)+SUMIFS('5. Subcontracting Costs'!H:H,'5. Subcontracting Costs'!C:C,B26,'5. Subcontracting Costs'!B:B,$E$21) -> 1110 | F26: =SUMIFS('1. Staff costs'!S:S,'1. Staff costs'!C:C,B26,'1. Staff costs'!B:B,$B$8)+SUMIFS('2-3. Travel Costs&Costs of Stay'!N:N,'2-3. Travel Costs&Costs of Stay'!C:C,B26,'2-3. Travel Costs&Costs of Stay'!B:B,$B$8)+SUMIFS('4. Equipment Costs'!H:H,'4. Equipment Costs'!C:C,B26,'4. Equipment Costs'!B:B,$B$8)+SUMIFS('5. Subcontracting Costs'!H:H,'5. Subcontracting Costs'!C:C,B26,'5. Subcontracting Costs'!B:B,$B$8) -> 2485 | G26: =SUMIFS('1. Staff costs'!S:S,'1. Staff costs'!C:C,B26,'1. Staff costs'!B:B,$G$21)+SUMIFS('2-3. Travel Costs&Costs of Stay'!N:N,'2-3. Travel Costs&Costs of Stay'!C:C,B26,'2-3. Travel Costs&Costs of Stay'!B:B,$G$21)+SUMIFS('4. Equipment Costs'!H:H,'4. Equipment Costs'!C:C,B26,'4. Equipment Costs'!B:B,$G$21)+SUMIFS('5. Subcontracting Costs'!H:H,'5. Subcontracting Costs'!C:C,B26,'5. Subcontracting Costs'!B:B,$G$21) -> 10780 | H26: 0 | I26: 34865
B27: P6 | C27: =SUMIFS('1. Staff costs'!S:S,'1. Staff costs'!C:C,B27,'1. Staff costs'!B:B,$C$21)+SUMIFS('2-3. Travel Costs&Costs of Stay'!N:N,'2-3. Travel Costs&Costs of Stay'!C:C,B27,'2-3. Travel Costs&Costs of Stay'!B:B,$C$21)+SUMIFS('4. Equipment Costs'!H:H,'4. Equipment Costs'!C:C,B27,'4. Equipment Costs'!B:B,$C$21)+SUMIFS('5. Subcontracting Costs'!H:H,'5. Subcontracting Costs'!C:C,B27,'5. Subcontracting Costs'!B:B,$C$21) -> 3320 | D27: =SUMIFS('1. Staff costs'!S:S,'1. Staff costs'!C:C,B27,'1. Staff costs'!B:B,$D$21)+SUMIFS('2-3. Travel Costs&Costs of Stay'!N:N,'2-3. Travel Costs&Costs of Stay'!C:C,B27,'2-3. Travel Costs&Costs of Stay'!B:B,$D$21)+SUMIFS('4. Equipment Costs'!H:H,'4. Equipment Costs'!C:C,B27,'4. Equipment Costs'!B:B,$D$21)+SUMIFS('5. Subcontracting Costs'!H:H,'5. Subcontracting Costs'!C:C,B27,'5. Subcontracting Costs'!B:B,$D$21) -> 44590 | E27: =SUMIFS('1. Staff costs'!S:S,'1. Staff costs'!C:C,B27,'1. Staff costs'!B:B,$E$21)+SUMIFS('2-3. Travel Costs&Costs of Stay'!N:N,'2-3. Travel Costs&Costs of Stay'!C:C,B27,'2-3. Travel Costs&Costs of Stay'!B:B,$E$21)+SUMIFS('4. Equipment Costs'!H:H,'4. Equipment Costs'!C:C,B27,'4. Equipment Costs'!B:B,$E$21)+SUMIFS('5. Subcontracting Costs'!H:H,'5. Subcontracting Costs'!C:C,B27,'5. Subcontracting Costs'!B:B,$E$21) -> 800 | F27: =SUMIFS('1. Staff costs'!S:S,'1. Staff costs'!C:C,B27,'1. Staff costs'!B:B,$B$8)+SUMIFS('2-3. Travel Costs&Costs of Stay'!N:N,'2-3. Travel Costs&Costs of Stay'!C:C,B27,'2-3. Travel Costs&Costs of Stay'!B:B,$B$8)+SUMIFS('4. Equipment Costs'!H:H,'4. Equipment Costs'!C:C,B27,'4. Equipment Costs'!B:B,$B$8)+SUMIFS('5. Subcontracting Costs'!H:H,'5. Subcontracting Costs'!C:C,B27,'5. Subcontracting Costs'!B:B,$B$8) -> 1600 | G27: =SUMIFS('1. Staff costs'!S:S,'1. Staff costs'!C:C,B27,'1. Staff costs'!B:B,$G$21)+SUMIFS('2-3. Travel Costs&Costs of Stay'!N:N,'2-3. Travel Costs&Costs of Stay'!C:C,B27,'2-3. Travel Costs&Costs of Stay'!B:B,$G$21)+SUMIFS('4. Equipment Costs'!H:H,'4. Equipment Costs'!C:C,B27,'4. Equipment Costs'!B:B,$G$21)+SUMIFS('5. Subcontracting Costs'!H:H,'5. Subcontracting Costs'!C:C,B27,'5. Subcontracting Costs'!B:B,$G$21) -> 11095 | H27: 0 | I27: 61405
B28: P7 | C28: =SUMIFS('1. Staff costs'!S:S,'1. Staff costs'!C:C,B28,'1. Staff costs'!B:B,$C$21)+SUMIFS('2-3. Travel Costs&Costs of Stay'!N:N,'2-3. Travel Costs&Costs of Stay'!C:C,B28,'2-3. Travel Costs&Costs of Stay'!B:B,$C$21)+SUMIFS('4. Equipment Costs'!H:H,'4. Equipment Costs'!C:C,B28,'4. Equipment Costs'!B:B,$C$21)+SUMIFS('5. Subcontracting Costs'!H:H,'5. Subcontracting Costs'!C:C,B28,'5. Subcontracting Costs'!B:B,$C$21) -> 3940 | D28: =SUMIFS('1. Staff costs'!S:S,'1. Staff costs'!C:C,B28,'1. Staff costs'!B:B,$D$21)+SUMIFS('2-3. Travel Costs&Costs of Stay'!N:N,'2-3. Travel Costs&Costs of Stay'!C:C,B28,'2-3. Travel Costs&Costs of Stay'!B:B,$D$21)+SUMIFS('4. Equipment Costs'!H:H,'4. Equipment Costs'!C:C,B28,'4. Equipment Costs'!B:B,$D$21)+SUMIFS('5. Subcontracting Costs'!H:H,'5. Subcontracting Costs'!C:C,B28,'5. Subcontracting Costs'!B:B,$D$21) -> 84000 | E28: =SUMIFS('1. Staff costs'!S:S,'1. Staff costs'!C:C,B28,'1. Staff costs'!B:B,$E$21)+SUMIFS('2-3. Travel Costs&Costs of Stay'!N:N,'2-3. Travel Costs&Costs of Stay'!C:C,B28,'2-3. Travel Costs&Costs of Stay'!B:B,$E$21)+SUMIFS('4. Equipment Costs'!H:H,'4. Equipment Costs'!C:C,B28,'4. Equipment Costs'!B:B,$E$21)+SUMIFS('5. Subcontracting Costs'!H:H,'5. Subcontracting Costs'!C:C,B28,'5. Subcontracting Costs'!B:B,$E$21) -> 2000 | F28: =SUMIFS('1. Staff costs'!S:S,'1. Staff costs'!C:C,B28,'1. Staff costs'!B:B,$B$8)+SUMIFS('2-3. Travel Costs&Costs of Stay'!N:N,'2-3. Travel Costs&Costs of Stay'!C:C,B28,'2-3. Travel Costs&Costs of Stay'!B:B,$B$8)+SUMIFS('4. Equipment Costs'!H:H,'4. Equipment Costs'!C:C,B28,'4. Equipment Costs'!B:B,$B$8)+SUMIFS('5. Subcontracting Costs'!H:H,'5. Subcontracting Costs'!C:C,B28,'5. Subcontracting Costs'!B:B,$B$8) -> 6890 | G28: =SUMIFS('1. Staff costs'!S:S,'1. Staff costs'!C:C,B28,'1. Staff costs'!B:B,$G$21)+SUMIFS('2-3. Travel Costs&Costs of Stay'!N:N,'2-3. Travel Costs&Costs of Stay'!C:C,B28,'2-3. Travel Costs&Costs of Stay'!B:B,$G$21)+SUMIFS('4. Equipment Costs'!H:H,'4. Equipment Costs'!C:C,B28,'4. Equipment Costs'!B:B,$G$21)+SUMIFS('5. Subcontracting Costs'!H:H,'5. Subcontracting Costs'!C:C,B28,'5. Subcontracting Costs'!B:B,$G$21) -> 18885 | H28: 0 | I28: 115715
B29: P8 | C29: =SUMIFS('1. Staff costs'!S:S,'1. Staff costs'!C:C,B29,'1. Staff costs'!B:B,$C$21)+SUMIFS('2-3. Travel Costs&Costs of Stay'!N:N,'2-3. Travel Costs&Costs of Stay'!C:C,B29,'2-3. Travel Costs&Costs of Stay'!B:B,$C$21)+SUMIFS('4. Equipment Costs'!H:H,'4. Equipment Costs'!C:C,B29,'4. Equipment Costs'!B:B,$C$21)+SUMIFS('5. Subcontracting Costs'!H:H,'5. Subcontracting Costs'!C:C,B29,'5. Subcontracting Costs'!B:B,$C$21) -> 3080 | D29: =SUMIFS('1. Staff costs'!S:S,'1. Staff costs'!C:C,B29,'1. Staff costs'!B:B,$D$21)+SUMIFS('2-3. Travel Costs&Costs of Stay'!N:N,'2-3. Travel Costs&Costs of Stay'!C:C,B29,'2-3. Travel Costs&Costs of Stay'!B:B,$D$21)+SUMIFS('4. Equipment Costs'!H:H,'4. Equipment Costs'!C:C,B29,'4. Equipment Costs'!B:B,$D$21)+SUMIFS('5. Subcontracting Costs'!H:H,'5. Subcontracting Costs'!C:C,B29,'5. Subcontracting Costs'!B:B,$D$21) -> 70320 | E29: =SUMIFS('1. Staff costs'!S:S,'1. Staff costs'!C:C,B29,'1. Staff costs'!B:B,$E$21)+SUMIFS('2-3. Travel Costs&Costs of Stay'!N:N,'2-3. Travel Costs&Costs of Stay'!C:C,B29,'2-3. Travel Costs&Costs of Stay'!B:B,$E$21)+SUMIFS('4. Equipment Costs'!H:H,'4. Equipment Costs'!C:C,B29,'4. Equipment Costs'!B:B,$E$21)+SUMIFS('5. Subcontracting Costs'!H:H,'5. Subcontracting Costs'!C:C,B29,'5. Subcontracting Costs'!B:B,$E$21) -> 1200 | F29: =SUMIFS('1. Staff costs'!S:S,'1. Staff costs'!C:C,B29,'1. Staff costs'!B:B,$B$8)+SUMIFS('2-3. Travel Costs&Costs of Stay'!N:N,'2-3. Travel Costs&Costs of Stay'!C:C,B29,'2-3. Travel Costs&Costs of Stay'!B:B,$B$8)+SUMIFS('4. Equipment Costs'!H:H,'4. Equipment Costs'!C:C,B29,'4. Equipment Costs'!B:B,$B$8)+SUMIFS('5. Subcontracting Costs'!H:H,'5. Subcontracting Costs'!C:C,B29,'5. Subcontracting Costs'!B:B,$B$8) -> 2485 | G29: =SUMIFS('1. Staff costs'!S:S,'1. Staff costs'!C:C,B29,'1. Staff costs'!B:B,$G$21)+SUMIFS('2-3. Travel Costs&Costs of Stay'!N:N,'2-3. Travel Costs&Costs of Stay'!C:C,B29,'2-3. Travel Costs&Costs of Stay'!B:B,$G$21)+SUMIFS('4. Equipment Costs'!H:H,'4. Equipment Costs'!C:C,B29,'4. Equipment Costs'!B:B,$G$21)+SUMIFS('5. Subcontracting Costs'!H:H,'5. Subcontracting Costs'!C:C,B29,'5. Subcontracting Costs'!B:B,$G$21) -> 12270 | H29: 0 | I29: 89355
B30: P9 | C30: =SUMIFS('1. Staff costs'!S:S,'1. Staff costs'!C:C,B30,'1. Staff costs'!B:B,$C$21)+SUMIFS('2-3. Travel Costs&Costs of Stay'!N:N,'2-3. Travel Costs&Costs of Stay'!C:C,B30,'2-3. Travel Costs&Costs of Stay'!B:B,$C$21)+SUMIFS('4. Equipment Costs'!H:H,'4. Equipment Costs'!C:C,B30,'4. Equipment Costs'!B:B,$C$21)+SUMIFS('5. Subcontracting Costs'!H:H,'5. Subcontracting Costs'!C:C,B30,'5. Subcontracting Costs'!B:B,$C$21) -> 3080 | D30: =SUMIFS('1. Staff costs'!S:S,'1. Staff costs'!C:C,B30,'1. Staff costs'!B:B,$D$21)+SUMIFS('2-3. Travel Costs&Costs of Stay'!N:N,'2-3. Travel Costs&Costs of Stay'!C:C,B30,'2-3. Travel Costs&Costs of Stay'!B:B,$D$21)+SUMIFS('4. Equipment Costs'!H:H,'4. Equipment Costs'!C:C,B30,'4. Equipment Costs'!B:B,$D$21)+SUMIFS('5. Subcontracting Costs'!H:H,'5. Subcontracting Costs'!C:C,B30,'5. Subcontracting Costs'!B:B,$D$21) -> 54630 | E30: =SUMIFS('1. Staff costs'!S:S,'1. Staff costs'!C:C,B30,'1. Staff costs'!B:B,$E$21)+SUMIFS('2-3. Travel Costs&Costs of Stay'!N:N,'2-3. Travel Costs&Costs of Stay'!C:C,B30,'2-3. Travel Costs&Costs of Stay'!B:B,$E$21)+SUMIFS('4. Equipment Costs'!H:H,'4. Equipment Costs'!C:C,B30,'4. Equipment Costs'!B:B,$E$21)+SUMIFS('5. Subcontracting Costs'!H:H,'5. Subcontracting Costs'!C:C,B30,'5. Subcontracting Costs'!B:B,$E$21) -> 1200 | F30: =SUMIFS('1. Staff costs'!S:S,'1. Staff costs'!C:C,B30,'1. Staff costs'!B:B,$B$8)+SUMIFS('2-3. Travel Costs&Costs of Stay'!N:N,'2-3. Travel Costs&Costs of Stay'!C:C,B30,'2-3. Travel Costs&Costs of Stay'!B:B,$B$8)+SUMIFS('4. Equipment Costs'!H:H,'4. Equipment Costs'!C:C,B30,'4. Equipment Costs'!B:B,$B$8)+SUMIFS('5. Subcontracting Costs'!H:H,'5. Subcontracting Costs'!C:C,B30,'5. Subcontracting Costs'!B:B,$B$8) -> 2485 | G30: =SUMIFS('1. Staff costs'!S:S,'1. Staff costs'!C:C,B30,'1. Staff costs'!B:B,$G$21)+SUMIFS('2-3. Travel Costs&Costs of Stay'!N:N,'2-3. Travel Costs&Costs of Stay'!C:C,B30,'2-3. Travel Costs&Costs of Stay'!B:B,$G$21)+SUMIFS('4. Equipment Costs'!H:H,'4. Equipment Costs'!C:C,B30,'4. Equipment Costs'!B:B,$G$21)+SUMIFS('5. Subcontracting Costs'!H:H,'5. Subcontracting Costs'!C:C,B30,'5. Subcontracting Costs'!B:B,$G$21) -> 10900 | H30: 0 | I30: 72295
B31: P10 | C31: =SUMIFS('1. Staff costs'!S:S,'1. Staff costs'!C:C,B31,'1. Staff costs'!B:B,$C$21)+SUMIFS('2-3. Travel Costs&Costs of Stay'!N:N,'2-3. Travel Costs&Costs of Stay'!C:C,B31,'2-3. Travel Costs&Costs of Stay'!B:B,$C$21)+SUMIFS('4. Equipment Costs'!H:H,'4. Equipment Costs'!C:C,B31,'4. Equipment Costs'!B:B,$C$21)+SUMIFS('5. Subcontracting Costs'!H:H,'5. Subcontracting Costs'!C:C,B31,'5. Subcontracting Costs'!B:B,$C$21) -> 3080 | D31: =SUMIFS('1. Staff costs'!S:S,'1. Staff costs'!C:C,B31,'1. Staff costs'!B:B,$D$21)+SUMIFS('2-3. Travel Costs&Costs of Stay'!N:N,'2-3. Travel Costs&Costs of Stay'!C:C,B31,'2-3. Travel Costs&Costs of Stay'!B:B,$D$21)+SUMIFS('4. Equipment Costs'!H:H,'4. Equipment Costs'!C:C,B31,'4. Equipment Costs'!B:B,$D$21)+SUMIFS('5. Subcontracting Costs'!H:H,'5. Subcontracting Costs'!C:C,B31,'5. Subcontracting Costs'!B:B,$D$21) -> 49350 | E31: =SUMIFS('1. Staff costs'!S:S,'1. Staff costs'!C:C,B31,'1. Staff costs'!B:B,$E$21)+SUMIFS('2-3. Travel Costs&Costs of Stay'!N:N,'2-3. Travel Costs&Costs of Stay'!C:C,B31,'2-3. Travel Costs&Costs of Stay'!B:B,$E$21)+SUMIFS('4. Equipment Costs'!H:H,'4. Equipment Costs'!C:C,B31,'4. Equipment Costs'!B:B,$E$21)+SUMIFS('5. Subcontracting Costs'!H:H,'5. Subcontracting Costs'!C:C,B31,'5. Subcontracting Costs'!B:B,$E$21) -> 1200 | F31: =SUMIFS('1. Staff costs'!S:S,'1. Staff costs'!C:C,B31,'1. Staff costs'!B:B,$B$8)+SUMIFS('2-3. Travel Costs&Costs of Stay'!N:N,'2-3. Travel Costs&Costs of Stay'!C:C,B31,'2-3. Travel Costs&Costs of Stay'!B:B,$B$8)+SUMIFS('4. Equipment Costs'!H:H,'4. Equipment Costs'!C:C,B31,'4. Equipment Costs'!B:B,$B$8)+SUMIFS('5. Subcontracting Costs'!H:H,'5. Subcontracting Costs'!C:C,B31,'5. Subcontracting Costs'!B:B,$B$8) -> 8975 | G31: =SUMIFS('1. Staff costs'!S:S,'1. Staff costs'!C:C,B31,'1. Staff costs'!B:B,$G$21)+SUMIFS('2-3. Travel Costs&Costs of Stay'!N:N,'2-3. Travel Costs&Costs of Stay'!C:C,B31,'2-3. Travel Costs&Costs of Stay'!B:B,$G$21)+SUMIFS('4. Equipment Costs'!H:H,'4. Equipment Costs'!C:C,B31,'4. Equipment Costs'!B:B,$G$21)+SUMIFS('5. Subcontracting Costs'!H:H,'5. Subcontracting Costs'!C:C,B31,'5. Subcontracting Costs'!B:B,$G$21) -> 17450 | H31: 0 | I31: 80055
B32: P11 | C32: =SUMIFS('1. Staff costs'!S:S,'1. Staff costs'!C:C,B32,'1. Staff costs'!B:B,$C$21)+SUMIFS('2-3. Travel Costs&Costs of Stay'!N:N,'2-3. Travel Costs&Costs of Stay'!C:C,B32,'2-3. Travel Costs&Costs of Stay'!B:B,$C$21)+SUMIFS('4. Equipment Costs'!H:H,'4. Equipment Costs'!C:C,B32,'4. Equipment Costs'!B:B,$C$21)+SUMIFS('5. Subcontracting Costs'!H:H,'5. Subcontracting Costs'!C:C,B32,'5. Subcontracting Costs'!B:B,$C$21) -> 2280 | D32: =SUMIFS('1. Staff costs'!S:S,'1. Staff costs'!C:C,B32,'1. Staff costs'!B:B,$D$21)+SUMIFS('2-3. Travel Costs&Costs of Stay'!N:N,'2-3. Travel Costs&Costs of Stay'!C:C,B32,'2-3. Travel Costs&Costs of Stay'!B:B,$D$21)+SUMIFS('4. Equipment Costs'!H:H,'4. Equipment Costs'!C:C,B32,'4. Equipment Costs'!B:B,$D$21)+SUMIFS('5. Subcontracting Costs'!H:H,'5. Subcontracting Costs'!C:C,B32,'5. Subcontracting Costs'!B:B,$D$21) -> 1955 | E32: =SUMIFS('1. Staff costs'!S:S,'1. Staff costs'!C:C,B32,'1. Staff costs'!B:B,$E$21)+SUMIFS('2-3. Travel Costs&Costs of Stay'!N:N,'2-3. Travel Costs&Costs of Stay'!C:C,B32,'2-3. Travel Costs&Costs of Stay'!B:B,$E$21)+SUMIFS('4. Equipment Costs'!H:H,'4. Equipment Costs'!C:C,B32,'4. Equipment Costs'!B:B,$E$21)+SUMIFS('5. Subcontracting Costs'!H:H,'5. Subcontracting Costs'!C:C,B32,'5. Subcontracting Costs'!B:B,$E$21) -> 540 | F32: =SUMIFS('1. Staff costs'!S:S,'1. Staff costs'!C:C,B32,'1. Staff costs'!B:B,$B$8)+SUMIFS('2-3. Travel Costs&Costs of Stay'!N:N,'2-3. Travel Costs&Costs of Stay'!C:C,B32,'2-3. Travel Costs&Costs of Stay'!B:B,$B$8)+SUMIFS('4. Equipment Costs'!H:H,'4. Equipment Costs'!C:C,B32,'4. Equipment Costs'!B:B,$B$8)+SUMIFS('5. Subcontracting Costs'!H:H,'5. Subcontracting Costs'!C:C,B32,'5. Subcontracting Costs'!B:B,$B$8) -> 1580 | G32: =SUMIFS('1. Staff costs'!S:S,'1. Staff costs'!C:C,B32,'1. Staff costs'!B:B,$G$21)+SUMIFS('2-3. Travel Costs&Costs of Stay'!N:N,'2-3. Travel Costs&Costs of Stay'!C:C,B32,'2-3. Travel Costs&Costs of Stay'!B:B,$G$21)+SUMIFS('4. Equipment Costs'!H:H,'4. Equipment Costs'!C:C,B32,'4. Equipment Costs'!B:B,$G$21)+SUMIFS('5. Subcontracting Costs'!H:H,'5. Subcontracting Costs'!C:C,B32,'5. Subcontracting Costs'!B:B,$G$21) -> 6185 | H32: 0 | I32: 12540
B33: P12 | C33: =SUMIFS('1. Staff costs'!S:S,'1. Staff costs'!C:C,B33,'1. Staff costs'!B:B,$C$21)+SUMIFS('2-3. Travel Costs&Costs of Stay'!N:N,'2-3. Travel Costs&Costs of Stay'!C:C,B33,'2-3. Travel Costs&Costs of Stay'!B:B,$C$21)+SUMIFS('4. Equipment Costs'!H:H,'4. Equipment Costs'!C:C,B33,'4. Equipment Costs'!B:B,$C$21)+SUMIFS('5. Subcontracting Costs'!H:H,'5. Subcontracting Costs'!C:C,B33,'5. Subcontracting Costs'!B:B,$C$21) -> 2280 | D33: =SUMIFS('1. Staff costs'!S:S,'1. Staff costs'!C:C,B33,'1. Staff costs'!B:B,$D$21)+SUMIFS('2-3. Travel Costs&Costs of Stay'!N:N,'2-3. Travel Costs&Costs of Stay'!C:C,B33,'2-3. Travel Costs&Costs of Stay'!B:B,$D$21)+SUMIFS('4. Equipment Costs'!H:H,'4. Equipment Costs'!C:C,B33,'4. Equipment Costs'!B:B,$D$21)+SUMIFS('5. Subcontracting Costs'!H:H,'5. Subcontracting Costs'!C:C,B33,'5. Subcontracting Costs'!B:B,$D$21) -> 1955 | E33: =SUMIFS('1. Staff costs'!S:S,'1. Staff costs'!C:C,B33,'1. Staff costs'!B:B,$E$21)+SUMIFS('2-3. Travel Costs&Costs of Stay'!N:N,'2-3. Travel Costs&Costs of Stay'!C:C,B33,'2-3. Travel Costs&Costs of Stay'!B:B,$E$21)+SUMIFS('4. Equipment Costs'!H:H,'4. Equipment Costs'!C:C,B33,'4. Equipment Costs'!B:B,$E$21)+SUMIFS('5. Subcontracting Costs'!H:H,'5. Subcontracting Costs'!C:C,B33,'5. Subcontracting Costs'!B:B,$E$21) -> 540 | F33: =SUMIFS('1. Staff costs'!S:S,'1. Staff costs'!C:C,B33,'1. Staff costs'!B:B,$B$8)+SUMIFS('2-3. Travel Costs&Costs of Stay'!N:N,'2-3. Travel Costs&Costs of Stay'!C:C,B33,'2-3. Travel Costs&Costs of Stay'!B:B,$B$8)+SUMIFS('4. Equipment Costs'!H:H,'4. Equipment Costs'!C:C,B33,'4. Equipment Costs'!B:B,$B$8)+SUMIFS('5. Subcontracting Costs'!H:H,'5. Subcontracting Costs'!C:C,B33,'5. Subcontracting Costs'!B:B,$B$8) -> 1580 | G33: =SUMIFS('1. Staff costs'!S:S,'1. Staff costs'!C:C,B33,'1. Staff costs'!B:B,$G$21)+SUMIFS('2-3. Travel Costs&Costs of Stay'!N:N,'2-3. Travel Costs&Costs of Stay'!C:C,B33,'2-3. Travel Costs&Costs of Stay'!B:B,$G$21)+SUMIFS('4. Equipment Costs'!H:H,'4. Equipment Costs'!C:C,B33,'4. Equipment Costs'!B:B,$G$21)+SUMIFS('5. Subcontracting Costs'!H:H,'5. Subcontracting Costs'!C:C,B33,'5. Subcontracting Costs'!B:B,$G$21) -> 6185 | H33: 0 | I33: 12540
B34: P13 | C34: =SUMIFS('1. Staff costs'!S:S,'1. Staff costs'!C:C,B34,'1. Staff costs'!B:B,$C$21)+SUMIFS('2-3. Travel Costs&Costs of Stay'!N:N,'2-3. Travel Costs&Costs of Stay'!C:C,B34,'2-3. Travel Costs&Costs of Stay'!B:B,$C$21)+SUMIFS('4. Equipment Costs'!H:H,'4. Equipment Costs'!C:C,B34,'4. Equipment Costs'!B:B,$C$21)+SUMIFS('5. Subcontracting Costs'!H:H,'5. Subcontracting Costs'!C:C,B34,'5. Subcontracting Costs'!B:B,$C$21) -> 2160 | D34: =SUMIFS('1. Staff costs'!S:S,'1. Staff costs'!C:C,B34,'1. Staff costs'!B:B,$D$21)+SUMIFS('2-3. Travel Costs&Costs of Stay'!N:N,'2-3. Travel Costs&Costs of Stay'!C:C,B34,'2-3. Travel Costs&Costs of Stay'!B:B,$D$21)+SUMIFS('4. Equipment Costs'!H:H,'4. Equipment Costs'!C:C,B34,'4. Equipment Costs'!B:B,$D$21)+SUMIFS('5. Subcontracting Costs'!H:H,'5. Subcontracting Costs'!C:C,B34,'5. Subcontracting Costs'!B:B,$D$21) -> 1955 | E34: =SUMIFS('1. Staff costs'!S:S,'1. Staff costs'!C:C,B34,'1. Staff costs'!B:B,$E$21)+SUMIFS('2-3. Travel Costs&Costs of Stay'!N:N,'2-3. Travel Costs&Costs of Stay'!C:C,B34,'2-3. Travel Costs&Costs of Stay'!B:B,$E$21)+SUMIFS('4. Equipment Costs'!H:H,'4. Equipment Costs'!C:C,B34,'4. Equipment Costs'!B:B,$E$21)+SUMIFS('5. Subcontracting Costs'!H:H,'5. Subcontracting Costs'!C:C,B34,'5. Subcontracting Costs'!B:B,$E$21) -> 540 | F34: =SUMIFS('1. Staff costs'!S:S,'1. Staff costs'!C:C,B34,'1. Staff costs'!B:B,$B$8)+SUMIFS('2-3. Travel Costs&Costs of Stay'!N:N,'2-3. Travel Costs&Costs of Stay'!C:C,B34,'2-3. Travel Costs&Costs of Stay'!B:B,$B$8)+SUMIFS('4. Equipment Costs'!H:H,'4. Equipment Costs'!C:C,B34,'4. Equipment Costs'!B:B,$B$8)+SUMIFS('5. Subcontracting Costs'!H:H,'5. Subcontracting Costs'!C:C,B34,'5. Subcontracting Costs'!B:B,$B$8) -> 1500 | G34: =SUMIFS('1. Staff costs'!S:S,'1. Staff costs'!C:C,B34,'1. Staff costs'!B:B,$G$21)+SUMIFS('2-3. Travel Costs&Costs of Stay'!N:N,'2-3. Travel Costs&Costs of Stay'!C:C,B34,'2-3. Travel Costs&Costs of Stay'!B:B,$G$21)+SUMIFS('4. Equipment Costs'!H:H,'4. Equipment Costs'!C:C,B34,'4. Equipment Costs'!B:B,$G$21)+SUMIFS('5. Subcontracting Costs'!H:H,'5. Subcontracting Costs'!C:C,B34,'5. Subcontracting Costs'!B:B,$G$21) -> 7085 | H34: 0 | I34: 13240
B35: P14 | C35: =SUMIFS('1. Staff costs'!S:S,'1. Staff costs'!C:C,B35,'1. Staff costs'!B:B,$C$21)+SUMIFS('2-3. Travel Costs&Costs of Stay'!N:N,'2-3. Travel Costs&Costs of Stay'!C:C,B35,'2-3. Travel Costs&Costs of Stay'!B:B,$C$21)+SUMIFS('4. Equipment Costs'!H:H,'4. Equipment Costs'!C:C,B35,'4. Equipment Costs'!B:B,$C$21)+SUMIFS('5. Subcontracting Costs'!H:H,'5. Subcontracting Costs'!C:C,B35,'5. Subcontracting Costs'!B:B,$C$21) -> 1080 | D35: =SUMIFS('1. Staff costs'!S:S,'1. Staff costs'!C:C,B35,'1. Staff costs'!B:B,$D$21)+SUMIFS('2-3. Travel Costs&Costs of Stay'!N:N,'2-3. Travel Costs&Costs of Stay'!C:C,B35,'2-3. Travel Costs&Costs of Stay'!B:B,$D$21)+SUMIFS('4. Equipment Costs'!H:H,'4. Equipment Costs'!C:C,B35,'4. Equipment Costs'!B:B,$D$21)+SUMIFS('5. Subcontracting Costs'!H:H,'5. Subcontracting Costs'!C:C,B35,'5. Subcontracting Costs'!B:B,$D$21) -> 540 | E35: =SUMIFS('1. Staff costs'!S:S,'1. Staff costs'!C:C,B35,'1. Staff costs'!B:B,$E$21)+SUMIFS('2-3. Travel Costs&Costs of Stay'!N:N,'2-3. Travel Costs&Costs of Stay'!C:C,B35,'2-3. Travel Costs&Costs of Stay'!B:B,$E$21)+SUMIFS('4. Equipment Costs'!H:H,'4. Equipment Costs'!C:C,B35,'4. Equipment Costs'!B:B,$E$21)+SUMIFS('5. Subcontracting Costs'!H:H,'5. Subcontracting Costs'!C:C,B35,'5. Subcontracting Costs'!B:B,$E$21) -> 540 | F35: =SUMIFS('1. Staff costs'!S:S,'1. Staff costs'!C:C,B35,'1. Staff costs'!B:B,$B$8)+SUMIFS('2-3. Travel Costs&Costs of Stay'!N:N,'2-3. Travel Costs&Costs of Stay'!C:C,B35,'2-3. Travel Costs&Costs of Stay'!B:B,$B$8)+SUMIFS('4. Equipment Costs'!H:H,'4. Equipment Costs'!C:C,B35,'4. Equipment Costs'!B:B,$B$8)+SUMIFS('5. Subcontracting Costs'!H:H,'5. Subcontracting Costs'!C:C,B35,'5. Subcontracting Costs'!B:B,$B$8) -> 2120 | G35: =SUMIFS('1. Staff costs'!S:S,'1. Staff costs'!C:C,B35,'1. Staff costs'!B:B,$G$21)+SUMIFS('2-3. Travel Costs&Costs of Stay'!N:N,'2-3. Travel Costs&Costs of Stay'!C:C,B35,'2-3. Travel Costs&Costs of Stay'!B:B,$G$21)+SUMIFS('4. Equipment Costs'!H:H,'4. Equipment Costs'!C:C,B35,'4. Equipment Costs'!B:B,$G$21)+SUMIFS('5. Subcontracting Costs'!H:H,'5. Subcontracting Costs'!C:C,B35,'5. Subcontracting Costs'!B:B,$G$21) -> 6185 | H35: 0 | I35: 10465
B36: P15 | C36: =SUMIFS('1. Staff costs'!S:S,'1. Staff costs'!C:C,B36,'1. Staff costs'!B:B,$C$21)+SUMIFS('2-3. Travel Costs&Costs of Stay'!N:N,'2-3. Travel Costs&Costs of Stay'!C:C,B36,'2-3. Travel Costs&Costs of Stay'!B:B,$C$21)+SUMIFS('4. Equipment Costs'!H:H,'4. Equipment Costs'!C:C,B36,'4. Equipment Costs'!B:B,$C$21)+SUMIFS('5. Subcontracting Costs'!H:H,'5. Subcontracting Costs'!C:C,B36,'5. Subcontracting Costs'!B:B,$C$21) -> 2980 | D36: =SUMIFS('1. Staff costs'!S:S,'1. Staff costs'!C:C,B36,'1. Staff costs'!B:B,$D$21)+SUMIFS('2-3. Travel Costs&Costs of Stay'!N:N,'2-3. Travel Costs&Costs of Stay'!C:C,B36,'2-3. Travel Costs&Costs of Stay'!B:B,$D$21)+SUMIFS('4. Equipment Costs'!H:H,'4. Equipment Costs'!C:C,B36,'4. Equipment Costs'!B:B,$D$21)+SUMIFS('5. Subcontracting Costs'!H:H,'5. Subcontracting Costs'!C:C,B36,'5. Subcontracting Costs'!B:B,$D$21) -> 1470 | E36: =SUMIFS('1. Staff costs'!S:S,'1. Staff costs'!C:C,B36,'1. Staff costs'!B:B,$E$21)+SUMIFS('2-3. Travel Costs&Costs of Stay'!N:N,'2-3. Travel Costs&Costs of Stay'!C:C,B36,'2-3. Travel Costs&Costs of Stay'!B:B,$E$21)+SUMIFS('4. Equipment Costs'!H:H,'4. Equipment Costs'!C:C,B36,'4. Equipment Costs'!B:B,$E$21)+SUMIFS('5. Subcontracting Costs'!H:H,'5. Subcontracting Costs'!C:C,B36,'5. Subcontracting Costs'!B:B,$E$21) -> 588 | F36: =SUMIFS('1. Staff costs'!S:S,'1. Staff costs'!C:C,B36,'1. Staff costs'!B:B,$B$8)+SUMIFS('2-3. Travel Costs&Costs of Stay'!N:N,'2-3. Travel Costs&Costs of Stay'!C:C,B36,'2-3. Travel Costs&Costs of Stay'!B:B,$B$8)+SUMIFS('4. Equipment Costs'!H:H,'4. Equipment Costs'!C:C,B36,'4. Equipment Costs'!B:B,$B$8)+SUMIFS('5. Subcontracting Costs'!H:H,'5. Subcontracting Costs'!C:C,B36,'5. Subcontracting Costs'!B:B,$B$8) -> 2740 | G36: =SUMIFS('1. Staff costs'!S:S,'1. Staff costs'!C:C,B36,'1. Staff costs'!B:B,$G$21)+SUMIFS('2-3. Travel Costs&Costs of Stay'!N:N,'2-3. Travel Costs&Costs of Stay'!C:C,B36,'2-3. Travel Costs&Costs of Stay'!B:B,$G$21)+SUMIFS('4. Equipment Costs'!H:H,'4. Equipment Costs'!C:C,B36,'4. Equipment Costs'!B:B,$G$21)+SUMIFS('5. Subcontracting Costs'!H:H,'5. Subcontracting Costs'!C:C,B36,'5. Subcontracting Costs'!B:B,$G$21) -> 9425 | H36: 0 | I36: 17203
B37: P16 | C37: =SUMIFS('1. Staff costs'!S:S,'1. Staff costs'!C:C,B37,'1. Staff costs'!B:B,$C$21)+SUMIFS('2-3. Travel Costs&Costs of Stay'!N:N,'2-3. Travel Costs&Costs of Stay'!C:C,B37,'2-3. Travel Costs&Costs of Stay'!B:B,$C$21)+SUMIFS('4. Equipment Costs'!H:H,'4. Equipment Costs'!C:C,B37,'4. Equipment Costs'!B:B,$C$21)+SUMIFS('5. Subcontracting Costs'!H:H,'5. Subcontracting Costs'!C:C,B37,'5. Subcontracting Costs'!B:B,$C$21) -> 540 | D37: =SUMIFS('1. Staff costs'!S:S,'1. Staff costs'!C:C,B37,'1. Staff costs'!B:B,$D$21)+SUMIFS('2-3. Travel Costs&Costs of Stay'!N:N,'2-3. Travel Costs&Costs of Stay'!C:C,B37,'2-3. Travel Costs&Costs of Stay'!B:B,$D$21)+SUMIFS('4. Equipment Costs'!H:H,'4. Equipment Costs'!C:C,B37,'4. Equipment Costs'!B:B,$D$21)+SUMIFS('5. Subcontracting Costs'!H:H,'5. Subcontracting Costs'!C:C,B37,'5. Subcontracting Costs'!B:B,$D$21) -> 216 | E37: =SUMIFS('1. Staff costs'!S:S,'1. Staff costs'!C:C,B37,'1. Staff costs'!B:B,$E$21)+SUMIFS('2-3. Travel Costs&Costs of Stay'!N:N,'2-3. Travel Costs&Costs of Stay'!C:C,B37,'2-3. Travel Costs&Costs of Stay'!B:B,$E$21)+SUMIFS('4. Equipment Costs'!H:H,'4. Equipment Costs'!C:C,B37,'4. Equipment Costs'!B:B,$E$21)+SUMIFS('5. Subcontracting Costs'!H:H,'5. Subcontracting Costs'!C:C,B37,'5. Subcontracting Costs'!B:B,$E$21) -> 216 | F37: =SUMIFS('1. Staff costs'!S:S,'1. Staff costs'!C:C,B37,'1. Staff costs'!B:B,$B$8)+SUMIFS('2-3. Travel Costs&Costs of Stay'!N:N,'2-3. Travel Costs&Costs of Stay'!C:C,B37,'2-3. Travel Costs&Costs of Stay'!B:B,$B$8)+SUMIFS('4. Equipment Costs'!H:H,'4. Equipment Costs'!C:C,B37,'4. Equipment Costs'!B:B,$B$8)+SUMIFS('5. Subcontracting Costs'!H:H,'5. Subcontracting Costs'!C:C,B37,'5. Subcontracting Costs'!B:B,$B$8) -> 2040 | G37: =SUMIFS('1. Staff costs'!S:S,'1. Staff costs'!C:C,B37,'1. Staff costs'!B:B,$G$21)+SUMIFS('2-3. Travel Costs&Costs of Stay'!N:N,'2-3. Travel Costs&Costs of Stay'!C:C,B37,'2-3. Travel Costs&Costs of Stay'!B:B,$G$21)+SUMIFS('4. Equipment Costs'!H:H,'4. Equipment Costs'!C:C,B37,'4. Equipment Costs'!B:B,$G$21)+SUMIFS('5. Subcontracting Costs'!H:H,'5. Subcontracting Costs'!C:C,B37,'5. Subcontracting Costs'!B:B,$G$21) -> 7085 | H37: 0 | I37: 10097
B38: P17 | C38: =SUMIFS('1. Staff costs'!S:S,'1. Staff costs'!C:C,B38,'1. Staff costs'!B:B,$C$21)+SUMIFS('2-3. Travel Costs&Costs of Stay'!N:N,'2-3. Travel Costs&Costs of Stay'!C:C,B38,'2-3. Travel Costs&Costs of Stay'!B:B,$C$21)+SUMIFS('4. Equipment Costs'!H:H,'4. Equipment Costs'!C:C,B38,'4. Equipment Costs'!B:B,$C$21)+SUMIFS('5. Subcontracting Costs'!H:H,'5. Subcontracting Costs'!C:C,B38,'5. Subcontracting Costs'!B:B,$C$21) -> 0 | D38: =SUMIFS('1. Staff costs'!S:S,'1. Staff costs'!C:C,B38,'1. Staff costs'!B:B,$D$21)+SUMIFS('2-3. Travel Costs&Costs of Stay'!N:N,'2-3. Travel Costs&Costs of Stay'!C:C,B38,'2-3. Travel Costs&Costs of Stay'!B:B,$D$21)+SUMIFS('4. Equipment Costs'!H:H,'4. Equipment Costs'!C:C,B38,'4. Equipment Costs'!B:B,$D$21)+SUMIFS('5. Subcontracting Costs'!H:H,'5. Subcontracting Costs'!C:C,B38,'5. Subcontracting Costs'!B:B,$D$21) -> 0 | E38: =SUMIFS('1. Staff costs'!S:S,'1. Staff costs'!C:C,B38,'1. Staff costs'!B:B,$E$21)+SUMIFS('2-3. Travel Costs&Costs of Stay'!N:N,'2-3. Travel Costs&Costs of Stay'!C:C,B38,'2-3. Travel Costs&Costs of Stay'!B:B,$E$21)+SUMIFS('4. Equipment Costs'!H:H,'4. Equipment Costs'!C:C,B38,'4. Equipment Costs'!B:B,$E$21)+SUMIFS('5. Subcontracting Costs'!H:H,'5. Subcontracting Costs'!C:C,B38,'5. Subcontracting Costs'!B:B,$E$21) -> 0 | F38: =SUMIFS('1. Staff costs'!S:S,'1. Staff costs'!C:C,B38,'1. Staff costs'!B:B,$B$8)+SUMIFS('2-3. Travel Costs&Costs of Stay'!N:N,'2-3. Travel Costs&Costs of Stay'!C:C,B38,'2-3. Travel Costs&Costs of Stay'!B:B,$B$8)+SUMIFS('4. Equipment Costs'!H:H,'4. Equipment Costs'!C:C,B38,'4. Equipment Costs'!B:B,$B$8)+SUMIFS('5. Subcontracting Costs'!H:H,'5. Subcontracting Costs'!C:C,B38,'5. Subcontracting Costs'!B:B,$B$8) -> 0 | G38: =SUMIFS('1. Staff costs'!S:S,'1. Staff costs'!C:C,B38,'1. Staff costs'!B:B,$G$21)+SUMIFS('2-3. Travel Costs&Costs of Stay'!N:N,'2-3. Travel Costs&Costs of Stay'!C:C,B38,'2-3. Travel Costs&Costs of Stay'!B:B,$G$21)+SUMIFS('4. Equipment Costs'!H:H,'4. Equipment Costs'!C:C,B38,'4. Equipment Costs'!B:B,$G$21)+SUMIFS('5. Subcontracting Costs'!H:H,'5. Subcontracting Costs'!C:C,B38,'5. Subcontracting Costs'!B:B,$G$21) -> 0 | H38: 0 | I38: 0
B39: P18 | C39: =SUMIFS('1. Staff costs'!S:S,'1. Staff costs'!C:C,B39,'1. Staff costs'!B:B,$C$21)+SUMIFS('2-3. Travel Costs&Costs of Stay'!N:N,'2-3. Travel Costs&Costs of Stay'!C:C,B39,'2-3. Travel Costs&Costs of Stay'!B:B,$C$21)+SUMIFS('4. Equipment Costs'!H:H,'4. Equipment Costs'!C:C,B39,'4. Equipment Costs'!B:B,$C$21)+SUMIFS('5. Subcontracting Costs'!H:H,'5. Subcontracting Costs'!C:C,B39,'5. Subcontracting Costs'!B:B,$C$21) -> 0 | D39: =SUMIFS('1. Staff costs'!S:S,'1. Staff costs'!C:C,B39,'1. Staff costs'!B:B,$D$21)+SUMIFS('2-3. Travel Costs&Costs of Stay'!N:N,'2-3. Travel Costs&Costs of Stay'!C:C,B39,'2-3. Travel Costs&Costs of Stay'!B:B,$D$21)+SUMIFS('4. Equipment Costs'!H:H,'4. Equipment Costs'!C:C,B39,'4. Equipment Costs'!B:B,$D$21)+SUMIFS('5. Subcontracting Costs'!H:H,'5. Subcontracting Costs'!C:C,B39,'5. Subcontracting Costs'!B:B,$D$21) -> 0 | E39: =SUMIFS('1. Staff costs'!S:S,'1. Staff costs'!C:C,B39,'1. Staff costs'!B:B,$E$21)+SUMIFS('2-3. Travel Costs&Costs of Stay'!N:N,'2-3. Travel Costs&Costs of Stay'!C:C,B39,'2-3. Travel Costs&Costs of Stay'!B:B,$E$21)+SUMIFS('4. Equipment Costs'!H:H,'4. Equipment Costs'!C:C,B39,'4. Equipment Costs'!B:B,$E$21)+SUMIFS('5. Subcontracting Costs'!H:H,'5. Subcontracting Costs'!C:C,B39,'5. Subcontracting Costs'!B:B,$E$21) -> 0 | F39: =SUMIFS('1. Staff costs'!S:S,'1. Staff costs'!C:C,B39,'1. Staff costs'!B:B,$B$8)+SUMIFS('2-3. Travel Costs&Costs of Stay'!N:N,'2-3. Travel Costs&Costs of Stay'!C:C,B39,'2-3. Travel Costs&Costs of Stay'!B:B,$B$8)+SUMIFS('4. Equipment Costs'!H:H,'4. Equipment Costs'!C:C,B39,'4. Equipment Costs'!B:B,$B$8)+SUMIFS('5. Subcontracting Costs'!H:H,'5. Subcontracting Costs'!C:C,B39,'5. Subcontracting Costs'!B:B,$B$8) -> 0 | G39: =SUMIFS('1. Staff costs'!S:S,'1. Staff costs'!C:C,B39,'1. Staff costs'!B:B,$G$21)+SUMIFS('2-3. Travel Costs&Costs of Stay'!N:N,'2-3. Travel Costs&Costs of Stay'!C:C,B39,'2-3. Travel Costs&Costs of Stay'!B:B,$G$21)+SUMIFS('4. Equipment Costs'!H:H,'4. Equipment Costs'!C:C,B39,'4. Equipment Costs'!B:B,$G$21)+SUMIFS('5. Subcontracting Costs'!H:H,'5. Subcontracting Costs'!C:C,B39,'5. Subcontracting Costs'!B:B,$G$21) -> 0 | H39: 0 | I39: 0
B40: P19 | C40: =SUMIFS('1. Staff costs'!S:S,'1. Staff costs'!C:C,B40,'1. Staff costs'!B:B,$C$21)+SUMIFS('2-3. Travel Costs&Costs of Stay'!N:N,'2-3. Travel Costs&Costs of Stay'!C:C,B40,'2-3. Travel Costs&Costs of Stay'!B:B,$C$21)+SUMIFS('4. Equipment Costs'!H:H,'4. Equipment Costs'!C:C,B40,'4. Equipment Costs'!B:B,$C$21)+SUMIFS('5. Subcontracting Costs'!H:H,'5. Subcontracting Costs'!C:C,B40,'5. Subcontracting Costs'!B:B,$C$21) -> 0 | D40: =SUMIFS('1. Staff costs'!S:S,'1. Staff costs'!C:C,B40,'1. Staff costs'!B:B,$D$21)+SUMIFS('2-3. Travel Costs&Costs of Stay'!N:N,'2-3. Travel Costs&Costs of Stay'!C:C,B40,'2-3. Travel Costs&Costs of Stay'!B:B,$D$21)+SUMIFS('4. Equipment Costs'!H:H,'4. Equipment Costs'!C:C,B40,'4. Equipment Costs'!B:B,$D$21)+SUMIFS('5. Subcontracting Costs'!H:H,'5. Subcontracting Costs'!C:C,B40,'5. Subcontracting Costs'!B:B,$D$21) -> 0 | E40: =SUMIFS('1. Staff costs'!S:S,'1. Staff costs'!C:C,B40,'1. Staff costs'!B:B,$E$21)+SUMIFS('2-3. Travel Costs&Costs of Stay'!N:N,'2-3. Travel Costs&Costs of Stay'!C:C,B40,'2-3. Travel Costs&Costs of Stay'!B:B,$E$21)+SUMIFS('4. Equipment Costs'!H:H,'4. Equipment Costs'!C:C,B40,'4. Equipment Costs'!B:B,$E$21)+SUMIFS('5. Subcontracting Costs'!H:H,'5. Subcontracting Costs'!C:C,B40,'5. Subcontracting Costs'!B:B,$E$21) -> 0 | F40: =SUMIFS('1. Staff costs'!S:S,'1. Staff costs'!C:C,B40,'1. Staff costs'!B:B,$B$8)+SUMIFS('2-3. Travel Costs&Costs of Stay'!N:N,'2-3. Travel Costs&Costs of Stay'!C:C,B40,'2-3. Travel Costs&Costs of Stay'!B:B,$B$8)+SUMIFS('4. Equipment Costs'!H:H,'4. Equipment Costs'!C:C,B40,'4. Equipment Costs'!B:B,$B$8)+SUMIFS('5. Subcontracting Costs'!H:H,'5. Subcontracting Costs'!C:C,B40,'5. Subcontracting Costs'!B:B,$B$8) -> 0 | G40: =SUMIFS('1. Staff costs'!S:S,'1. Staff costs'!C:C,B40,'1. Staff costs'!B:B,$G$21)+SUMIFS('2-3. Travel Costs&Costs of Stay'!N:N,'2-3. Travel Costs&Costs of Stay'!C:C,B40,'2-3. Travel Costs&Costs of Stay'!B:B,$G$21)+SUMIFS('4. Equipment Costs'!H:H,'4. Equipment Costs'!C:C,B40,'4. Equipment Costs'!B:B,$G$21)+SUMIFS('5. Subcontracting Costs'!H:H,'5. Subcontracting Costs'!C:C,B40,'5. Subcontracting Costs'!B:B,$G$21) -> 0 | H40: 0 | I40: 0
B41: P20 | C41: =SUMIFS('1. Staff costs'!S:S,'1. Staff costs'!C:C,B41,'1. Staff costs'!B:B,$C$21)+SUMIFS('2-3. Travel Costs&Costs of Stay'!N:N,'2-3. Travel Costs&Costs of Stay'!C:C,B41,'2-3. Travel Costs&Costs of Stay'!B:B,$C$21)+SUMIFS('4. Equipment Costs'!H:H,'4. Equipment Costs'!C:C,B41,'4. Equipment Costs'!B:B,$C$21)+SUMIFS('5. Subcontracting Costs'!H:H,'5. Subcontracting Costs'!C:C,B41,'5. Subcontracting Costs'!B:B,$C$21) -> 0 | D41: =SUMIFS('1. Staff costs'!S:S,'1. Staff costs'!C:C,B41,'1. Staff costs'!B:B,$D$21)+SUMIFS('2-3. Travel Costs&Costs of Stay'!N:N,'2-3. Travel Costs&Costs of Stay'!C:C,B41,'2-3. Travel Costs&Costs of Stay'!B:B,$D$21)+SUMIFS('4. Equipment Costs'!H:H,'4. Equipment Costs'!C:C,B41,'4. Equipment Costs'!B:B,$D$21)+SUMIFS('5. Subcontracting Costs'!H:H,'5. Subcontracting Costs'!C:C,B41,'5. Subcontracting Costs'!B:B,$D$21) -> 0 | E41: =SUMIFS('1. Staff costs'!S:S,'1. Staff costs'!C:C,B41,'1. Staff costs'!B:B,$E$21)+SUMIFS('2-3. Travel Costs&Costs of Stay'!N:N,'2-3. Travel Costs&Costs of Stay'!C:C,B41,'2-3. Travel Costs&Costs of Stay'!B:B,$E$21)+SUMIFS('4. Equipment Costs'!H:H,'4. Equipment Costs'!C:C,B41,'4. Equipment Costs'!B:B,$E$21)+SUMIFS('5. Subcontracting Costs'!H:H,'5. Subcontracting Costs'!C:C,B41,'5. Subcontracting Costs'!B:B,$E$21) -> 0 | F41: =SUMIFS('1. Staff costs'!S:S,'1. Staff costs'!C:C,B41,'1. Staff costs'!B:B,$B$8)+SUMIFS('2-3. Travel Costs&Costs of Stay'!N:N,'2-3. Travel Costs&Costs of Stay'!C:C,B41,'2-3. Travel Costs&Costs of Stay'!B:B,$B$8)+SUMIFS('4. Equipment Costs'!H:H,'4. Equipment Costs'!C:C,B41,'4. Equipment Costs'!B:B,$B$8)+SUMIFS('5. Subcontracting Costs'!H:H,'5. Subcontracting Costs'!C:C,B41,'5. Subcontracting Costs'!B:B,$B$8) -> 0 | G41: =SUMIFS('1. Staff costs'!S:S,'1. Staff costs'!C:C,B41,'1. Staff costs'!B:B,$G$21)+SUMIFS('2-3. Travel Costs&Costs of Stay'!N:N,'2-3. Travel Costs&Costs of Stay'!C:C,B41,'2-3. Travel Costs&Costs of Stay'!B:B,$G$21)+SUMIFS('4. Equipment Costs'!H:H,'4. Equipment Costs'!C:C,B41,'4. Equipment Costs'!B:B,$G$21)+SUMIFS('5. Subcontracting Costs'!H:H,'5. Subcontracting Costs'!C:C,B41,'5. Subcontracting Costs'!B:B,$G$21) -> 0 | H41: 0 | I41: 0
B42: P21 | C42: =SUMIFS('1. Staff costs'!S:S,'1. Staff costs'!C:C,B42,'1. Staff costs'!B:B,$C$21)+SUMIFS('2-3. Travel Costs&Costs of Stay'!N:N,'2-3. Travel Costs&Costs of Stay'!C:C,B42,'2-3. Travel Costs&Costs of Stay'!B:B,$C$21)+SUMIFS('4. Equipment Costs'!H:H,'4. Equipment Costs'!C:C,B42,'4. Equipment Costs'!B:B,$C$21)+SUMIFS('5. Subcontracting Costs'!H:H,'5. Subcontracting Costs'!C:C,B42,'5. Subcontracting Costs'!B:B,$C$21) -> 0 | D42: =SUMIFS('1. Staff costs'!S:S,'1. Staff costs'!C:C,B42,'1. Staff costs'!B:B,$D$21)+SUMIFS('2-3. Travel Costs&Costs of Stay'!N:N,'2-3. Travel Costs&Costs of Stay'!C:C,B42,'2-3. Travel Costs&Costs of Stay'!B:B,$D$21)+SUMIFS('4. Equipment Costs'!H:H,'4. Equipment Costs'!C:C,B42,'4. Equipment Costs'!B:B,$D$21)+SUMIFS('5. Subcontracting Costs'!H:H,'5. Subcontracting Costs'!C:C,B42,'5. Subcontracting Costs'!B:B,$D$21) -> 0 | E42: =SUMIFS('1. Staff costs'!S:S,'1. Staff costs'!C:C,B42,'1. Staff costs'!B:B,$E$21)+SUMIFS('2-3. Travel Costs&Costs of Stay'!N:N,'2-3. Travel Costs&Costs of Stay'!C:C,B42,'2-3. Travel Costs&Costs of Stay'!B:B,$E$21)+SUMIFS('4. Equipment Costs'!H:H,'4. Equipment Costs'!C:C,B42,'4. Equipment Costs'!B:B,$E$21)+SUMIFS('5. Subcontracting Costs'!H:H,'5. Subcontracting Costs'!C:C,B42,'5. Subcontracting Costs'!B:B,$E$21) -> 0 | F42: =SUMIFS('1. Staff costs'!S:S,'1. Staff costs'!C:C,B42,'1. Staff costs'!B:B,$B$8)+SUMIFS('2-3. Travel Costs&Costs of Stay'!N:N,'2-3. Travel Costs&Costs of Stay'!C:C,B42,'2-3. Travel Costs&Costs of Stay'!B:B,$B$8)+SUMIFS('4. Equipment Costs'!H:H,'4. Equipment Costs'!C:C,B42,'4. Equipment Costs'!B:B,$B$8)+SUMIFS('5. Subcontracting Costs'!H:H,'5. Subcontracting Costs'!C:C,B42,'5. Subcontracting Costs'!B:B,$B$8) -> 0 | G42: =SUMIFS('1. Staff costs'!S:S,'1. Staff costs'!C:C,B42,'1. Staff costs'!B:B,$G$21)+SUMIFS('2-3. Travel Costs&Costs of Stay'!N:N,'2-3. Travel Costs&Costs of Stay'!C:C,B42,'2-3. Travel Costs&Costs of Stay'!B:B,$G$21)+SUMIFS('4. Equipment Costs'!H:H,'4. Equipment Costs'!C:C,B42,'4. Equipment Costs'!B:B,$G$21)+SUMIFS('5. Subcontracting Costs'!H:H,'5. Subcontracting Costs'!C:C,B42,'5. Subcontracting Costs'!B:B,$G$21) -> 0 | H42: 0 | I42: 0
B43: P22 | C43: =SUMIFS('1. Staff costs'!S:S,'1. Staff costs'!C:C,B43,'1. Staff costs'!B:B,$C$21)+SUMIFS('2-3. Travel Costs&Costs of Stay'!N:N,'2-3. Travel Costs&Costs of Stay'!C:C,B43,'2-3. Travel Costs&Costs of Stay'!B:B,$C$21)+SUMIFS('4. Equipment Costs'!H:H,'4. Equipment Costs'!C:C,B43,'4. Equipment Costs'!B:B,$C$21)+SUMIFS('5. Subcontracting Costs'!H:H,'5. Subcontracting Costs'!C:C,B43,'5. Subcontracting Costs'!B:B,$C$21) -> 0 | D43: =SUMIFS('1. Staff costs'!S:S,'1. Staff costs'!C:C,B43,'1. Staff costs'!B:B,$D$21)+SUMIFS('2-3. Travel Costs&Costs of Stay'!N:N,'2-3. Travel Costs&Costs of Stay'!C:C,B43,'2-3. Travel Costs&Costs of Stay'!B:B,$D$21)+SUMIFS('4. Equipment Costs'!H:H,'4. Equipment Costs'!C:C,B43,'4. Equipment Costs'!B:B,$D$21)+SUMIFS('5. Subcontracting Costs'!H:H,'5. Subcontracting Costs'!C:C,B43,'5. Subcontracting Costs'!B:B,$D$21) -> 0 | E43: =SUMIFS('1. Staff costs'!S:S,'1. Staff costs'!C:C,B43,'1. Staff costs'!B:B,$E$21)+SUMIFS('2-3. Travel Costs&Costs of Stay'!N:N,'2-3. Travel Costs&Costs of Stay'!C:C,B43,'2-3. Travel Costs&Costs of Stay'!B:B,$E$21)+SUMIFS('4. Equipment Costs'!H:H,'4. Equipment Costs'!C:C,B43,'4. Equipment Costs'!B:B,$E$21)+SUMIFS('5. Subcontracting Costs'!H:H,'5. Subcontracting Costs'!C:C,B43,'5. Subcontracting Costs'!B:B,$E$21) -> 0 | F43: =SUMIFS('1. Staff costs'!S:S,'1. Staff costs'!C:C,B43,'1. Staff costs'!B:B,$B$8)+SUMIFS('2-3. Travel Costs&Costs of Stay'!N:N,'2-3. Travel Costs&Costs of Stay'!C:C,B43,'2-3. Travel Costs&Costs of Stay'!B:B,$B$8)+SUMIFS('4. Equipment Costs'!H:H,'4. Equipment Costs'!C:C,B43,'4. Equipment Costs'!B:B,$B$8)+SUMIFS('5. Subcontracting Costs'!H:H,'5. Subcontracting Costs'!C:C,B43,'5. Subcontracting Costs'!B:B,$B$8) -> 0 | G43: =SUMIFS('1. Staff costs'!S:S,'1. Staff costs'!C:C,B43,'1. Staff costs'!B:B,$G$21)+SUMIFS('2-3. Travel Costs&Costs of Stay'!N:N,'2-3. Travel Costs&Costs of Stay'!C:C,B43,'2-3. Travel Costs&Costs of Stay'!B:B,$G$21)+SUMIFS('4. Equipment Costs'!H:H,'4. Equipment Costs'!C:C,B43,'4. Equipment Costs'!B:B,$G$21)+SUMIFS('5. Subcontracting Costs'!H:H,'5. Subcontracting Costs'!C:C,B43,'5. Subcontracting Costs'!B:B,$G$21) -> 0 | H43: 0 | I43: 0
B44: P23 | C44: =SUMIFS('1. Staff costs'!S:S,'1. Staff costs'!C:C,B44,'1. Staff costs'!B:B,$C$21)+SUMIFS('2-3. Travel Costs&Costs of Stay'!N:N,'2-3. Travel Costs&Costs of Stay'!C:C,B44,'2-3. Travel Costs&Costs of Stay'!B:B,$C$21)+SUMIFS('4. Equipment Costs'!H:H,'4. Equipment Costs'!C:C,B44,'4. Equipment Costs'!B:B,$C$21)+SUMIFS('5. Subcontracting Costs'!H:H,'5. Subcontracting Costs'!C:C,B44,'5. Subcontracting Costs'!B:B,$C$21) -> 0 | D44: =SUMIFS('1. Staff costs'!S:S,'1. Staff costs'!C:C,B44,'1. Staff costs'!B:B,$D$21)+SUMIFS('2-3. Travel Costs&Costs of Stay'!N:N,'2-3. Travel Costs&Costs of Stay'!C:C,B44,'2-3. Travel Costs&Costs of Stay'!B:B,$D$21)+SUMIFS('4. Equipment Costs'!H:H,'4. Equipment Costs'!C:C,B44,'4. Equipment Costs'!B:B,$D$21)+SUMIFS('5. Subcontracting Costs'!H:H,'5. Subcontracting Costs'!C:C,B44,'5. Subcontracting Costs'!B:B,$D$21) -> 0 | E44: =SUMIFS('1. Staff costs'!S:S,'1. Staff costs'!C:C,B44,'1. Staff costs'!B:B,$E$21)+SUMIFS('2-3. Travel Costs&Costs of Stay'!N:N,'2-3. Travel Costs&Costs of Stay'!C:C,B44,'2-3. Travel Costs&Costs of Stay'!B:B,$E$21)+SUMIFS('4. Equipment Costs'!H:H,'4. Equipment Costs'!C:C,B44,'4. Equipment Costs'!B:B,$E$21)+SUMIFS('5. Subcontracting Costs'!H:H,'5. Subcontracting Costs'!C:C,B44,'5. Subcontracting Costs'!B:B,$E$21) -> 0 | F44: =SUMIFS('1. Staff costs'!S:S,'1. Staff costs'!C:C,B44,'1. Staff costs'!B:B,$B$8)+SUMIFS('2-3. Travel Costs&Costs of Stay'!N:N,'2-3. Travel Costs&Costs of Stay'!C:C,B44,'2-3. Travel Costs&Costs of Stay'!B:B,$B$8)+SUMIFS('4. Equipment Costs'!H:H,'4. Equipment Costs'!C:C,B44,'4. Equipment Costs'!B:B,$B$8)+SUMIFS('5. Subcontracting Costs'!H:H,'5. Subcontracting Costs'!C:C,B44,'5. Subcontracting Costs'!B:B,$B$8) -> 0 | G44: =SUMIFS('1. Staff costs'!S:S,'1. Staff costs'!C:C,B44,'1. Staff costs'!B:B,$G$21)+SUMIFS('2-3. Travel Costs&Costs of Stay'!N:N,'2-3. Travel Costs&Costs of Stay'!C:C,B44,'2-3. Travel Costs&Costs of Stay'!B:B,$G$21)+SUMIFS('4. Equipment Costs'!H:H,'4. Equipment Costs'!C:C,B44,'4. Equipment Costs'!B:B,$G$21)+SUMIFS('5. Subcontracting Costs'!H:H,'5. Subcontracting Costs'!C:C,B44,'5. Subcontracting Costs'!B:B,$G$21) -> 0 | H44: 0 | I44: 0
B45: P24 | C45: =SUMIFS('1. Staff costs'!S:S,'1. Staff costs'!C:C,B45,'1. Staff costs'!B:B,$C$21)+SUMIFS('2-3. Travel Costs&Costs of Stay'!N:N,'2-3. Travel Costs&Costs of Stay'!C:C,B45,'2-3. Travel Costs&Costs of Stay'!B:B,$C$21)+SUMIFS('4. Equipment Costs'!H:H,'4. Equipment Costs'!C:C,B45,'4. Equipment Costs'!B:B,$C$21)+SUMIFS('5. Subcontracting Costs'!H:H,'5. Subcontracting Costs'!C:C,B45,'5. Subcontracting Costs'!B:B,$C$21) -> 0 | D45: =SUMIFS('1. Staff costs'!S:S,'1. Staff costs'!C:C,B45,'1. Staff costs'!B:B,$D$21)+SUMIFS('2-3. Travel Costs&Costs of Stay'!N:N,'2-3. Travel Costs&Costs of Stay'!C:C,B45,'2-3. Travel Costs&Costs of Stay'!B:B,$D$21)+SUMIFS('4. Equipment Costs'!H:H,'4. Equipment Costs'!C:C,B45,'4. Equipment Costs'!B:B,$D$21)+SUMIFS('5. Subcontracting Costs'!H:H,'5. Subcontracting Costs'!C:C,B45,'5. Subcontracting Costs'!B:B,$D$21) -> 0 | E45: =SUMIFS('1. Staff costs'!S:S,'1. Staff costs'!C:C,B45,'1. Staff costs'!B:B,$E$21)+SUMIFS('2-3. Travel Costs&Costs of Stay'!N:N,'2-3. Travel Costs&Costs of Stay'!C:C,B45,'2-3. Travel Costs&Costs of Stay'!B:B,$E$21)+SUMIFS('4. Equipment Costs'!H:H,'4. Equipment Costs'!C:C,B45,'4. Equipment Costs'!B:B,$E$21)+SUMIFS('5. Subcontracting Costs'!H:H,'5. Subcontracting Costs'!C:C,B45,'5. Subcontracting Costs'!B:B,$E$21) -> 0 | F45: =SUMIFS('1. Staff costs'!S:S,'1. Staff costs'!C:C,B45,'1. Staff costs'!B:B,$B$8)+SUMIFS('2-3. Travel Costs&Costs of Stay'!N:N,'2-3. Travel Costs&Costs of Stay'!C:C,B45,'2-3. Travel Costs&Costs of Stay'!B:B,$B$8)+SUMIFS('4. Equipment Costs'!H:H,'4. Equipment Costs'!C:C,B45,'4. Equipment Costs'!B:B,$B$8)+SUMIFS('5. Subcontracting Costs'!H:H,'5. Subcontracting Costs'!C:C,B45,'5. Subcontracting Costs'!B:B,$B$8) -> 0 | G45: =SUMIFS('1. Staff costs'!S:S,'1. Staff costs'!C:C,B45,'1. Staff costs'!B:B,$G$21)+SUMIFS('2-3. Travel Costs&Costs of Stay'!N:N,'2-3. Travel Costs&Costs of Stay'!C:C,B45,'2-3. Travel Costs&Costs of Stay'!B:B,$G$21)+SUMIFS('4. Equipment Costs'!H:H,'4. Equipment Costs'!C:C,B45,'4. Equipment Costs'!B:B,$G$21)+SUMIFS('5. Subcontracting Costs'!H:H,'5. Subcontracting Costs'!C:C,B45,'5. Subcontracting Costs'!B:B,$G$21) -> 0 | H45: 0 | I45: 0
B46: P25 | C46: =SUMIFS('1. Staff costs'!S:S,'1. Staff costs'!C:C,B46,'1. Staff costs'!B:B,$C$21)+SUMIFS('2-3. Travel Costs&Costs of Stay'!N:N,'2-3. Travel Costs&Costs of Stay'!C:C,B46,'2-3. Travel Costs&Costs of Stay'!B:B,$C$21)+SUMIFS('4. Equipment Costs'!H:H,'4. Equipment Costs'!C:C,B46,'4. Equipment Costs'!B:B,$C$21)+SUMIFS('5. Subcontracting Costs'!H:H,'5. Subcontracting Costs'!C:C,B46,'5. Subcontracting Costs'!B:B,$C$21) -> 0 | D46: =SUMIFS('1. Staff costs'!S:S,'1. Staff costs'!C:C,B46,'1. Staff costs'!B:B,$D$21)+SUMIFS('2-3. Travel Costs&Costs of Stay'!N:N,'2-3. Travel Costs&Costs of Stay'!C:C,B46,'2-3. Travel Costs&Costs of Stay'!B:B,$D$21)+SUMIFS('4. Equipment Costs'!H:H,'4. Equipment Costs'!C:C,B46,'4. Equipment Costs'!B:B,$D$21)+SUMIFS('5. Subcontracting Costs'!H:H,'5. Subcontracting Costs'!C:C,B46,'5. Subcontracting Costs'!B:B,$D$21) -> 0 | E46: =SUMIFS('1. Staff costs'!S:S,'1. Staff costs'!C:C,B46,'1. Staff costs'!B:B,$E$21)+SUMIFS('2-3. Travel Costs&Costs of Stay'!N:N,'2-3. Travel Costs&Costs of Stay'!C:C,B46,'2-3. Travel Costs&Costs of Stay'!B:B,$E$21)+SUMIFS('4. Equipment Costs'!H:H,'4. Equipment Costs'!C:C,B46,'4. Equipment Costs'!B:B,$E$21)+SUMIFS('5. Subcontracting Costs'!H:H,'5. Subcontracting Costs'!C:C,B46,'5. Subcontracting Costs'!B:B,$E$21) -> 0 | F46: =SUMIFS('1. Staff costs'!S:S,'1. Staff costs'!C:C,B46,'1. Staff costs'!B:B,$B$8)+SUMIFS('2-3. Travel Costs&Costs of Stay'!N:N,'2-3. Travel Costs&Costs of Stay'!C:C,B46,'2-3. Travel Costs&Costs of Stay'!B:B,$B$8)+SUMIFS('4. Equipment Costs'!H:H,'4. Equipment Costs'!C:C,B46,'4. Equipment Costs'!B:B,$B$8)+SUMIFS('5. Subcontracting Costs'!H:H,'5. Subcontracting Costs'!C:C,B46,'5. Subcontracting Costs'!B:B,$B$8) -> 0 | G46: =SUMIFS('1. Staff costs'!S:S,'1. Staff costs'!C:C,B46,'1. Staff costs'!B:B,$G$21)+SUMIFS('2-3. Travel Costs&Costs of Stay'!N:N,'2-3. Travel Costs&Costs of Stay'!C:C,B46,'2-3. Travel Costs&Costs of Stay'!B:B,$G$21)+SUMIFS('4. Equipment Costs'!H:H,'4. Equipment Costs'!C:C,B46,'4. Equipment Costs'!B:B,$G$21)+SUMIFS('5. Subcontracting Costs'!H:H,'5. Subcontracting Costs'!C:C,B46,'5. Subcontracting Costs'!B:B,$G$21) -> 0 | H46: 0 | I46: 0
B47: P26 | C47: =SUMIFS('1. Staff costs'!S:S,'1. Staff costs'!C:C,B47,'1. Staff costs'!B:B,$C$21)+SUMIFS('2-3. Travel Costs&Costs of Stay'!N:N,'2-3. Travel Costs&Costs of Stay'!C:C,B47,'2-3. Travel Costs&Costs of Stay'!B:B,$C$21)+SUMIFS('4. Equipment Costs'!H:H,'4. Equipment Costs'!C:C,B47,'4. Equipment Costs'!B:B,$C$21)+SUMIFS('5. Subcontracting Costs'!H:H,'5. Subcontracting Costs'!C:C,B47,'5. Subcontracting Costs'!B:B,$C$21) -> 0 | D47: =SUMIFS('1. Staff costs'!S:S,'1. Staff costs'!C:C,B47,'1. Staff costs'!B:B,$D$21)+SUMIFS('2-3. Travel Costs&Costs of Stay'!N:N,'2-3. Travel Costs&Costs of Stay'!C:C,B47,'2-3. Travel Costs&Costs of Stay'!B:B,$D$21)+SUMIFS('4. Equipment Costs'!H:H,'4. Equipment Costs'!C:C,B47,'4. Equipment Costs'!B:B,$D$21)+SUMIFS('5. Subcontracting Costs'!H:H,'5. Subcontracting Costs'!C:C,B47,'5. Subcontracting Costs'!B:B,$D$21) -> 0 | E47: =SUMIFS('1. Staff costs'!S:S,'1. Staff costs'!C:C,B47,'1. Staff costs'!B:B,$E$21)+SUMIFS('2-3. Travel Costs&Costs of Stay'!N:N,'2-3. Travel Costs&Costs of Stay'!C:C,B47,'2-3. Travel Costs&Costs of Stay'!B:B,$E$21)+SUMIFS('4. Equipment Costs'!H:H,'4. Equipment Costs'!C:C,B47,'4. Equipment Costs'!B:B,$E$21)+SUMIFS('5. Subcontracting Costs'!H:H,'5. Subcontracting Costs'!C:C,B47,'5. Subcontracting Costs'!B:B,$E$21) -> 0 | F47: =SUMIFS('1. Staff costs'!S:S,'1. Staff costs'!C:C,B47,'1. Staff costs'!B:B,$B$8)+SUMIFS('2-3. Travel Costs&Costs of Stay'!N:N,'2-3. Travel Costs&Costs of Stay'!C:C,B47,'2-3. Travel Costs&Costs of Stay'!B:B,$B$8)+SUMIFS('4. Equipment Costs'!H:H,'4. Equipment Costs'!C:C,B47,'4. Equipment Costs'!B:B,$B$8)+SUMIFS('5. Subcontracting Costs'!H:H,'5. Subcontracting Costs'!C:C,B47,'5. Subcontracting Costs'!B:B,$B$8) -> 0 | G47: =SUMIFS('1. Staff costs'!S:S,'1. Staff costs'!C:C,B47,'1. Staff costs'!B:B,$G$21)+SUMIFS('2-3. Travel Costs&Costs of Stay'!N:N,'2-3. Travel Costs&Costs of Stay'!C:C,B47,'2-3. Travel Costs&Costs of Stay'!B:B,$G$21)+SUMIFS('4. Equipment Costs'!H:H,'4. Equipment Costs'!C:C,B47,'4. Equipment Costs'!B:B,$G$21)+SUMIFS('5. Subcontracting Costs'!H:H,'5. Subcontracting Costs'!C:C,B47,'5. Subcontracting Costs'!B:B,$G$21) -> 0 | H47: 0 | I47: 0
B48: P27 | C48: =SUMIFS('1. Staff costs'!S:S,'1. Staff costs'!C:C,B48,'1. Staff costs'!B:B,$C$21)+SUMIFS('2-3. Travel Costs&Costs of Stay'!N:N,'2-3. Travel Costs&Costs of Stay'!C:C,B48,'2-3. Travel Costs&Costs of Stay'!B:B,$C$21)+SUMIFS('4. Equipment Costs'!H:H,'4. Equipment Costs'!C:C,B48,'4. Equipment Costs'!B:B,$C$21)+SUMIFS('5. Subcontracting Costs'!H:H,'5. Subcontracting Costs'!C:C,B48,'5. Subcontracting Costs'!B:B,$C$21) -> 0 | D48: =SUMIFS('1. Staff costs'!S:S,'1. Staff costs'!C:C,B48,'1. Staff costs'!B:B,$D$21)+SUMIFS('2-3. Travel Costs&Costs of Stay'!N:N,'2-3. Travel Costs&Costs of Stay'!C:C,B48,'2-3. Travel Costs&Costs of Stay'!B:B,$D$21)+SUMIFS('4. Equipment Costs'!H:H,'4. Equipment Costs'!C:C,B48,'4. Equipment Costs'!B:B,$D$21)+SUMIFS('5. Subcontracting Costs'!H:H,'5. Subcontracting Costs'!C:C,B48,'5. Subcontracting Costs'!B:B,$D$21) -> 0 | E48: =SUMIFS('1. Staff costs'!S:S,'1. Staff costs'!C:C,B48,'1. Staff costs'!B:B,$E$21)+SUMIFS('2-3. Travel Costs&Costs of Stay'!N:N,'2-3. Travel Costs&Costs of Stay'!C:C,B48,'2-3. Travel Costs&Costs of Stay'!B:B,$E$21)+SUMIFS('4. Equipment Costs'!H:H,'4. Equipment Costs'!C:C,B48,'4. Equipment Costs'!B:B,$E$21)+SUMIFS('5. Subcontracting Costs'!H:H,'5. Subcontracting Costs'!C:C,B48,'5. Subcontracting Costs'!B:B,$E$21) -> 0 | F48: =SUMIFS('1. Staff costs'!S:S,'1. Staff costs'!C:C,B48,'1. Staff costs'!B:B,$B$8)+SUMIFS('2-3. Travel Costs&Costs of Stay'!N:N,'2-3. Travel Costs&Costs of Stay'!C:C,B48,'2-3. Travel Costs&Costs of Stay'!B:B,$B$8)+SUMIFS('4. Equipment Costs'!H:H,'4. Equipment Costs'!C:C,B48,'4. Equipment Costs'!B:B,$B$8)+SUMIFS('5. Subcontracting Costs'!H:H,'5. Subcontracting Costs'!C:C,B48,'5. Subcontracting Costs'!B:B,$B$8) -> 0 | G48: =SUMIFS('1. Staff costs'!S:S,'1. Staff costs'!C:C,B48,'1. Staff costs'!B:B,$G$21)+SUMIFS('2-3. Travel Costs&Costs of Stay'!N:N,'2-3. Travel Costs&Costs of Stay'!C:C,B48,'2-3. Travel Costs&Costs of Stay'!B:B,$G$21)+SUMIFS('4. Equipment Costs'!H:H,'4. Equipment Costs'!C:C,B48,'4. Equipment Costs'!B:B,$G$21)+SUMIFS('5. Subcontracting Costs'!H:H,'5. Subcontracting Costs'!C:C,B48,'5. Subcontracting Costs'!B:B,$G$21) -> 0 | H48: 0 | I48: 0
B49: P28 | C49: =SUMIFS('1. Staff costs'!S:S,'1. Staff costs'!C:C,B49,'1. Staff costs'!B:B,$C$21)+SUMIFS('2-3. Travel Costs&Costs of Stay'!N:N,'2-3. Travel Costs&Costs of Stay'!C:C,B49,'2-3. Travel Costs&Costs of Stay'!B:B,$C$21)+SUMIFS('4. Equipment Costs'!H:H,'4. Equipment Costs'!C:C,B49,'4. Equipment Costs'!B:B,$C$21)+SUMIFS('5. Subcontracting Costs'!H:H,'5. Subcontracting Costs'!C:C,B49,'5. Subcontracting Costs'!B:B,$C$21) -> 0 | D49: =SUMIFS('1. Staff costs'!S:S,'1. Staff costs'!C:C,B49,'1. Staff costs'!B:B,$D$21)+SUMIFS('2-3. Travel Costs&Costs of Stay'!N:N,'2-3. Travel Costs&Costs of Stay'!C:C,B49,'2-3. Travel Costs&Costs of Stay'!B:B,$D$21)+SUMIFS('4. Equipment Costs'!H:H,'4. Equipment Costs'!C:C,B49,'4. Equipment Costs'!B:B,$D$21)+SUMIFS('5. Subcontracting Costs'!H:H,'5. Subcontracting Costs'!C:C,B49,'5. Subcontracting Costs'!B:B,$D$21) -> 0 | E49: =SUMIFS('1. Staff costs'!S:S,'1. Staff costs'!C:C,B49,'1. Staff costs'!B:B,$E$21)+SUMIFS('2-3. Travel Costs&Costs of Stay'!N:N,'2-3. Travel Costs&Costs of Stay'!C:C,B49,'2-3. Travel Costs&Costs of Stay'!B:B,$E$21)+SUMIFS('4. Equipment Costs'!H:H,'4. Equipment Costs'!C:C,B49,'4. Equipment Costs'!B:B,$E$21)+SUMIFS('5. Subcontracting Costs'!H:H,'5. Subcontracting Costs'!C:C,B49,'5. Subcontracting Costs'!B:B,$E$21) -> 0 | F49: =SUMIFS('1. Staff costs'!S:S,'1. Staff costs'!C:C,B49,'1. Staff costs'!B:B,$B$8)+SUMIFS('2-3. Travel Costs&Costs of Stay'!N:N,'2-3. Travel Costs&Costs of Stay'!C:C,B49,'2-3. Travel Costs&Costs of Stay'!B:B,$B$8)+SUMIFS('4. Equipment Costs'!H:H,'4. Equipment Costs'!C:C,B49,'4. Equipment Costs'!B:B,$B$8)+SUMIFS('5. Subcontracting Costs'!H:H,'5. Subcontracting Costs'!C:C,B49,'5. Subcontracting Costs'!B:B,$B$8) -> 0 | G49: =SUMIFS('1. Staff costs'!S:S,'1. Staff costs'!C:C,B49,'1. Staff costs'!B:B,$G$21)+SUMIFS('2-3. Travel Costs&Costs of Stay'!N:N,'2-3. Travel Costs&Costs of Stay'!C:C,B49,'2-3. Travel Costs&Costs of Stay'!B:B,$G$21)+SUMIFS('4. Equipment Costs'!H:H,'4. Equipment Costs'!C:C,B49,'4. Equipment Costs'!B:B,$G$21)+SUMIFS('5. Subcontracting Costs'!H:H,'5. Subcontracting Costs'!C:C,B49,'5. Subcontracting Costs'!B:B,$G$21) -> 0 | H49: 0 | I49: 0
B50: P29 | C50: =SUMIFS('1. Staff costs'!S:S,'1. Staff costs'!C:C,B50,'1. Staff costs'!B:B,$C$21)+SUMIFS('2-3. Travel Costs&Costs of Stay'!N:N,'2-3. Travel Costs&Costs of Stay'!C:C,B50,'2-3. Travel Costs&Costs of Stay'!B:B,$C$21)+SUMIFS('4. Equipment Costs'!H:H,'4. Equipment Costs'!C:C,B50,'4. Equipment Costs'!B:B,$C$21)+SUMIFS('5. Subcontracting Costs'!H:H,'5. Subcontracting Costs'!C:C,B50,'5. Subcontracting Costs'!B:B,$C$21) -> 0 | D50: =SUMIFS('1. Staff costs'!S:S,'1. Staff costs'!C:C,B50,'1. Staff costs'!B:B,$D$21)+SUMIFS('2-3. Travel Costs&Costs of Stay'!N:N,'2-3. Travel Costs&Costs of Stay'!C:C,B50,'2-3. Travel Costs&Costs of Stay'!B:B,$D$21)+SUMIFS('4. Equipment Costs'!H:H,'4. Equipment Costs'!C:C,B50,'4. Equipment Costs'!B:B,$D$21)+SUMIFS('5. Subcontracting Costs'!H:H,'5. Subcontracting Costs'!C:C,B50,'5. Subcontracting Costs'!B:B,$D$21) -> 0 | E50: =SUMIFS('1. Staff costs'!S:S,'1. Staff costs'!C:C,B50,'1. Staff costs'!B:B,$E$21)+SUMIFS('2-3. Travel Costs&Costs of Stay'!N:N,'2-3. Travel Costs&Costs of Stay'!C:C,B50,'2-3. Travel Costs&Costs of Stay'!B:B,$E$21)+SUMIFS('4. Equipment Costs'!H:H,'4. Equipment Costs'!C:C,B50,'4. Equipment Costs'!B:B,$E$21)+SUMIFS('5. Subcontracting Costs'!H:H,'5. Subcontracting Costs'!C:C,B50,'5. Subcontracting Costs'!B:B,$E$21) -> 0 | F50: =SUMIFS('1. Staff costs'!S:S,'1. Staff costs'!C:C,B50,'1. Staff costs'!B:B,$B$8)+SUMIFS('2-3. Travel Costs&Costs of Stay'!N:N,'2-3. Travel Costs&Costs of Stay'!C:C,B50,'2-3. Travel Costs&Costs of Stay'!B:B,$B$8)+SUMIFS('4. Equipment Costs'!H:H,'4. Equipment Costs'!C:C,B50,'4. Equipment Costs'!B:B,$B$8)+SUMIFS('5. Subcontracting Costs'!H:H,'5. Subcontracting Costs'!C:C,B50,'5. Subcontracting Costs'!B:B,$B$8) -> 0 | G50: =SUMIFS('1. Staff costs'!S:S,'1. Staff costs'!C:C,B50,'1. Staff costs'!B:B,$G$21)+SUMIFS('2-3. Travel Costs&Costs of Stay'!N:N,'2-3. Travel Costs&Costs of Stay'!C:C,B50,'2-3. Travel Costs&Costs of Stay'!B:B,$G$21)+SUMIFS('4. Equipment Costs'!H:H,'4. Equipment Costs'!C:C,B50,'4. Equipment Costs'!B:B,$G$21)+SUMIFS('5. Subcontracting Costs'!H:H,'5. Subcontracting Costs'!C:C,B50,'5. Subcontracting Costs'!B:B,$G$21) -> 0 | H50: 0 | I50: 0
B51: P30 | C51: =SUMIFS('1. Staff costs'!S:S,'1. Staff costs'!C:C,B51,'1. Staff costs'!B:B,$C$21)+SUMIFS('2-3. Travel Costs&Costs of Stay'!N:N,'2-3. Travel Costs&Costs of Stay'!C:C,B51,'2-3. Travel Costs&Costs of Stay'!B:B,$C$21)+SUMIFS('4. Equipment Costs'!H:H,'4. Equipment Costs'!C:C,B51,'4. Equipment Costs'!B:B,$C$21)+SUMIFS('5. Subcontracting Costs'!H:H,'5. Subcontracting Costs'!C:C,B51,'5. Subcontracting Costs'!B:B,$C$21) -> 0 | D51: =SUMIFS('1. Staff costs'!S:S,'1. Staff costs'!C:C,B51,'1. Staff costs'!B:B,$D$21)+SUMIFS('2-3. Travel Costs&Costs of Stay'!N:N,'2-3. Travel Costs&Costs of Stay'!C:C,B51,'2-3. Travel Costs&Costs of Stay'!B:B,$D$21)+SUMIFS('4. Equipment Costs'!H:H,'4. Equipment Costs'!C:C,B51,'4. Equipment Costs'!B:B,$D$21)+SUMIFS('5. Subcontracting Costs'!H:H,'5. Subcontracting Costs'!C:C,B51,'5. Subcontracting Costs'!B:B,$D$21) -> 0 | E51: =SUMIFS('1. Staff costs'!S:S,'1. Staff costs'!C:C,B51,'1. Staff costs'!B:B,$E$21)+SUMIFS('2-3. Travel Costs&Costs of Stay'!N:N,'2-3. Travel Costs&Costs of Stay'!C:C,B51,'2-3. Travel Costs&Costs of Stay'!B:B,$E$21)+SUMIFS('4. Equipment Costs'!H:H,'4. Equipment Costs'!C:C,B51,'4. Equipment Costs'!B:B,$E$21)+SUMIFS('5. Subcontracting Costs'!H:H,'5. Subcontracting Costs'!C:C,B51,'5. Subcontracting Costs'!B:B,$E$21) -> 0 | F51: =SUMIFS('1. Staff costs'!S:S,'1. Staff costs'!C:C,B51,'1. Staff costs'!B:B,$B$8)+SUMIFS('2-3. Travel Costs&Costs of Stay'!N:N,'2-3. Travel Costs&Costs of Stay'!C:C,B51,'2-3. Travel Costs&Costs of Stay'!B:B,$B$8)+SUMIFS('4. Equipment Costs'!H:H,'4. Equipment Costs'!C:C,B51,'4. Equipment Costs'!B:B,$B$8)+SUMIFS('5. Subcontracting Costs'!H:H,'5. Subcontracting Costs'!C:C,B51,'5. Subcontracting Costs'!B:B,$B$8) -> 0 | G51: =SUMIFS('1. Staff costs'!S:S,'1. Staff costs'!C:C,B51,'1. Staff costs'!B:B,$G$21)+SUMIFS('2-3. Travel Costs&Costs of Stay'!N:N,'2-3. Travel Costs&Costs of Stay'!C:C,B51,'2-3. Travel Costs&Costs of Stay'!B:B,$G$21)+SUMIFS('4. Equipment Costs'!H:H,'4. Equipment Costs'!C:C,B51,'4. Equipment Costs'!B:B,$G$21)+SUMIFS('5. Subcontracting Costs'!H:H,'5. Subcontracting Costs'!C:C,B51,'5. Subcontracting Costs'!B:B,$G$21) -> 0 | H51: 0 | I51: 0
B52: P31 | C52: =SUMIFS('1. Staff costs'!S:S,'1. Staff costs'!C:C,B52,'1. Staff costs'!B:B,$C$21)+SUMIFS('2-3. Travel Costs&Costs of Stay'!N:N,'2-3. Travel Costs&Costs of Stay'!C:C,B52,'2-3. Travel Costs&Costs of Stay'!B:B,$C$21)+SUMIFS('4. Equipment Costs'!H:H,'4. Equipment Costs'!C:C,B52,'4. Equipment Costs'!B:B,$C$21)+SUMIFS('5. Subcontracting Costs'!H:H,'5. Subcontracting Costs'!C:C,B52,'5. Subcontracting Costs'!B:B,$C$21) -> 0 | D52: =SUMIFS('1. Staff costs'!S:S,'1. Staff costs'!C:C,B52,'1. Staff costs'!B:B,$D$21)+SUMIFS('2-3. Travel Costs&Costs of Stay'!N:N,'2-3. Travel Costs&Costs of Stay'!C:C,B52,'2-3. Travel Costs&Costs of Stay'!B:B,$D$21)+SUMIFS('4. Equipment Costs'!H:H,'4. Equipment Costs'!C:C,B52,'4. Equipment Costs'!B:B,$D$21)+SUMIFS('5. Subcontracting Costs'!H:H,'5. Subcontracting Costs'!C:C,B52,'5. Subcontracting Costs'!B:B,$D$21) -> 0 | E52: =SUMIFS('1. Staff costs'!S:S,'1. Staff costs'!C:C,B52,'1. Staff costs'!B:B,$E$21)+SUMIFS('2-3. Travel Costs&Costs of Stay'!N:N,'2-3. Travel Costs&Costs of Stay'!C:C,B52,'2-3. Travel Costs&Costs of Stay'!B:B,$E$21)+SUMIFS('4. Equipment Costs'!H:H,'4. Equipment Costs'!C:C,B52,'4. Equipment Costs'!B:B,$E$21)+SUMIFS('5. Subcontracting Costs'!H:H,'5. Subcontracting Costs'!C:C,B52,'5. Subcontracting Costs'!B:B,$E$21) -> 0 | F52: =SUMIFS('1. Staff costs'!S:S,'1. Staff costs'!C:C,B52,'1. Staff costs'!B:B,$B$8)+SUMIFS('2-3. Travel Costs&Costs of Stay'!N:N,'2-3. Travel Costs&Costs of Stay'!C:C,B52,'2-3. Travel Costs&Costs of Stay'!B:B,$B$8)+SUMIFS('4. Equipment Costs'!H:H,'4. Equipment Costs'!C:C,B52,'4. Equipment Costs'!B:B,$B$8)+SUMIFS('5. Subcontracting Costs'!H:H,'5. Subcontracting Costs'!C:C,B52,'5. Subcontracting Costs'!B:B,$B$8) -> 0 | G52: =SUMIFS('1. Staff costs'!S:S,'1. Staff costs'!C:C,B52,'1. Staff costs'!B:B,$G$21)+SUMIFS('2-3. Travel Costs&Costs of Stay'!N:N,'2-3. Travel Costs&Costs of Stay'!C:C,B52,'2-3. Travel Costs&Costs of Stay'!B:B,$G$21)+SUMIFS('4. Equipment Costs'!H:H,'4. Equipment Costs'!C:C,B52,'4. Equipment Costs'!B:B,$G$21)+SUMIFS('5. Subcontracting Costs'!H:H,'5. Subcontracting Costs'!C:C,B52,'5. Subcontracting Costs'!B:B,$G$21) -> 0 | H52: 0 | I52: 0
B53: P32 | C53: =SUMIFS('1. Staff costs'!S:S,'1. Staff costs'!C:C,B53,'1. Staff costs'!B:B,$C$21)+SUMIFS('2-3. Travel Costs&Costs of Stay'!N:N,'2-3. Travel Costs&Costs of Stay'!C:C,B53,'2-3. Travel Costs&Costs of Stay'!B:B,$C$21)+SUMIFS('4. Equipment Costs'!H:H,'4. Equipment Costs'!C:C,B53,'4. Equipment Costs'!B:B,$C$21)+SUMIFS('5. Subcontracting Costs'!H:H,'5. Subcontracting Costs'!C:C,B53,'5. Subcontracting Costs'!B:B,$C$21) -> 0 | D53: =SUMIFS('1. Staff costs'!S:S,'1. Staff costs'!C:C,B53,'1. Staff costs'!B:B,$D$21)+SUMIFS('2-3. Travel Costs&Costs of Stay'!N:N,'2-3. Travel Costs&Costs of Stay'!C:C,B53,'2-3. Travel Costs&Costs of Stay'!B:B,$D$21)+SUMIFS('4. Equipment Costs'!H:H,'4. Equipment Costs'!C:C,B53,'4. Equipment Costs'!B:B,$D$21)+SUMIFS('5. Subcontracting Costs'!H:H,'5. Subcontracting Costs'!C:C,B53,'5. Subcontracting Costs'!B:B,$D$21) -> 0 | E53: =SUMIFS('1. Staff costs'!S:S,'1. Staff costs'!C:C,B53,'1. Staff costs'!B:B,$E$21)+SUMIFS('2-3. Travel Costs&Costs of Stay'!N:N,'2-3. Travel Costs&Costs of Stay'!C:C,B53,'2-3. Travel Costs&Costs of Stay'!B:B,$E$21)+SUMIFS('4. Equipment Costs'!H:H,'4. Equipment Costs'!C:C,B53,'4. Equipment Costs'!B:B,$E$21)+SUMIFS('5. Subcontracting Costs'!H:H,'5. Subcontracting Costs'!C:C,B53,'5. Subcontracting Costs'!B:B,$E$21) -> 0 | F53: =SUMIFS('1. Staff costs'!S:S,'1. Staff costs'!C:C,B53,'1. Staff costs'!B:B,$B$8)+SUMIFS('2-3. Travel Costs&Costs of Stay'!N:N,'2-3. Travel Costs&Costs of Stay'!C:C,B53,'2-3. Travel Costs&Costs of Stay'!B:B,$B$8)+SUMIFS('4. Equipment Costs'!H:H,'4. Equipment Costs'!C:C,B53,'4. Equipment Costs'!B:B,$B$8)+SUMIFS('5. Subcontracting Costs'!H:H,'5. Subcontracting Costs'!C:C,B53,'5. Subcontracting Costs'!B:B,$B$8) -> 0 | G53: =SUMIFS('1. Staff costs'!S:S,'1. Staff costs'!C:C,B53,'1. Staff costs'!B:B,$G$21)+SUMIFS('2-3. Travel Costs&Costs of Stay'!N:N,'2-3. Travel Costs&Costs of Stay'!C:C,B53,'2-3. Travel Costs&Costs of Stay'!B:B,$G$21)+SUMIFS('4. Equipment Costs'!H:H,'4. Equipment Costs'!C:C,B53,'4. Equipment Costs'!B:B,$G$21)+SUMIFS('5. Subcontracting Costs'!H:H,'5. Subcontracting Costs'!C:C,B53,'5. Subcontracting Costs'!B:B,$G$21) -> 0 | H53: 0 | I53: 0
B54: P33 | C54: =SUMIFS('1. Staff costs'!S:S,'1. Staff costs'!C:C,B54,'1. Staff costs'!B:B,$C$21)+SUMIFS('2-3. Travel Costs&Costs of Stay'!N:N,'2-3. Travel Costs&Costs of Stay'!C:C,B54,'2-3. Travel Costs&Costs of Stay'!B:B,$C$21)+SUMIFS('4. Equipment Costs'!H:H,'4. Equipment Costs'!C:C,B54,'4. Equipment Costs'!B:B,$C$21)+SUMIFS('5. Subcontracting Costs'!H:H,'5. Subcontracting Costs'!C:C,B54,'5. Subcontracting Costs'!B:B,$C$21) -> 0 | D54: =SUMIFS('1. Staff costs'!S:S,'1. Staff costs'!C:C,B54,'1. Staff costs'!B:B,$D$21)+SUMIFS('2-3. Travel Costs&Costs of Stay'!N:N,'2-3. Travel Costs&Costs of Stay'!C:C,B54,'2-3. Travel Costs&Costs of Stay'!B:B,$D$21)+SUMIFS('4. Equipment Costs'!H:H,'4. Equipment Costs'!C:C,B54,'4. Equipment Costs'!B:B,$D$21)+SUMIFS('5. Subcontracting Costs'!H:H,'5. Subcontracting Costs'!C:C,B54,'5. Subcontracting Costs'!B:B,$D$21) -> 0 | E54: =SUMIFS('1. Staff costs'!S:S,'1. Staff costs'!C:C,B54,'1. Staff costs'!B:B,$E$21)+SUMIFS('2-3. Travel Costs&Costs of Stay'!N:N,'2-3. Travel Costs&Costs of Stay'!C:C,B54,'2-3. Travel Costs&Costs of Stay'!B:B,$E$21)+SUMIFS('4. Equipment Costs'!H:H,'4. Equipment Costs'!C:C,B54,'4. Equipment Costs'!B:B,$E$21)+SUMIFS('5. Subcontracting Costs'!H:H,'5. Subcontracting Costs'!C:C,B54,'5. Subcontracting Costs'!B:B,$E$21) -> 0 | F54: =SUMIFS('1. Staff costs'!S:S,'1. Staff costs'!C:C,B54,'1. Staff costs'!B:B,$B$8)+SUMIFS('2-3. Travel Costs&Costs of Stay'!N:N,'2-3. Travel Costs&Costs of Stay'!C:C,B54,'2-3. Travel Costs&Costs of Stay'!B:B,$B$8)+SUMIFS('4. Equipment Costs'!H:H,'4. Equipment Costs'!C:C,B54,'4. Equipment Costs'!B:B,$B$8)+SUMIFS('5. Subcontracting Costs'!H:H,'5. Subcontracting Costs'!C:C,B54,'5. Subcontracting Costs'!B:B,$B$8) -> 0 | G54: =SUMIFS('1. Staff costs'!S:S,'1. Staff costs'!C:C,B54,'1. Staff costs'!B:B,$G$21)+SUMIFS('2-3. Travel Costs&Costs of Stay'!N:N,'2-3. Travel Costs&Costs of Stay'!C:C,B54,'2-3. Travel Costs&Costs of Stay'!B:B,$G$21)+SUMIFS('4. Equipment Costs'!H:H,'4. Equipment Costs'!C:C,B54,'4. Equipment Costs'!B:B,$G$21)+SUMIFS('5. Subcontracting Costs'!H:H,'5. Subcontracting Costs'!C:C,B54,'5. Subcontracting Costs'!B:B,$G$21) -> 0 | H54: 0 | I54: 0
B55: P34 | C55: =SUMIFS('1. Staff costs'!S:S,'1. Staff costs'!C:C,B55,'1. Staff costs'!B:B,$C$21)+SUMIFS('2-3. Travel Costs&Costs of Stay'!N:N,'2-3. Travel Costs&Costs of Stay'!C:C,B55,'2-3. Travel Costs&Costs of Stay'!B:B,$C$21)+SUMIFS('4. Equipment Costs'!H:H,'4. Equipment Costs'!C:C,B55,'4. Equipment Costs'!B:B,$C$21)+SUMIFS('5. Subcontracting Costs'!H:H,'5. Subcontracting Costs'!C:C,B55,'5. Subcontracting Costs'!B:B,$C$21) -> 0 | D55: =SUMIFS('1. Staff costs'!S:S,'1. Staff costs'!C:C,B55,'1. Staff costs'!B:B,$D$21)+SUMIFS('2-3. Travel Costs&Costs of Stay'!N:N,'2-3. Travel Costs&Costs of Stay'!C:C,B55,'2-3. Travel Costs&Costs of Stay'!B:B,$D$21)+SUMIFS('4. Equipment Costs'!H:H,'4. Equipment Costs'!C:C,B55,'4. Equipment Costs'!B:B,$D$21)+SUMIFS('5. Subcontracting Costs'!H:H,'5. Subcontracting Costs'!C:C,B55,'5. Subcontracting Costs'!B:B,$D$21) -> 0 | E55: =SUMIFS('1. Staff costs'!S:S,'1. Staff costs'!C:C,B55,'1. Staff costs'!B:B,$E$21)+SUMIFS('2-3. Travel Costs&Costs of Stay'!N:N,'2-3. Travel Costs&Costs of Stay'!C:C,B55,'2-3. Travel Costs&Costs of Stay'!B:B,$E$21)+SUMIFS('4. Equipment Costs'!H:H,'4. Equipment Costs'!C:C,B55,'4. Equipment Costs'!B:B,$E$21)+SUMIFS('5. Subcontracting Costs'!H:H,'5. Subcontracting Costs'!C:C,B55,'5. Subcontracting Costs'!B:B,$E$21) -> 0 | F55: =SUMIFS('1. Staff costs'!S:S,'1. Staff costs'!C:C,B55,'1. Staff costs'!B:B,$B$8)+SUMIFS('2-3. Travel Costs&Costs of Stay'!N:N,'2-3. Travel Costs&Costs of Stay'!C:C,B55,'2-3. Travel Costs&Costs of Stay'!B:B,$B$8)+SUMIFS('4. Equipment Costs'!H:H,'4. Equipment Costs'!C:C,B55,'4. Equipment Costs'!B:B,$B$8)+SUMIFS('5. Subcontracting Costs'!H:H,'5. Subcontracting Costs'!C:C,B55,'5. Subcontracting Costs'!B:B,$B$8) -> 0 | G55: =SUMIFS('1. Staff costs'!S:S,'1. Staff costs'!C:C,B55,'1. Staff costs'!B:B,$G$21)+SUMIFS('2-3. Travel Costs&Costs of Stay'!N:N,'2-3. Travel Costs&Costs of Stay'!C:C,B55,'2-3. Travel Costs&Costs of Stay'!B:B,$G$21)+SUMIFS('4. Equipment Costs'!H:H,'4. Equipment Costs'!C:C,B55,'4. Equipment Costs'!B:B,$G$21)+SUMIFS('5. Subcontracting Costs'!H:H,'5. Subcontracting Costs'!C:C,B55,'5. Subcontracting Costs'!B:B,$G$21) -> 0 | H55: 0 | I55: 0
B56: P35 | C56: =SUMIFS('1. Staff costs'!S:S,'1. Staff costs'!C:C,B56,'1. Staff costs'!B:B,$C$21)+SUMIFS('2-3. Travel Costs&Costs of Stay'!N:N,'2-3. Travel Costs&Costs of Stay'!C:C,B56,'2-3. Travel Costs&Costs of Stay'!B:B,$C$21)+SUMIFS('4. Equipment Costs'!H:H,'4. Equipment Costs'!C:C,B56,'4. Equipment Costs'!B:B,$C$21)+SUMIFS('5. Subcontracting Costs'!H:H,'5. Subcontracting Costs'!C:C,B56,'5. Subcontracting Costs'!B:B,$C$21) -> 0 | D56: =SUMIFS('1. Staff costs'!S:S,'1. Staff costs'!C:C,B56,'1. Staff costs'!B:B,$D$21)+SUMIFS('2-3. Travel Costs&Costs of Stay'!N:N,'2-3. Travel Costs&Costs of Stay'!C:C,B56,'2-3. Travel Costs&Costs of Stay'!B:B,$D$21)+SUMIFS('4. Equipment Costs'!H:H,'4. Equipment Costs'!C:C,B56,'4. Equipment Costs'!B:B,$D$21)+SUMIFS('5. Subcontracting Costs'!H:H,'5. Subcontracting Costs'!C:C,B56,'5. Subcontracting Costs'!B:B,$D$21) -> 0 | E56: =SUMIFS('1. Staff costs'!S:S,'1. Staff costs'!C:C,B56,'1. Staff costs'!B:B,$E$21)+SUMIFS('2-3. Travel Costs&Costs of Stay'!N:N,'2-3. Travel Costs&Costs of Stay'!C:C,B56,'2-3. Travel Costs&Costs of Stay'!B:B,$E$21)+SUMIFS('4. Equipment Costs'!H:H,'4. Equipment Costs'!C:C,B56,'4. Equipment Costs'!B:B,$E$21)+SUMIFS('5. Subcontracting Costs'!H:H,'5. Subcontracting Costs'!C:C,B56,'5. Subcontracting Costs'!B:B,$E$21) -> 0 | F56: =SUMIFS('1. Staff costs'!S:S,'1. Staff costs'!C:C,B56,'1. Staff costs'!B:B,$B$8)+SUMIFS('2-3. Travel Costs&Costs of Stay'!N:N,'2-3. Travel Costs&Costs of Stay'!C:C,B56,'2-3. Travel Costs&Costs of Stay'!B:B,$B$8)+SUMIFS('4. Equipment Costs'!H:H,'4. Equipment Costs'!C:C,B56,'4. Equipment Costs'!B:B,$B$8)+SUMIFS('5. Subcontracting Costs'!H:H,'5. Subcontracting Costs'!C:C,B56,'5. Subcontracting Costs'!B:B,$B$8) -> 0 | G56: =SUMIFS('1. Staff costs'!S:S,'1. Staff costs'!C:C,B56,'1. Staff costs'!B:B,$G$21)+SUMIFS('2-3. Travel Costs&Costs of Stay'!N:N,'2-3. Travel Costs&Costs of Stay'!C:C,B56,'2-3. Travel Costs&Costs of Stay'!B:B,$G$21)+SUMIFS('4. Equipment Costs'!H:H,'4. Equipment Costs'!C:C,B56,'4. Equipment Costs'!B:B,$G$21)+SUMIFS('5. Subcontracting Costs'!H:H,'5. Subcontracting Costs'!C:C,B56,'5. Subcontracting Costs'!B:B,$G$21) -> 0 | H56: 0 | I56: 0
B57: P36 | C57: =SUMIFS('1. Staff costs'!S:S,'1. Staff costs'!C:C,B57,'1. Staff costs'!B:B,$C$21)+SUMIFS('2-3. Travel Costs&Costs of Stay'!N:N,'2-3. Travel Costs&Costs of Stay'!C:C,B57,'2-3. Travel Costs&Costs of Stay'!B:B,$C$21)+SUMIFS('4. Equipment Costs'!H:H,'4. Equipment Costs'!C:C,B57,'4. Equipment Costs'!B:B,$C$21)+SUMIFS('5. Subcontracting Costs'!H:H,'5. Subcontracting Costs'!C:C,B57,'5. Subcontracting Costs'!B:B,$C$21) -> 0 | D57: =SUMIFS('1. Staff costs'!S:S,'1. Staff costs'!C:C,B57,'1. Staff costs'!B:B,$D$21)+SUMIFS('2-3. Travel Costs&Costs of Stay'!N:N,'2-3. Travel Costs&Costs of Stay'!C:C,B57,'2-3. Travel Costs&Costs of Stay'!B:B,$D$21)+SUMIFS('4. Equipment Costs'!H:H,'4. Equipment Costs'!C:C,B57,'4. Equipment Costs'!B:B,$D$21)+SUMIFS('5. Subcontracting Costs'!H:H,'5. Subcontracting Costs'!C:C,B57,'5. Subcontracting Costs'!B:B,$D$21) -> 0 | E57: =SUMIFS('1. Staff costs'!S:S,'1. Staff costs'!C:C,B57,'1. Staff costs'!B:B,$E$21)+SUMIFS('2-3. Travel Costs&Costs of Stay'!N:N,'2-3. Travel Costs&Costs of Stay'!C:C,B57,'2-3. Travel Costs&Costs of Stay'!B:B,$E$21)+SUMIFS('4. Equipment Costs'!H:H,'4. Equipment Costs'!C:C,B57,'4. Equipment Costs'!B:B,$E$21)+SUMIFS('5. Subcontracting Costs'!H:H,'5. Subcontracting Costs'!C:C,B57,'5. Subcontracting Costs'!B:B,$E$21) -> 0 | F57: =SUMIFS('1. Staff costs'!S:S,'1. Staff costs'!C:C,B57,'1. Staff costs'!B:B,$B$8)+SUMIFS('2-3. Travel Costs&Costs of Stay'!N:N,'2-3. Travel Costs&Costs of Stay'!C:C,B57,'2-3. Travel Costs&Costs of Stay'!B:B,$B$8)+SUMIFS('4. Equipment Costs'!H:H,'4. Equipment Costs'!C:C,B57,'4. Equipment Costs'!B:B,$B$8)+SUMIFS('5. Subcontracting Costs'!H:H,'5. Subcontracting Costs'!C:C,B57,'5. Subcontracting Costs'!B:B,$B$8) -> 0 | G57: =SUMIFS('1. Staff costs'!S:S,'1. Staff costs'!C:C,B57,'1. Staff costs'!B:B,$G$21)+SUMIFS('2-3. Travel Costs&Costs of Stay'!N:N,'2-3. Travel Costs&Costs of Stay'!C:C,B57,'2-3. Travel Costs&Costs of Stay'!B:B,$G$21)+SUMIFS('4. Equipment Costs'!H:H,'4. Equipment Costs'!C:C,B57,'4. Equipment Costs'!B:B,$G$21)+SUMIFS('5. Subcontracting Costs'!H:H,'5. Subcontracting Costs'!C:C,B57,'5. Subcontracting Costs'!B:B,$G$21) -> 0 | H57: 0 | I57: 0
B58: P37 | C58: =SUMIFS('1. Staff costs'!S:S,'1. Staff costs'!C:C,B58,'1. Staff costs'!B:B,$C$21)+SUMIFS('2-3. Travel Costs&Costs of Stay'!N:N,'2-3. Travel Costs&Costs of Stay'!C:C,B58,'2-3. Travel Costs&Costs of Stay'!B:B,$C$21)+SUMIFS('4. Equipment Costs'!H:H,'4. Equipment Costs'!C:C,B58,'4. Equipment Costs'!B:B,$C$21)+SUMIFS('5. Subcontracting Costs'!H:H,'5. Subcontracting Costs'!C:C,B58,'5. Subcontracting Costs'!B:B,$C$21) -> 0 | D58: =SUMIFS('1. Staff costs'!S:S,'1. Staff costs'!C:C,B58,'1. Staff costs'!B:B,$D$21)+SUMIFS('2-3. Travel Costs&Costs of Stay'!N:N,'2-3. Travel Costs&Costs of Stay'!C:C,B58,'2-3. Travel Costs&Costs of Stay'!B:B,$D$21)+SUMIFS('4. Equipment Costs'!H:H,'4. Equipment Costs'!C:C,B58,'4. Equipment Costs'!B:B,$D$21)+SUMIFS('5. Subcontracting Costs'!H:H,'5. Subcontracting Costs'!C:C,B58,'5. Subcontracting Costs'!B:B,$D$21) -> 0 | E58: =SUMIFS('1. Staff costs'!S:S,'1. Staff costs'!C:C,B58,'1. Staff costs'!B:B,$E$21)+SUMIFS('2-3. Travel Costs&Costs of Stay'!N:N,'2-3. Travel Costs&Costs of Stay'!C:C,B58,'2-3. Travel Costs&Costs of Stay'!B:B,$E$21)+SUMIFS('4. Equipment Costs'!H:H,'4. Equipment Costs'!C:C,B58,'4. Equipment Costs'!B:B,$E$21)+SUMIFS('5. Subcontracting Costs'!H:H,'5. Subcontracting Costs'!C:C,B58,'5. Subcontracting Costs'!B:B,$E$21) -> 0 | F58: =SUMIFS('1. Staff costs'!S:S,'1. Staff costs'!C:C,B58,'1. Staff costs'!B:B,$B$8)+SUMIFS('2-3. Travel Costs&Costs of Stay'!N:N,'2-3. Travel Costs&Costs of Stay'!C:C,B58,'2-3. Travel Costs&Costs of Stay'!B:B,$B$8)+SUMIFS('4. Equipment Costs'!H:H,'4. Equipment Costs'!C:C,B58,'4. Equipment Costs'!B:B,$B$8)+SUMIFS('5. Subcontracting Costs'!H:H,'5. Subcontracting Costs'!C:C,B58,'5. Subcontracting Costs'!B:B,$B$8) -> 0 | G58: =SUMIFS('1. Staff costs'!S:S,'1. Staff costs'!C:C,B58,'1. Staff costs'!B:B,$G$21)+SUMIFS('2-3. Travel Costs&Costs of Stay'!N:N,'2-3. Travel Costs&Costs of Stay'!C:C,B58,'2-3. Travel Costs&Costs of Stay'!B:B,$G$21)+SUMIFS('4. Equipment Costs'!H:H,'4. Equipment Costs'!C:C,B58,'4. Equipment Costs'!B:B,$G$21)+SUMIFS('5. Subcontracting Costs'!H:H,'5. Subcontracting Costs'!C:C,B58,'5. Subcontracting Costs'!B:B,$G$21) -> 0 | H58: 0 | I58: 0
B59: P38 | C59: =SUMIFS('1. Staff costs'!S:S,'1. Staff costs'!C:C,B59,'1. Staff costs'!B:B,$C$21)+SUMIFS('2-3. Travel Costs&Costs of Stay'!N:N,'2-3. Travel Costs&Costs of Stay'!C:C,B59,'2-3. Travel Costs&Costs of Stay'!B:B,$C$21)+SUMIFS('4. Equipment Costs'!H:H,'4. Equipment Costs'!C:C,B59,'4. Equipment Costs'!B:B,$C$21)+SUMIFS('5. Subcontracting Costs'!H:H,'5. Subcontracting Costs'!C:C,B59,'5. Subcontracting Costs'!B:B,$C$21) -> 0 | D59: =SUMIFS('1. Staff costs'!S:S,'1. Staff costs'!C:C,B59,'1. Staff costs'!B:B,$D$21)+SUMIFS('2-3. Travel Costs&Costs of Stay'!N:N,'2-3. Travel Costs&Costs of Stay'!C:C,B59,'2-3. Travel Costs&Costs of Stay'!B:B,$D$21)+SUMIFS('4. Equipment Costs'!H:H,'4. Equipment Costs'!C:C,B59,'4. Equipment Costs'!B:B,$D$21)+SUMIFS('5. Subcontracting Costs'!H:H,'5. Subcontracting Costs'!C:C,B59,'5. Subcontracting Costs'!B:B,$D$21) -> 0 | E59: =SUMIFS('1. Staff costs'!S:S,'1. Staff costs'!C:C,B59,'1. Staff costs'!B:B,$E$21)+SUMIFS('2-3. Travel Costs&Costs of Stay'!N:N,'2-3. Travel Costs&Costs of Stay'!C:C,B59,'2-3. Travel Costs&Costs of Stay'!B:B,$E$21)+SUMIFS('4. Equipment Costs'!H:H,'4. Equipment Costs'!C:C,B59,'4. Equipment Costs'!B:B,$E$21)+SUMIFS('5. Subcontracting Costs'!H:H,'5. Subcontracting Costs'!C:C,B59,'5. Subcontracting Costs'!B:B,$E$21) -> 0 | F59: =SUMIFS('1. Staff costs'!S:S,'1. Staff costs'!C:C,B59,'1. Staff costs'!B:B,$B$8)+SUMIFS('2-3. Travel Costs&Costs of Stay'!N:N,'2-3. Travel Costs&Costs of Stay'!C:C,B59,'2-3. Travel Costs&Costs of Stay'!B:B,$B$8)+SUMIFS('4. Equipment Costs'!H:H,'4. Equipment Costs'!C:C,B59,'4. Equipment Costs'!B:B,$B$8)+SUMIFS('5. Subcontracting Costs'!H:H,'5. Subcontracting Costs'!C:C,B59,'5. Subcontracting Costs'!B:B,$B$8) -> 0 | G59: =SUMIFS('1. Staff costs'!S:S,'1. Staff costs'!C:C,B59,'1. Staff costs'!B:B,$G$21)+SUMIFS('2-3. Travel Costs&Costs of Stay'!N:N,'2-3. Travel Costs&Costs of Stay'!C:C,B59,'2-3. Travel Costs&Costs of Stay'!B:B,$G$21)+SUMIFS('4. Equipment Costs'!H:H,'4. Equipment Costs'!C:C,B59,'4. Equipment Costs'!B:B,$G$21)+SUMIFS('5. Subcontracting Costs'!H:H,'5. Subcontracting Costs'!C:C,B59,'5. Subcontracting Costs'!B:B,$G$21) -> 0 | H59: 0 | I59: 0
B60: P39 | C60: =SUMIFS('1. Staff costs'!S:S,'1. Staff costs'!C:C,B60,'1. Staff costs'!B:B,$C$21)+SUMIFS('2-3. Travel Costs&Costs of Stay'!N:N,'2-3. Travel Costs&Costs of Stay'!C:C,B60,'2-3. Travel Costs&Costs of Stay'!B:B,$C$21)+SUMIFS('4. Equipment Costs'!H:H,'4. Equipment Costs'!C:C,B60,'4. Equipment Costs'!B:B,$C$21)+SUMIFS('5. Subcontracting Costs'!H:H,'5. Subcontracting Costs'!C:C,B60,'5. Subcontracting Costs'!B:B,$C$21) -> 0 | D60: =SUMIFS('1. Staff costs'!S:S,'1. Staff costs'!C:C,B60,'1. Staff costs'!B:B,$D$21)+SUMIFS('2-3. Travel Costs&Costs of Stay'!N:N,'2-3. Travel Costs&Costs of Stay'!C:C,B60,'2-3. Travel Costs&Costs of Stay'!B:B,$D$21)+SUMIFS('4. Equipment Costs'!H:H,'4. Equipment Costs'!C:C,B60,'4. Equipment Costs'!B:B,$D$21)+SUMIFS('5. Subcontracting Costs'!H:H,'5. Subcontracting Costs'!C:C,B60,'5. Subcontracting Costs'!B:B,$D$21) -> 0 | E60: =SUMIFS('1. Staff costs'!S:S,'1. Staff costs'!C:C,B60,'1. Staff costs'!B:B,$E$21)+SUMIFS('2-3. Travel Costs&Costs of Stay'!N:N,'2-3. Travel Costs&Costs of Stay'!C:C,B60,'2-3. Travel Costs&Costs of Stay'!B:B,$E$21)+SUMIFS('4. Equipment Costs'!H:H,'4. Equipment Costs'!C:C,B60,'4. Equipment Costs'!B:B,$E$21)+SUMIFS('5. Subcontracting Costs'!H:H,'5. Subcontracting Costs'!C:C,B60,'5. Subcontracting Costs'!B:B,$E$21) -> 0 | F60: =SUMIFS('1. Staff costs'!S:S,'1. Staff costs'!C:C,B60,'1. Staff costs'!B:B,$B$8)+SUMIFS('2-3. Travel Costs&Costs of Stay'!N:N,'2-3. Travel Costs&Costs of Stay'!C:C,B60,'2-3. Travel Costs&Costs of Stay'!B:B,$B$8)+SUMIFS('4. Equipment Costs'!H:H,'4. Equipment Costs'!C:C,B60,'4. Equipment Costs'!B:B,$B$8)+SUMIFS('5. Subcontracting Costs'!H:H,'5. Subcontracting Costs'!C:C,B60,'5. Subcontracting Costs'!B:B,$B$8) -> 0 | G60: =SUMIFS('1. Staff costs'!S:S,'1. Staff costs'!C:C,B60,'1. Staff costs'!B:B,$G$21)+SUMIFS('2-3. Travel Costs&Costs of Stay'!N:N,'2-3. Travel Costs&Costs of Stay'!C:C,B60,'2-3. Travel Costs&Costs of Stay'!B:B,$G$21)+SUMIFS('4. Equipment Costs'!H:H,'4. Equipment Costs'!C:C,B60,'4. Equipment Costs'!B:B,$G$21)+SUMIFS('5. Subcontracting Costs'!H:H,'5. Subcontracting Costs'!C:C,B60,'5. Subcontracting Costs'!B:B,$G$21) -> 0 | H60: 0 | I60: 0
B61: P40 | C61: =SUMIFS('1. Staff costs'!S:S,'1. Staff costs'!C:C,B61,'1. Staff costs'!B:B,$C$21)+SUMIFS('2-3. Travel Costs&Costs of Stay'!N:N,'2-3. Travel Costs&Costs of Stay'!C:C,B61,'2-3. Travel Costs&Costs of Stay'!B:B,$C$21)+SUMIFS('4. Equipment Costs'!H:H,'4. Equipment Costs'!C:C,B61,'4. Equipment Costs'!B:B,$C$21)+SUMIFS('5. Subcontracting Costs'!H:H,'5. Subcontracting Costs'!C:C,B61,'5. Subcontracting Costs'!B:B,$C$21) -> 0 | D61: =SUMIFS('1. Staff costs'!S:S,'1. Staff costs'!C:C,B61,'1. Staff costs'!B:B,$D$21)+SUMIFS('2-3. Travel Costs&Costs of Stay'!N:N,'2-3. Travel Costs&Costs of Stay'!C:C,B61,'2-3. Travel Costs&Costs of Stay'!B:B,$D$21)+SUMIFS('4. Equipment Costs'!H:H,'4. Equipment Costs'!C:C,B61,'4. Equipment Costs'!B:B,$D$21)+SUMIFS('5. Subcontracting Costs'!H:H,'5. Subcontracting Costs'!C:C,B61,'5. Subcontracting Costs'!B:B,$D$21) -> 0 | E61: =SUMIFS('1. Staff costs'!S:S,'1. Staff costs'!C:C,B61,'1. Staff costs'!B:B,$E$21)+SUMIFS('2-3. Travel Costs&Costs of Stay'!N:N,'2-3. Travel Costs&Costs of Stay'!C:C,B61,'2-3. Travel Costs&Costs of Stay'!B:B,$E$21)+SUMIFS('4. Equipment Costs'!H:H,'4. Equipment Costs'!C:C,B61,'4. Equipment Costs'!B:B,$E$21)+SUMIFS('5. Subcontracting Costs'!H:H,'5. Subcontracting Costs'!C:C,B61,'5. Subcontracting Costs'!B:B,$E$21) -> 0 | F61: =SUMIFS('1. Staff costs'!S:S,'1. Staff costs'!C:C,B61,'1. Staff costs'!B:B,$B$8)+SUMIFS('2-3. Travel Costs&Costs of Stay'!N:N,'2-3. Travel Costs&Costs of Stay'!C:C,B61,'2-3. Travel Costs&Costs of Stay'!B:B,$B$8)+SUMIFS('4. Equipment Costs'!H:H,'4. Equipment Costs'!C:C,B61,'4. Equipment Costs'!B:B,$B$8)+SUMIFS('5. Subcontracting Costs'!H:H,'5. Subcontracting Costs'!C:C,B61,'5. Subcontracting Costs'!B:B,$B$8) -> 0 | G61: =SUMIFS('1. Staff costs'!S:S,'1. Staff costs'!C:C,B61,'1. Staff costs'!B:B,$G$21)+SUMIFS('2-3. Travel Costs&Costs of Stay'!N:N,'2-3. Travel Costs&Costs of Stay'!C:C,B61,'2-3. Travel Costs&Costs of Stay'!B:B,$G$21)+SUMIFS('4. Equipment Costs'!H:H,'4. Equipment Costs'!C:C,B61,'4. Equipment Costs'!B:B,$G$21)+SUMIFS('5. Subcontracting Costs'!H:H,'5. Subcontracting Costs'!C:C,B61,'5. Subcontracting Costs'!B:B,$G$21) -> 0 | H61: 0 | I61: 0
B62: P41 | C62: =SUMIFS('1. Staff costs'!S:S,'1. Staff costs'!C:C,B62,'1. Staff costs'!B:B,$C$21)+SUMIFS('2-3. Travel Costs&Costs of Stay'!N:N,'2-3. Travel Costs&Costs of Stay'!C:C,B62,'2-3. Travel Costs&Costs of Stay'!B:B,$C$21)+SUMIFS('4. Equipment Costs'!H:H,'4. Equipment Costs'!C:C,B62,'4. Equipment Costs'!B:B,$C$21)+SUMIFS('5. Subcontracting Costs'!H:H,'5. Subcontracting Costs'!C:C,B62,'5. Subcontracting Costs'!B:B,$C$21) -> 0 | D62: =SUMIFS('1. Staff costs'!S:S,'1. Staff costs'!C:C,B62,'1. Staff costs'!B:B,$D$21)+SUMIFS('2-3. Travel Costs&Costs of Stay'!N:N,'2-3. Travel Costs&Costs of Stay'!C:C,B62,'2-3. Travel Costs&Costs of Stay'!B:B,$D$21)+SUMIFS('4. Equipment Costs'!H:H,'4. Equipment Costs'!C:C,B62,'4. Equipment Costs'!B:B,$D$21)+SUMIFS('5. Subcontracting Costs'!H:H,'5. Subcontracting Costs'!C:C,B62,'5. Subcontracting Costs'!B:B,$D$21) -> 0 | E62: =SUMIFS('1. Staff costs'!S:S,'1. Staff costs'!C:C,B62,'1. Staff costs'!B:B,$E$21)+SUMIFS('2-3. Travel Costs&Costs of Stay'!N:N,'2-3. Travel Costs&Costs of Stay'!C:C,B62,'2-3. Travel Costs&Costs of Stay'!B:B,$E$21)+SUMIFS('4. Equipment Costs'!H:H,'4. Equipment Costs'!C:C,B62,'4. Equipment Costs'!B:B,$E$21)+SUMIFS('5. Subcontracting Costs'!H:H,'5. Subcontracting Costs'!C:C,B62,'5. Subcontracting Costs'!B:B,$E$21) -> 0 | F62: =SUMIFS('1. Staff costs'!S:S,'1. Staff costs'!C:C,B62,'1. Staff costs'!B:B,$B$8)+SUMIFS('2-3. Travel Costs&Costs of Stay'!N:N,'2-3. Travel Costs&Costs of Stay'!C:C,B62,'2-3. Travel Costs&Costs of Stay'!B:B,$B$8)+SUMIFS('4. Equipment Costs'!H:H,'4. Equipment Costs'!C:C,B62,'4. Equipment Costs'!B:B,$B$8)+SUMIFS('5. Subcontracting Costs'!H:H,'5. Subcontracting Costs'!C:C,B62,'5. Subcontracting Costs'!B:B,$B$8) -> 0 | G62: =SUMIFS('1. Staff costs'!S:S,'1. Staff costs'!C:C,B62,'1. Staff costs'!B:B,$G$21)+SUMIFS('2-3. Travel Costs&Costs of Stay'!N:N,'2-3. Travel Costs&Costs of Stay'!C:C,B62,'2-3. Travel Costs&Costs of Stay'!B:B,$G$21)+SUMIFS('4. Equipment Costs'!H:H,'4. Equipment Costs'!C:C,B62,'4. Equipment Costs'!B:B,$G$21)+SUMIFS('5. Subcontracting Costs'!H:H,'5. Subcontracting Costs'!C:C,B62,'5. Subcontracting Costs'!B:B,$G$21) -> 0 | H62: 0 | I62: 0
B63: P42 | C63: =SUMIFS('1. Staff costs'!S:S,'1. Staff costs'!C:C,B63,'1. Staff costs'!B:B,$C$21)+SUMIFS('2-3. Travel Costs&Costs of Stay'!N:N,'2-3. Travel Costs&Costs of Stay'!C:C,B63,'2-3. Travel Costs&Costs of Stay'!B:B,$C$21)+SUMIFS('4. Equipment Costs'!H:H,'4. Equipment Costs'!C:C,B63,'4. Equipment Costs'!B:B,$C$21)+SUMIFS('5. Subcontracting Costs'!H:H,'5. Subcontracting Costs'!C:C,B63,'5. Subcontracting Costs'!B:B,$C$21) -> 0 | D63: =SUMIFS('1. Staff costs'!S:S,'1. Staff costs'!C:C,B63,'1. Staff costs'!B:B,$D$21)+SUMIFS('2-3. Travel Costs&Costs of Stay'!N:N,'2-3. Travel Costs&Costs of Stay'!C:C,B63,'2-3. Travel Costs&Costs of Stay'!B:B,$D$21)+SUMIFS('4. Equipment Costs'!H:H,'4. Equipment Costs'!C:C,B63,'4. Equipment Costs'!B:B,$D$21)+SUMIFS('5. Subcontracting Costs'!H:H,'5. Subcontracting Costs'!C:C,B63,'5. Subcontracting Costs'!B:B,$D$21) -> 0 | E63: =SUMIFS('1. Staff costs'!S:S,'1. Staff costs'!C:C,B63,'1. Staff costs'!B:B,$E$21)+SUMIFS('2-3. Travel Costs&Costs of Stay'!N:N,'2-3. Travel Costs&Costs of Stay'!C:C,B63,'2-3. Travel Costs&Costs of Stay'!B:B,$E$21)+SUMIFS('4. Equipment Costs'!H:H,'4. Equipment Costs'!C:C,B63,'4. Equipment Costs'!B:B,$E$21)+SUMIFS('5. Subcontracting Costs'!H:H,'5. Subcontracting Costs'!C:C,B63,'5. Subcontracting Costs'!B:B,$E$21) -> 0 | F63: =SUMIFS('1. Staff costs'!S:S,'1. Staff costs'!C:C,B63,'1. Staff costs'!B:B,$B$8)+SUMIFS('2-3. Travel Costs&Costs of Stay'!N:N,'2-3. Travel Costs&Costs of Stay'!C:C,B63,'2-3. Travel Costs&Costs of Stay'!B:B,$B$8)+SUMIFS('4. Equipment Costs'!H:H,'4. Equipment Costs'!C:C,B63,'4. Equipment Costs'!B:B,$B$8)+SUMIFS('5. Subcontracting Costs'!H:H,'5. Subcontracting Costs'!C:C,B63,'5. Subcontracting Costs'!B:B,$B$8) -> 0 | G63: =SUMIFS('1. Staff costs'!S:S,'1. Staff costs'!C:C,B63,'1. Staff costs'!B:B,$G$21)+SUMIFS('2-3. Travel Costs&Costs of Stay'!N:N,'2-3. Travel Costs&Costs of Stay'!C:C,B63,'2-3. Travel Costs&Costs of Stay'!B:B,$G$21)+SUMIFS('4. Equipment Costs'!H:H,'4. Equipment Costs'!C:C,B63,'4. Equipment Costs'!B:B,$G$21)+SUMIFS('5. Subcontracting Costs'!H:H,'5. Subcontracting Costs'!C:C,B63,'5. Subcontracting Costs'!B:B,$G$21) -> 0 | H63: 0 | I63: 0
B64: P43 | C64: =SUMIFS('1. Staff costs'!S:S,'1. Staff costs'!C:C,B64,'1. Staff costs'!B:B,$C$21)+SUMIFS('2-3. Travel Costs&Costs of Stay'!N:N,'2-3. Travel Costs&Costs of Stay'!C:C,B64,'2-3. Travel Costs&Costs of Stay'!B:B,$C$21)+SUMIFS('4. Equipment Costs'!H:H,'4. Equipment Costs'!C:C,B64,'4. Equipment Costs'!B:B,$C$21)+SUMIFS('5. Subcontracting Costs'!H:H,'5. Subcontracting Costs'!C:C,B64,'5. Subcontracting Costs'!B:B,$C$21) -> 0 | D64: =SUMIFS('1. Staff costs'!S:S,'1. Staff costs'!C:C,B64,'1. Staff costs'!B:B,$D$21)+SUMIFS('2-3. Travel Costs&Costs of Stay'!N:N,'2-3. Travel Costs&Costs of Stay'!C:C,B64,'2-3. Travel Costs&Costs of Stay'!B:B,$D$21)+SUMIFS('4. Equipment Costs'!H:H,'4. Equipment Costs'!C:C,B64,'4. Equipment Costs'!B:B,$D$21)+SUMIFS('5. Subcontracting Costs'!H:H,'5. Subcontracting Costs'!C:C,B64,'5. Subcontracting Costs'!B:B,$D$21) -> 0 | E64: =SUMIFS('1. Staff costs'!S:S,'1. Staff costs'!C:C,B64,'1. Staff costs'!B:B,$E$21)+SUMIFS('2-3. Travel Costs&Costs of Stay'!N:N,'2-3. Travel Costs&Costs of Stay'!C:C,B64,'2-3. Travel Costs&Costs of Stay'!B:B,$E$21)+SUMIFS('4. Equipment Costs'!H:H,'4. Equipment Costs'!C:C,B64,'4. Equipment Costs'!B:B,$E$21)+SUMIFS('5. Subcontracting Costs'!H:H,'5. Subcontracting Costs'!C:C,B64,'5. Subcontracting Costs'!B:B,$E$21) -> 0 | F64: =SUMIFS('1. Staff costs'!S:S,'1. Staff costs'!C:C,B64,'1. Staff costs'!B:B,$B$8)+SUMIFS('2-3. Travel Costs&Costs of Stay'!N:N,'2-3. Travel Costs&Costs of Stay'!C:C,B64,'2-3. Travel Costs&Costs of Stay'!B:B,$B$8)+SUMIFS('4. Equipment Costs'!H:H,'4. Equipment Costs'!C:C,B64,'4. Equipment Costs'!B:B,$B$8)+SUMIFS('5. Subcontracting Costs'!H:H,'5. Subcontracting Costs'!C:C,B64,'5. Subcontracting Costs'!B:B,$B$8) -> 0 | G64: =SUMIFS('1. Staff costs'!S:S,'1. Staff costs'!C:C,B64,'1. Staff costs'!B:B,$G$21)+SUMIFS('2-3. Travel Costs&Costs of Stay'!N:N,'2-3. Travel Costs&Costs of Stay'!C:C,B64,'2-3. Travel Costs&Costs of Stay'!B:B,$G$21)+SUMIFS('4. Equipment Costs'!H:H,'4. Equipment Costs'!C:C,B64,'4. Equipment Costs'!B:B,$G$21)+SUMIFS('5. Subcontracting Costs'!H:H,'5. Subcontracting Costs'!C:C,B64,'5. Subcontracting Costs'!B:B,$G$21) -> 0 | H64: 0 | I64: 0
B65: P44 | C65: =SUMIFS('1. Staff costs'!S:S,'1. Staff costs'!C:C,B65,'1. Staff costs'!B:B,$C$21)+SUMIFS('2-3. Travel Costs&Costs of Stay'!N:N,'2-3. Travel Costs&Costs of Stay'!C:C,B65,'2-3. Travel Costs&Costs of Stay'!B:B,$C$21)+SUMIFS('4. Equipment Costs'!H:H,'4. Equipment Costs'!C:C,B65,'4. Equipment Costs'!B:B,$C$21)+SUMIFS('5. Subcontracting Costs'!H:H,'5. Subcontracting Costs'!C:C,B65,'5. Subcontracting Costs'!B:B,$C$21) -> 0 | D65: =SUMIFS('1. Staff costs'!S:S,'1. Staff costs'!C:C,B65,'1. Staff costs'!B:B,$D$21)+SUMIFS('2-3. Travel Costs&Costs of Stay'!N:N,'2-3. Travel Costs&Costs of Stay'!C:C,B65,'2-3. Travel Costs&Costs of Stay'!B:B,$D$21)+SUMIFS('4. Equipment Costs'!H:H,'4. Equipment Costs'!C:C,B65,'4. Equipment Costs'!B:B,$D$21)+SUMIFS('5. Subcontracting Costs'!H:H,'5. Subcontracting Costs'!C:C,B65,'5. Subcontracting Costs'!B:B,$D$21) -> 0 | E65: =SUMIFS('1. Staff costs'!S:S,'1. Staff costs'!C:C,B65,'1. Staff costs'!B:B,$E$21)+SUMIFS('2-3. Travel Costs&Costs of Stay'!N:N,'2-3. Travel Costs&Costs of Stay'!C:C,B65,'2-3. Travel Costs&Costs of Stay'!B:B,$E$21)+SUMIFS('4. Equipment Costs'!H:H,'4. Equipment Costs'!C:C,B65,'4. Equipment Costs'!B:B,$E$21)+SUMIFS('5. Subcontracting Costs'!H:H,'5. Subcontracting Costs'!C:C,B65,'5. Subcontracting Costs'!B:B,$E$21) -> 0 | F65: =SUMIFS('1. Staff costs'!S:S,'1. Staff costs'!C:C,B65,'1. Staff costs'!B:B,$B$8)+SUMIFS('2-3. Travel Costs&Costs of Stay'!N:N,'2-3. Travel Costs&Costs of Stay'!C:C,B65,'2-3. Travel Costs&Costs of Stay'!B:B,$B$8)+SUMIFS('4. Equipment Costs'!H:H,'4. Equipment Costs'!C:C,B65,'4. Equipment Costs'!B:B,$B$8)+SUMIFS('5. Subcontracting Costs'!H:H,'5. Subcontracting Costs'!C:C,B65,'5. Subcontracting Costs'!B:B,$B$8) -> 0 | G65: =SUMIFS('1. Staff costs'!S:S,'1. Staff costs'!C:C,B65,'1. Staff costs'!B:B,$G$21)+SUMIFS('2-3. Travel Costs&Costs of Stay'!N:N,'2-3. Travel Costs&Costs of Stay'!C:C,B65,'2-3. Travel Costs&Costs of Stay'!B:B,$G$21)+SUMIFS('4. Equipment Costs'!H:H,'4. Equipment Costs'!C:C,B65,'4. Equipment Costs'!B:B,$G$21)+SUMIFS('5. Subcontracting Costs'!H:H,'5. Subcontracting Costs'!C:C,B65,'5. Subcontracting Costs'!B:B,$G$21) -> 0 | H65: 0 | I65: 0
B66: P45 | C66: =SUMIFS('1. Staff costs'!S:S,'1. Staff costs'!C:C,B66,'1. Staff costs'!B:B,$C$21)+SUMIFS('2-3. Travel Costs&Costs of Stay'!N:N,'2-3. Travel Costs&Costs of Stay'!C:C,B66,'2-3. Travel Costs&Costs of Stay'!B:B,$C$21)+SUMIFS('4. Equipment Costs'!H:H,'4. Equipment Costs'!C:C,B66,'4. Equipment Costs'!B:B,$C$21)+SUMIFS('5. Subcontracting Costs'!H:H,'5. Subcontracting Costs'!C:C,B66,'5. Subcontracting Costs'!B:B,$C$21) -> 0 | D66: =SUMIFS('1. Staff costs'!S:S,'1. Staff costs'!C:C,B66,'1. Staff costs'!B:B,$D$21)+SUMIFS('2-3. Travel Costs&Costs of Stay'!N:N,'2-3. Travel Costs&Costs of Stay'!C:C,B66,'2-3. Travel Costs&Costs of Stay'!B:B,$D$21)+SUMIFS('4. Equipment Costs'!H:H,'4. Equipment Costs'!C:C,B66,'4. Equipment Costs'!B:B,$D$21)+SUMIFS('5. Subcontracting Costs'!H:H,'5. Subcontracting Costs'!C:C,B66,'5. Subcontracting Costs'!B:B,$D$21) -> 0 | E66: =SUMIFS('1. Staff costs'!S:S,'1. Staff costs'!C:C,B66,'1. Staff costs'!B:B,$E$21)+SUMIFS('2-3. Travel Costs&Costs of Stay'!N:N,'2-3. Travel Costs&Costs of Stay'!C:C,B66,'2-3. Travel Costs&Costs of Stay'!B:B,$E$21)+SUMIFS('4. Equipment Costs'!H:H,'4. Equipment Costs'!C:C,B66,'4. Equipment Costs'!B:B,$E$21)+SUMIFS('5. Subcontracting Costs'!H:H,'5. Subcontracting Costs'!C:C,B66,'5. Subcontracting Costs'!B:B,$E$21) -> 0 | F66: =SUMIFS('1. Staff costs'!S:S,'1. Staff costs'!C:C,B66,'1. Staff costs'!B:B,$B$8)+SUMIFS('2-3. Travel Costs&Costs of Stay'!N:N,'2-3. Travel Costs&Costs of Stay'!C:C,B66,'2-3. Travel Costs&Costs of Stay'!B:B,$B$8)+SUMIFS('4. Equipment Costs'!H:H,'4. Equipment Costs'!C:C,B66,'4. Equipment Costs'!B:B,$B$8)+SUMIFS('5. Subcontracting Costs'!H:H,'5. Subcontracting Costs'!C:C,B66,'5. Subcontracting Costs'!B:B,$B$8) -> 0 | G66: =SUMIFS('1. Staff costs'!S:S,'1. Staff costs'!C:C,B66,'1. Staff costs'!B:B,$G$21)+SUMIFS('2-3. Travel Costs&Costs of Stay'!N:N,'2-3. Travel Costs&Costs of Stay'!C:C,B66,'2-3. Travel Costs&Costs of Stay'!B:B,$G$21)+SUMIFS('4. Equipment Costs'!H:H,'4. Equipment Costs'!C:C,B66,'4. Equipment Costs'!B:B,$G$21)+SUMIFS('5. Subcontracting Costs'!H:H,'5. Subcontracting Costs'!C:C,B66,'5. Subcontracting Costs'!B:B,$G$21) -> 0 | H66: 0 | I66: 0
B67: P46 | C67: =SUMIFS('1. Staff costs'!S:S,'1. Staff costs'!C:C,B67,'1. Staff costs'!B:B,$C$21)+SUMIFS('2-3. Travel Costs&Costs of Stay'!N:N,'2-3. Travel Costs&Costs of Stay'!C:C,B67,'2-3. Travel Costs&Costs of Stay'!B:B,$C$21)+SUMIFS('4. Equipment Costs'!H:H,'4. Equipment Costs'!C:C,B67,'4. Equipment Costs'!B:B,$C$21)+SUMIFS('5. Subcontracting Costs'!H:H,'5. Subcontracting Costs'!C:C,B67,'5. Subcontracting Costs'!B:B,$C$21) -> 0 | D67: =SUMIFS('1. Staff costs'!S:S,'1. Staff costs'!C:C,B67,'1. Staff costs'!B:B,$D$21)+SUMIFS('2-3. Travel Costs&Costs of Stay'!N:N,'2-3. Travel Costs&Costs of Stay'!C:C,B67,'2-3. Travel Costs&Costs of Stay'!B:B,$D$21)+SUMIFS('4. Equipment Costs'!H:H,'4. Equipment Costs'!C:C,B67,'4. Equipment Costs'!B:B,$D$21)+SUMIFS('5. Subcontracting Costs'!H:H,'5. Subcontracting Costs'!C:C,B67,'5. Subcontracting Costs'!B:B,$D$21) -> 0 | E67: =SUMIFS('1. Staff costs'!S:S,'1. Staff costs'!C:C,B67,'1. Staff costs'!B:B,$E$21)+SUMIFS('2-3. Travel Costs&Costs of Stay'!N:N,'2-3. Travel Costs&Costs of Stay'!C:C,B67,'2-3. Travel Costs&Costs of Stay'!B:B,$E$21)+SUMIFS('4. Equipment Costs'!H:H,'4. Equipment Costs'!C:C,B67,'4. Equipment Costs'!B:B,$E$21)+SUMIFS('5. Subcontracting Costs'!H:H,'5. Subcontracting Costs'!C:C,B67,'5. Subcontracting Costs'!B:B,$E$21) -> 0 | F67: =SUMIFS('1. Staff costs'!S:S,'1. Staff costs'!C:C,B67,'1. Staff costs'!B:B,$B$8)+SUMIFS('2-3. Travel Costs&Costs of Stay'!N:N,'2-3. Travel Costs&Costs of Stay'!C:C,B67,'2-3. Travel Costs&Costs of Stay'!B:B,$B$8)+SUMIFS('4. Equipment Costs'!H:H,'4. Equipment Costs'!C:C,B67,'4. Equipment Costs'!B:B,$B$8)+SUMIFS('5. Subcontracting Costs'!H:H,'5. Subcontracting Costs'!C:C,B67,'5. Subcontracting Costs'!B:B,$B$8) -> 0 | G67: =SUMIFS('1. Staff costs'!S:S,'1. Staff costs'!C:C,B67,'1. Staff costs'!B:B,$G$21)+SUMIFS('2-3. Travel Costs&Costs of Stay'!N:N,'2-3. Travel Costs&Costs of Stay'!C:C,B67,'2-3. Travel Costs&Costs of Stay'!B:B,$G$21)+SUMIFS('4. Equipment Costs'!H:H,'4. Equipment Costs'!C:C,B67,'4. Equipment Costs'!B:B,$G$21)+SUMIFS('5. Subcontracting Costs'!H:H,'5. Subcontracting Costs'!C:C,B67,'5. Subcontracting Costs'!B:B,$G$21) -> 0 | H67: 0 | I67: 0
B68: P47 | C68: =SUMIFS('1. Staff costs'!S:S,'1. Staff costs'!C:C,B68,'1. Staff costs'!B:B,$C$21)+SUMIFS('2-3. Travel Costs&Costs of Stay'!N:N,'2-3. Travel Costs&Costs of Stay'!C:C,B68,'2-3. Travel Costs&Costs of Stay'!B:B,$C$21)+SUMIFS('4. Equipment Costs'!H:H,'4. Equipment Costs'!C:C,B68,'4. Equipment Costs'!B:B,$C$21)+SUMIFS('5. Subcontracting Costs'!H:H,'5. Subcontracting Costs'!C:C,B68,'5. Subcontracting Costs'!B:B,$C$21) -> 0 | D68: =SUMIFS('1. Staff costs'!S:S,'1. Staff costs'!C:C,B68,'1. Staff costs'!B:B,$D$21)+SUMIFS('2-3. Travel Costs&Costs of Stay'!N:N,'2-3. Travel Costs&Costs of Stay'!C:C,B68,'2-3. Travel Costs&Costs of Stay'!B:B,$D$21)+SUMIFS('4. Equipment Costs'!H:H,'4. Equipment Costs'!C:C,B68,'4. Equipment Costs'!B:B,$D$21)+SUMIFS('5. Subcontracting Costs'!H:H,'5. Subcontracting Costs'!C:C,B68,'5. Subcontracting Costs'!B:B,$D$21) -> 0 | E68: =SUMIFS('1. Staff costs'!S:S,'1. Staff costs'!C:C,B68,'1. Staff costs'!B:B,$E$21)+SUMIFS('2-3. Travel Costs&Costs of Stay'!N:N,'2-3. Travel Costs&Costs of Stay'!C:C,B68,'2-3. Travel Costs&Costs of Stay'!B:B,$E$21)+SUMIFS('4. Equipment Costs'!H:H,'4. Equipment Costs'!C:C,B68,'4. Equipment Costs'!B:B,$E$21)+SUMIFS('5. Subcontracting Costs'!H:H,'5. Subcontracting Costs'!C:C,B68,'5. Subcontracting Costs'!B:B,$E$21) -> 0 | F68: =SUMIFS('1. Staff costs'!S:S,'1. Staff costs'!C:C,B68,'1. Staff costs'!B:B,$B$8)+SUMIFS('2-3. Travel Costs&Costs of Stay'!N:N,'2-3. Travel Costs&Costs of Stay'!C:C,B68,'2-3. Travel Costs&Costs of Stay'!B:B,$B$8)+SUMIFS('4. Equipment Costs'!H:H,'4. Equipment Costs'!C:C,B68,'4. Equipment Costs'!B:B,$B$8)+SUMIFS('5. Subcontracting Costs'!H:H,'5. Subcontracting Costs'!C:C,B68,'5. Subcontracting Costs'!B:B,$B$8) -> 0 | G68: =SUMIFS('1. Staff costs'!S:S,'1. Staff costs'!C:C,B68,'1. Staff costs'!B:B,$G$21)+SUMIFS('2-3. Travel Costs&Costs of Stay'!N:N,'2-3. Travel Costs&Costs of Stay'!C:C,B68,'2-3. Travel Costs&Costs of Stay'!B:B,$G$21)+SUMIFS('4. Equipment Costs'!H:H,'4. Equipment Costs'!C:C,B68,'4. Equipment Costs'!B:B,$G$21)+SUMIFS('5. Subcontracting Costs'!H:H,'5. Subcontracting Costs'!C:C,B68,'5. Subcontracting Costs'!B:B,$G$21) -> 0 | H68: 0 | I68: 0
B69: P48 | C69: =SUMIFS('1. Staff costs'!S:S,'1. Staff costs'!C:C,B69,'1. Staff costs'!B:B,$C$21)+SUMIFS('2-3. Travel Costs&Costs of Stay'!N:N,'2-3. Travel Costs&Costs of Stay'!C:C,B69,'2-3. Travel Costs&Costs of Stay'!B:B,$C$21)+SUMIFS('4. Equipment Costs'!H:H,'4. Equipment Costs'!C:C,B69,'4. Equipment Costs'!B:B,$C$21)+SUMIFS('5. Subcontracting Costs'!H:H,'5. Subcontracting Costs'!C:C,B69,'5. Subcontracting Costs'!B:B,$C$21) -> 0 | D69: =SUMIFS('1. Staff costs'!S:S,'1. Staff costs'!C:C,B69,'1. Staff costs'!B:B,$D$21)+SUMIFS('2-3. Travel Costs&Costs of Stay'!N:N,'2-3. Travel Costs&Costs of Stay'!C:C,B69,'2-3. Travel Costs&Costs of Stay'!B:B,$D$21)+SUMIFS('4. Equipment Costs'!H:H,'4. Equipment Costs'!C:C,B69,'4. Equipment Costs'!B:B,$D$21)+SUMIFS('5. Subcontracting Costs'!H:H,'5. Subcontracting Costs'!C:C,B69,'5. Subcontracting Costs'!B:B,$D$21) -> 0 | E69: =SUMIFS('1. Staff costs'!S:S,'1. Staff costs'!C:C,B69,'1. Staff costs'!B:B,$E$21)+SUMIFS('2-3. Travel Costs&Costs of Stay'!N:N,'2-3. Travel Costs&Costs of Stay'!C:C,B69,'2-3. Travel Costs&Costs of Stay'!B:B,$E$21)+SUMIFS('4. Equipment Costs'!H:H,'4. Equipment Costs'!C:C,B69,'4. Equipment Costs'!B:B,$E$21)+SUMIFS('5. Subcontracting Costs'!H:H,'5. Subcontracting Costs'!C:C,B69,'5. Subcontracting Costs'!B:B,$E$21) -> 0 | F69: =SUMIFS('1. Staff costs'!S:S,'1. Staff costs'!C:C,B69,'1. Staff costs'!B:B,$B$8)+SUMIFS('2-3. Travel Costs&Costs of Stay'!N:N,'2-3. Travel Costs&Costs of Stay'!C:C,B69,'2-3. Travel Costs&Costs of Stay'!B:B,$B$8)+SUMIFS('4. Equipment Costs'!H:H,'4. Equipment Costs'!C:C,B69,'4. Equipment Costs'!B:B,$B$8)+SUMIFS('5. Subcontracting Costs'!H:H,'5. Subcontracting Costs'!C:C,B69,'5. Subcontracting Costs'!B:B,$B$8) -> 0 | G69: =SUMIFS('1. Staff costs'!S:S,'1. Staff costs'!C:C,B69,'1. Staff costs'!B:B,$G$21)+SUMIFS('2-3. Travel Costs&Costs of Stay'!N:N,'2-3. Travel Costs&Costs of Stay'!C:C,B69,'2-3. Travel Costs&Costs of Stay'!B:B,$G$21)+SUMIFS('4. Equipment Costs'!H:H,'4. Equipment Costs'!C:C,B69,'4. Equipment Costs'!B:B,$G$21)+SUMIFS('5. Subcontracting Costs'!H:H,'5. Subcontracting Costs'!C:C,B69,'5. Subcontracting Costs'!B:B,$G$21) -> 0 | H69: 0 | I69: 0
B70: P49 | C70: =SUMIFS('1. Staff costs'!S:S,'1. Staff costs'!C:C,B70,'1. Staff costs'!B:B,$C$21)+SUMIFS('2-3. Travel Costs&Costs of Stay'!N:N,'2-3. Travel Costs&Costs of Stay'!C:C,B70,'2-3. Travel Costs&Costs of Stay'!B:B,$C$21)+SUMIFS('4. Equipment Costs'!H:H,'4. Equipment Costs'!C:C,B70,'4. Equipment Costs'!B:B,$C$21)+SUMIFS('5. Subcontracting Costs'!H:H,'5. Subcontracting Costs'!C:C,B70,'5. Subcontracting Costs'!B:B,$C$21) -> 0 | D70: =SUMIFS('1. Staff costs'!S:S,'1. Staff costs'!C:C,B70,'1. Staff costs'!B:B,$D$21)+SUMIFS('2-3. Travel Costs&Costs of Stay'!N:N,'2-3. Travel Costs&Costs of Stay'!C:C,B70,'2-3. Travel Costs&Costs of Stay'!B:B,$D$21)+SUMIFS('4. Equipment Costs'!H:H,'4. Equipment Costs'!C:C,B70,'4. Equipment Costs'!B:B,$D$21)+SUMIFS('5. Subcontracting Costs'!H:H,'5. Subcontracting Costs'!C:C,B70,'5. Subcontracting Costs'!B:B,$D$21) -> 0 | E70: =SUMIFS('1. Staff costs'!S:S,'1. Staff costs'!C:C,B70,'1. Staff costs'!B:B,$E$21)+SUMIFS('2-3. Travel Costs&Costs of Stay'!N:N,'2-3. Travel Costs&Costs of Stay'!C:C,B70,'2-3. Travel Costs&Costs of Stay'!B:B,$E$21)+SUMIFS('4. Equipment Costs'!H:H,'4. Equipment Costs'!C:C,B70,'4. Equipment Costs'!B:B,$E$21)+SUMIFS('5. Subcontracting Costs'!H:H,'5. Subcontracting Costs'!C:C,B70,'5. Subcontracting Costs'!B:B,$E$21) -> 0 | F70: =SUMIFS('1. Staff costs'!S:S,'1. Staff costs'!C:C,B70,'1. Staff costs'!B:B,$B$8)+SUMIFS('2-3. Travel Costs&Costs of Stay'!N:N,'2-3. Travel Costs&Costs of Stay'!C:C,B70,'2-3. Travel Costs&Costs of Stay'!B:B,$B$8)+SUMIFS('4. Equipment Costs'!H:H,'4. Equipment Costs'!C:C,B70,'4. Equipment Costs'!B:B,$B$8)+SUMIFS('5. Subcontracting Costs'!H:H,'5. Subcontracting Costs'!C:C,B70,'5. Subcontracting Costs'!B:B,$B$8) -> 0 | G70: =SUMIFS('1. Staff costs'!S:S,'1. Staff costs'!C:C,B70,'1. Staff costs'!B:B,$G$21)+SUMIFS('2-3. Travel Costs&Costs of Stay'!N:N,'2-3. Travel Costs&Costs of Stay'!C:C,B70,'2-3. Travel Costs&Costs of Stay'!B:B,$G$21)+SUMIFS('4. Equipment Costs'!H:H,'4. Equipment Costs'!C:C,B70,'4. Equipment Costs'!B:B,$G$21)+SUMIFS('5. Subcontracting Costs'!H:H,'5. Subcontracting Costs'!C:C,B70,'5. Subcontracting Costs'!B:B,$G$21) -> 0 | H70: 0 | I70: 0
B71: P50 | C71: =SUMIFS('1. Staff costs'!S:S,'1. Staff costs'!C:C,B71,'1. Staff costs'!B:B,$C$21)+SUMIFS('2-3. Travel Costs&Costs of Stay'!N:N,'2-3. Travel Costs&Costs of Stay'!C:C,B71,'2-3. Travel Costs&Costs of Stay'!B:B,$C$21)+SUMIFS('4. Equipment Costs'!H:H,'4. Equipment Costs'!C:C,B71,'4. Equipment Costs'!B:B,$C$21)+SUMIFS('5. Subcontracting Costs'!H:H,'5. Subcontracting Costs'!C:C,B71,'5. Subcontracting Costs'!B:B,$C$21) -> 0 | D71: =SUMIFS('1. Staff costs'!S:S,'1. Staff costs'!C:C,B71,'1. Staff costs'!B:B,$D$21)+SUMIFS('2-3. Travel Costs&Costs of Stay'!N:N,'2-3. Travel Costs&Costs of Stay'!C:C,B71,'2-3. Travel Costs&Costs of Stay'!B:B,$D$21)+SUMIFS('4. Equipment Costs'!H:H,'4. Equipment Costs'!C:C,B71,'4. Equipment Costs'!B:B,$D$21)+SUMIFS('5. Subcontracting Costs'!H:H,'5. Subcontracting Costs'!C:C,B71,'5. Subcontracting Costs'!B:B,$D$21) -> 0 | E71: =SUMIFS('1. Staff costs'!S:S,'1. Staff costs'!C:C,B71,'1. Staff costs'!B:B,$E$21)+SUMIFS('2-3. Travel Costs&Costs of Stay'!N:N,'2-3. Travel Costs&Costs of Stay'!C:C,B71,'2-3. Travel Costs&Costs of Stay'!B:B,$E$21)+SUMIFS('4. Equipment Costs'!H:H,'4. Equipment Costs'!C:C,B71,'4. Equipment Costs'!B:B,$E$21)+SUMIFS('5. Subcontracting Costs'!H:H,'5. Subcontracting Costs'!C:C,B71,'5. Subcontracting Costs'!B:B,$E$21) -> 0 | F71: =SUMIFS('1. Staff costs'!S:S,'1. Staff costs'!C:C,B71,'1. Staff costs'!B:B,$B$8)+SUMIFS('2-3. Travel Costs&Costs of Stay'!N:N,'2-3. Travel Costs&Costs of Stay'!C:C,B71,'2-3. Travel Costs&Costs of Stay'!B:B,$B$8)+SUMIFS('4. Equipment Costs'!H:H,'4. Equipment Costs'!C:C,B71,'4. Equipment Costs'!B:B,$B$8)+SUMIFS('5. Subcontracting Costs'!H:H,'5. Subcontracting Costs'!C:C,B71,'5. Subcontracting Costs'!B:B,$B$8) -> 0 | G71: =SUMIFS('1. Staff costs'!S:S,'1. Staff costs'!C:C,B71,'1. Staff costs'!B:B,$G$21)+SUMIFS('2-3. Travel Costs&Costs of Stay'!N:N,'2-3. Travel Costs&Costs of Stay'!C:C,B71,'2-3. Travel Costs&Costs of Stay'!B:B,$G$21)+SUMIFS('4. Equipment Costs'!H:H,'4. Equipment Costs'!C:C,B71,'4. Equipment Costs'!B:B,$G$21)+SUMIFS('5. Subcontracting Costs'!H:H,'5. Subcontracting Costs'!C:C,B71,'5. Subcontracting Costs'!B:B,$G$21) -> 0 | H71: 0 | I71: 0
B72: P51 | C72: =SUMIFS('1. Staff costs'!S:S,'1. Staff costs'!C:C,B72,'1. Staff costs'!B:B,$C$21)+SUMIFS('2-3. Travel Costs&Costs of Stay'!N:N,'2-3. Travel Costs&Costs of Stay'!C:C,B72,'2-3. Travel Costs&Costs of Stay'!B:B,$C$21)+SUMIFS('4. Equipment Costs'!H:H,'4. Equipment Costs'!C:C,B72,'4. Equipment Costs'!B:B,$C$21)+SUMIFS('5. Subcontracting Costs'!H:H,'5. Subcontracting Costs'!C:C,B72,'5. Subcontracting Costs'!B:B,$C$21) -> 0 | D72: =SUMIFS('1. Staff costs'!S:S,'1. Staff costs'!C:C,B72,'1. Staff costs'!B:B,$D$21)+SUMIFS('2-3. Travel Costs&Costs of Stay'!N:N,'2-3. Travel Costs&Costs of Stay'!C:C,B72,'2-3. Travel Costs&Costs of Stay'!B:B,$D$21)+SUMIFS('4. Equipment Costs'!H:H,'4. Equipment Costs'!C:C,B72,'4. Equipment Costs'!B:B,$D$21)+SUMIFS('5. Subcontracting Costs'!H:H,'5. Subcontracting Costs'!C:C,B72,'5. Subcontracting Costs'!B:B,$D$21) -> 0 | E72: =SUMIFS('1. Staff costs'!S:S,'1. Staff costs'!C:C,B72,'1. Staff costs'!B:B,$E$21)+SUMIFS('2-3. Travel Costs&Costs of Stay'!N:N,'2-3. Travel Costs&Costs of Stay'!C:C,B72,'2-3. Travel Costs&Costs of Stay'!B:B,$E$21)+SUMIFS('4. Equipment Costs'!H:H,'4. Equipment Costs'!C:C,B72,'4. Equipment Costs'!B:B,$E$21)+SUMIFS('5. Subcontracting Costs'!H:H,'5. Subcontracting Costs'!C:C,B72,'5. Subcontracting Costs'!B:B,$E$21) -> 0 | F72: =SUMIFS('1. Staff costs'!S:S,'1. Staff costs'!C:C,B72,'1. Staff costs'!B:B,$B$8)+SUMIFS('2-3. Travel Costs&Costs of Stay'!N:N,'2-3. Travel Costs&Costs of Stay'!C:C,B72,'2-3. Travel Costs&Costs of Stay'!B:B,$B$8)+SUMIFS('4. Equipment Costs'!H:H,'4. Equipment Costs'!C:C,B72,'4. Equipment Costs'!B:B,$B$8)+SUMIFS('5. Subcontracting Costs'!H:H,'5. Subcontracting Costs'!C:C,B72,'5. Subcontracting Costs'!B:B,$B$8) -> 0 | G72: =SUMIFS('1. Staff costs'!S:S,'1. Staff costs'!C:C,B72,'1. Staff costs'!B:B,$G$21)+SUMIFS('2-3. Travel Costs&Costs of Stay'!N:N,'2-3. Travel Costs&Costs of Stay'!C:C,B72,'2-3. Travel Costs&Costs of Stay'!B:B,$G$21)+SUMIFS('4. Equipment Costs'!H:H,'4. Equipment Costs'!C:C,B72,'4. Equipment Costs'!B:B,$G$21)+SUMIFS('5. Subcontracting Costs'!H:H,'5. Subcontracting Costs'!C:C,B72,'5. Subcontracting Costs'!B:B,$G$21) -> 0 | H72: 0 | I72: 0
B73: P52 | C73: =SUMIFS('1. Staff costs'!S:S,'1. Staff costs'!C:C,B73,'1. Staff costs'!B:B,$C$21)+SUMIFS('2-3. Travel Costs&Costs of Stay'!N:N,'2-3. Travel Costs&Costs of Stay'!C:C,B73,'2-3. Travel Costs&Costs of Stay'!B:B,$C$21)+SUMIFS('4. Equipment Costs'!H:H,'4. Equipment Costs'!C:C,B73,'4. Equipment Costs'!B:B,$C$21)+SUMIFS('5. Subcontracting Costs'!H:H,'5. Subcontracting Costs'!C:C,B73,'5. Subcontracting Costs'!B:B,$C$21) -> 0 | D73: =SUMIFS('1. Staff costs'!S:S,'1. Staff costs'!C:C,B73,'1. Staff costs'!B:B,$D$21)+SUMIFS('2-3. Travel Costs&Costs of Stay'!N:N,'2-3. Travel Costs&Costs of Stay'!C:C,B73,'2-3. Travel Costs&Costs of Stay'!B:B,$D$21)+SUMIFS('4. Equipment Costs'!H:H,'4. Equipment Costs'!C:C,B73,'4. Equipment Costs'!B:B,$D$21)+SUMIFS('5. Subcontracting Costs'!H:H,'5. Subcontracting Costs'!C:C,B73,'5. Subcontracting Costs'!B:B,$D$21) -> 0 | E73: =SUMIFS('1. Staff costs'!S:S,'1. Staff costs'!C:C,B73,'1. Staff costs'!B:B,$E$21)+SUMIFS('2-3. Travel Costs&Costs of Stay'!N:N,'2-3. Travel Costs&Costs of Stay'!C:C,B73,'2-3. Travel Costs&Costs of Stay'!B:B,$E$21)+SUMIFS('4. Equipment Costs'!H:H,'4. Equipment Costs'!C:C,B73,'4. Equipment Costs'!B:B,$E$21)+SUMIFS('5. Subcontracting Costs'!H:H,'5. Subcontracting Costs'!C:C,B73,'5. Subcontracting Costs'!B:B,$E$21) -> 0 | F73: =SUMIFS('1. Staff costs'!S:S,'1. Staff costs'!C:C,B73,'1. Staff costs'!B:B,$B$8)+SUMIFS('2-3. Travel Costs&Costs of Stay'!N:N,'2-3. Travel Costs&Costs of Stay'!C:C,B73,'2-3. Travel Costs&Costs of Stay'!B:B,$B$8)+SUMIFS('4. Equipment Costs'!H:H,'4. Equipment Costs'!C:C,B73,'4. Equipment Costs'!B:B,$B$8)+SUMIFS('5. Subcontracting Costs'!H:H,'5. Subcontracting Costs'!C:C,B73,'5. Subcontracting Costs'!B:B,$B$8) -> 0 | G73: =SUMIFS('1. Staff costs'!S:S,'1. Staff costs'!C:C,B73,'1. Staff costs'!B:B,$G$21)+SUMIFS('2-3. Travel Costs&Costs of Stay'!N:N,'2-3. Travel Costs&Costs of Stay'!C:C,B73,'2-3. Travel Costs&Costs of Stay'!B:B,$G$21)+SUMIFS('4. Equipment Costs'!H:H,'4. Equipment Costs'!C:C,B73,'4. Equipment Costs'!B:B,$G$21)+SUMIFS('5. Subcontracting Costs'!H:H,'5. Subcontracting Costs'!C:C,B73,'5. Subcontracting Costs'!B:B,$G$21) -> 0 | H73: 0 | I73: 0
B74: P53 | C74: =SUMIFS('1. Staff costs'!S:S,'1. Staff costs'!C:C,B74,'1. Staff costs'!B:B,$C$21)+SUMIFS('2-3. Travel Costs&Costs of Stay'!N:N,'2-3. Travel Costs&Costs of Stay'!C:C,B74,'2-3. Travel Costs&Costs of Stay'!B:B,$C$21)+SUMIFS('4. Equipment Costs'!H:H,'4. Equipment Costs'!C:C,B74,'4. Equipment Costs'!B:B,$C$21)+SUMIFS('5. Subcontracting Costs'!H:H,'5. Subcontracting Costs'!C:C,B74,'5. Subcontracting Costs'!B:B,$C$21) -> 0 | D74: =SUMIFS('1. Staff costs'!S:S,'1. Staff costs'!C:C,B74,'1. Staff costs'!B:B,$D$21)+SUMIFS('2-3. Travel Costs&Costs of Stay'!N:N,'2-3. Travel Costs&Costs of Stay'!C:C,B74,'2-3. Travel Costs&Costs of Stay'!B:B,$D$21)+SUMIFS('4. Equipment Costs'!H:H,'4. Equipment Costs'!C:C,B74,'4. Equipment Costs'!B:B,$D$21)+SUMIFS('5. Subcontracting Costs'!H:H,'5. Subcontracting Costs'!C:C,B74,'5. Subcontracting Costs'!B:B,$D$21) -> 0 | E74: =SUMIFS('1. Staff costs'!S:S,'1. Staff costs'!C:C,B74,'1. Staff costs'!B:B,$E$21)+SUMIFS('2-3. Travel Costs&Costs of Stay'!N:N,'2-3. Travel Costs&Costs of Stay'!C:C,B74,'2-3. Travel Costs&Costs of Stay'!B:B,$E$21)+SUMIFS('4. Equipment Costs'!H:H,'4. Equipment Costs'!C:C,B74,'4. Equipment Costs'!B:B,$E$21)+SUMIFS('5. Subcontracting Costs'!H:H,'5. Subcontracting Costs'!C:C,B74,'5. Subcontracting Costs'!B:B,$E$21) -> 0 | F74: =SUMIFS('1. Staff costs'!S:S,'1. Staff costs'!C:C,B74,'1. Staff costs'!B:B,$B$8)+SUMIFS('2-3. Travel Costs&Costs of Stay'!N:N,'2-3. Travel Costs&Costs of Stay'!C:C,B74,'2-3. Travel Costs&Costs of Stay'!B:B,$B$8)+SUMIFS('4. Equipment Costs'!H:H,'4. Equipment Costs'!C:C,B74,'4. Equipment Costs'!B:B,$B$8)+SUMIFS('5. Subcontracting Costs'!H:H,'5. Subcontracting Costs'!C:C,B74,'5. Subcontracting Costs'!B:B,$B$8) -> 0 | G74: =SUMIFS('1. Staff costs'!S:S,'1. Staff costs'!C:C,B74,'1. Staff costs'!B:B,$G$21)+SUMIFS('2-3. Travel Costs&Costs of Stay'!N:N,'2-3. Travel Costs&Costs of Stay'!C:C,B74,'2-3. Travel Costs&Costs of Stay'!B:B,$G$21)+SUMIFS('4. Equipment Costs'!H:H,'4. Equipment Costs'!C:C,B74,'4. Equipment Costs'!B:B,$G$21)+SUMIFS('5. Subcontracting Costs'!H:H,'5. Subcontracting Costs'!C:C,B74,'5. Subcontracting Costs'!B:B,$G$21) -> 0 | H74: 0 | I74: 0
B75: P54 | C75: =SUMIFS('1. Staff costs'!S:S,'1. Staff costs'!C:C,B75,'1. Staff costs'!B:B,$C$21)+SUMIFS('2-3. Travel Costs&Costs of Stay'!N:N,'2-3. Travel Costs&Costs of Stay'!C:C,B75,'2-3. Travel Costs&Costs of Stay'!B:B,$C$21)+SUMIFS('4. Equipment Costs'!H:H,'4. Equipment Costs'!C:C,B75,'4. Equipment Costs'!B:B,$C$21)+SUMIFS('5. Subcontracting Costs'!H:H,'5. Subcontracting Costs'!C:C,B75,'5. Subcontracting Costs'!B:B,$C$21) -> 0 | D75: =SUMIFS('1. Staff costs'!S:S,'1. Staff costs'!C:C,B75,'1. Staff costs'!B:B,$D$21)+SUMIFS('2-3. Travel Costs&Costs of Stay'!N:N,'2-3. Travel Costs&Costs of Stay'!C:C,B75,'2-3. Travel Costs&Costs of Stay'!B:B,$D$21)+SUMIFS('4. Equipment Costs'!H:H,'4. Equipment Costs'!C:C,B75,'4. Equipment Costs'!B:B,$D$21)+SUMIFS('5. Subcontracting Costs'!H:H,'5. Subcontracting Costs'!C:C,B75,'5. Subcontracting Costs'!B:B,$D$21) -> 0 | E75: =SUMIFS('1. Staff costs'!S:S,'1. Staff costs'!C:C,B75,'1. Staff costs'!B:B,$E$21)+SUMIFS('2-3. Travel Costs&Costs of Stay'!N:N,'2-3. Travel Costs&Costs of Stay'!C:C,B75,'2-3. Travel Costs&Costs of Stay'!B:B,$E$21)+SUMIFS('4. Equipment Costs'!H:H,'4. Equipment Costs'!C:C,B75,'4. Equipment Costs'!B:B,$E$21)+SUMIFS('5. Subcontracting Costs'!H:H,'5. Subcontracting Costs'!C:C,B75,'5. Subcontracting Costs'!B:B,$E$21) -> 0 | F75: =SUMIFS('1. Staff costs'!S:S,'1. Staff costs'!C:C,B75,'1. Staff costs'!B:B,$B$8)+SUMIFS('2-3. Travel Costs&Costs of Stay'!N:N,'2-3. Travel Costs&Costs of Stay'!C:C,B75,'2-3. Travel Costs&Costs of Stay'!B:B,$B$8)+SUMIFS('4. Equipment Costs'!H:H,'4. Equipment Costs'!C:C,B75,'4. Equipment Costs'!B:B,$B$8)+SUMIFS('5. Subcontracting Costs'!H:H,'5. Subcontracting Costs'!C:C,B75,'5. Subcontracting Costs'!B:B,$B$8) -> 0 | G75: =SUMIFS('1. Staff costs'!S:S,'1. Staff costs'!C:C,B75,'1. Staff costs'!B:B,$G$21)+SUMIFS('2-3. Travel Costs&Costs of Stay'!N:N,'2-3. Travel Costs&Costs of Stay'!C:C,B75,'2-3. Travel Costs&Costs of Stay'!B:B,$G$21)+SUMIFS('4. Equipment Costs'!H:H,'4. Equipment Costs'!C:C,B75,'4. Equipment Costs'!B:B,$G$21)+SUMIFS('5. Subcontracting Costs'!H:H,'5. Subcontracting Costs'!C:C,B75,'5. Subcontracting Costs'!B:B,$G$21) -> 0 | H75: 0 | I75: 0
B76: P55 | C76: =SUMIFS('1. Staff costs'!S:S,'1. Staff costs'!C:C,B76,'1. Staff costs'!B:B,$C$21)+SUMIFS('2-3. Travel Costs&Costs of Stay'!N:N,'2-3. Travel Costs&Costs of Stay'!C:C,B76,'2-3. Travel Costs&Costs of Stay'!B:B,$C$21)+SUMIFS('4. Equipment Costs'!H:H,'4. Equipment Costs'!C:C,B76,'4. Equipment Costs'!B:B,$C$21)+SUMIFS('5. Subcontracting Costs'!H:H,'5. Subcontracting Costs'!C:C,B76,'5. Subcontracting Costs'!B:B,$C$21) -> 0 | D76: =SUMIFS('1. Staff costs'!S:S,'1. Staff costs'!C:C,B76,'1. Staff costs'!B:B,$D$21)+SUMIFS('2-3. Travel Costs&Costs of Stay'!N:N,'2-3. Travel Costs&Costs of Stay'!C:C,B76,'2-3. Travel Costs&Costs of Stay'!B:B,$D$21)+SUMIFS('4. Equipment Costs'!H:H,'4. Equipment Costs'!C:C,B76,'4. Equipment Costs'!B:B,$D$21)+SUMIFS('5. Subcontracting Costs'!H:H,'5. Subcontracting Costs'!C:C,B76,'5. Subcontracting Costs'!B:B,$D$21) -> 0 | E76: =SUMIFS('1. Staff costs'!S:S,'1. Staff costs'!C:C,B76,'1. Staff costs'!B:B,$E$21)+SUMIFS('2-3. Travel Costs&Costs of Stay'!N:N,'2-3. Travel Costs&Costs of Stay'!C:C,B76,'2-3. Travel Costs&Costs of Stay'!B:B,$E$21)+SUMIFS('4. Equipment Costs'!H:H,'4. Equipment Costs'!C:C,B76,'4. Equipment Costs'!B:B,$E$21)+SUMIFS('5. Subcontracting Costs'!H:H,'5. Subcontracting Costs'!C:C,B76,'5. Subcontracting Costs'!B:B,$E$21) -> 0 | F76: =SUMIFS('1. Staff costs'!S:S,'1. Staff costs'!C:C,B76,'1. Staff costs'!B:B,$B$8)+SUMIFS('2-3. Travel Costs&Costs of Stay'!N:N,'2-3. Travel Costs&Costs of Stay'!C:C,B76,'2-3. Travel Costs&Costs of Stay'!B:B,$B$8)+SUMIFS('4. Equipment Costs'!H:H,'4. Equipment Costs'!C:C,B76,'4. Equipment Costs'!B:B,$B$8)+SUMIFS('5. Subcontracting Costs'!H:H,'5. Subcontracting Costs'!C:C,B76,'5. Subcontracting Costs'!B:B,$B$8) -> 0 | G76: =SUMIFS('1. Staff costs'!S:S,'1. Staff costs'!C:C,B76,'1. Staff costs'!B:B,$G$21)+SUMIFS('2-3. Travel Costs&Costs of Stay'!N:N,'2-3. Travel Costs&Costs of Stay'!C:C,B76,'2-3. Travel Costs&Costs of Stay'!B:B,$G$21)+SUMIFS('4. Equipment Costs'!H:H,'4. Equipment Costs'!C:C,B76,'4. Equipment Costs'!B:B,$G$21)+SUMIFS('5. Subcontracting Costs'!H:H,'5. Subcontracting Costs'!C:C,B76,'5. Subcontracting Costs'!B:B,$G$21) -> 0 | H76: 0 | I76: 0
B77: Total | C77: =SUM(C22:C76) -> 66395 | D77: =SUM(D22:D76) -> 474586 | E77: 33619 | F77: 56085 | G77: 230035 | H77: =SUM(H22:H76) -> 7400 | I77: =SUM(C77:H77) -> 868120

Sheet Unit Costs & Funding Rule
B1: UNIT COSTS AND SUMMARY OF THE FUNDING RULES FOR JOINT AND STRUCTURAL CAPACITY BUILDING PROJECTS You can find below the unit costs values used in this file for the calculation of the grant. Please refer to the Erasmus+ Programme guide 2017* for a complete overview of the funding rules applying to the Joint and Structural Capacity Building Projects (Part B of the guide and Annex 1).
B2: * Link to Erasmus+ Programme guide 2018: | C2: https://ec.europa.eu/programmes/erasmus-plus/sites/erasmusplus2/files/files/resources/erasmus-plus-programme-guide_en.pdf
B3: * Link to CBHE Call for proposal, forms, annexes and guidelines: | C3: https://eacea.ec.europa.eu/erasmus-plus/funding/capacity-building-higher-education-2018_en
B4: A.1 Staff Costs | I4: A.2 & B Travel Costs | L4: A. 3 Costs of Stay | P4: A.4 Equipment | S4: A.5 Subcontracting
B5: Unit costs Contribution to the costs of staff performing tasks which are directly necessary to the achievements of the project's objectives. Conditional: applicants will have to justify the type and volume of resources needed in relation to the implementation of the proposed activities and outputs. The contribution is provided on the condition that the salary for the same tasks is compensated only once. | I5: Unit costs based on the travel distance per participant. Travel distances must be calculated using the distance calculator supported by the European Commission . The applicant must indicate the distance of a one-way travel to calculate the amount of the EU grant that will support the round trip. | L5: Costs for subsistence, accommodation, local and public transport such as bus and taxi, personal or optional health insurance. Unit costs based on the duration of the stay of the participants: Staff: 120 EUR/day from day 1 to day 14 70 EUR/day from day 15 to day 60 50 EUR/day from day 61 to day 90 (the maximum) Student: 55 EUR/day from day 1 to day 14 40 EUR/day from day 15 to max day 90 (the maximum) | P5: Contribution for the purchase of equipment necessary for the implementation of the project. Support is provided only for equipment purchased for the benefit of the HEIs in the Partner Countries. Conditional: the request for financial support to cover these costs must be motivated in the application form | S5: Support for sub-contracting costs that are necessary to the implementation of the project, including, in particular, costs for the compulsory financial audits (audit certificate) and for any external quality assurance procedure. Sub-contracting for project-management-related tasks is not eligible. Sub-contracting to external bodies should be very occasional. The specific competences and particular expertise needed to reach the project objectives should be found in the consortium and should determine its composition.
B7: Country | C7: PR/PA | D7: Manager | E7: Teacher/Trainer/Researcher | F7: Technical Staff | G7: Administrative Staff | I7: Distance | J7: Travel Costs (EUR) | L7: Number of Days | M7: Student | N7: Staff | P7: 100% of eligible costs Max. 30% of the total grant | S7: 100% of eligible costs Max. 10% of the total grant
B8: Austria | C8: Programme Countries | D8: 294 | E8: 241 | F8: 190 | G8: 157 | I8: 0 KM and 9 KM | J8: 0 | L8: 1 | M8: =L8*55 -> 55 | N8: =L8*120 -> 120
B9: Belgium | C9: Programme Countries | D9: 280 | E9: 214 | F9: 162 | G9: 131 | I9: 10 KM and 99 KM | J9: 20 | L9: 2 | M9: =L9*55 -> 110 | N9: =L9*120 -> 240 | P9: WorkPackage
B10: Bulgaria | C10: Programme Countries | D10: 88 | E10: 74 | F10: 55 | G10: 39 | I10: 100 KM and 499 KM | J10: 180 | L10: 3 | M10: 165 | N10: 360 | P10: Preparation
B11: Croatia | C11: Programme Countries | D11: 88 | E11: 74 | F11: 55 | G11: 39 | I11: 500 KM and 1999 KM | J11: 275 | L11: 4 | M11: 220 | N11: 480 | P11: Development
B12: Cyprus | C12: Programme Countries | D12: 164 | E12: 137 | F12: 102 | G12: 78 | I12: 2000 KM and 2999 KM | J12: 360 | L12: 5 | M12: 275 | N12: 600 | P12: Quality Plan
B13: Czech Republic | C13: Programme Countries | D13: 164 | E13: 137 | F13: 102 | G13: 78 | I13: 3000 KM and 3999 KM | J13: 530 | L13: 6 | M13: 330 | N13: 720 | P13: Dissemination & Exploitation
B14: Denmark | C14: Programme Countries | D14: 294 | E14: 241 | F14: 190 | G14: 157 | I14: 4000 KM and 7999 KM | J14: 820 | L14: 7 | M14: 385 | N14: 840 | P14: Management
B15: Estonia | C15: Programme Countries | D15: 88 | E15: 74 | F15: 55 | G15: 39 | I15: 8000 KM or more | J15: 1500 | L15: 8 | M15: 440 | N15: 960
B16: Finland | C16: Programme Countries | D16: 280 | E16: 214 | F16: 162 | G16: 131 | L16: 9 | M16: 495 | N16: 1080 | P16: Category
B17: former Yugoslav Republic of Macedonia | C17: Programme Countries | D17: 88 | E17: 74 | F17: 55 | G17: 39 | L17: 10 | M17: 550 | N17: 1200 | P17: Staff
B18: France | C18: Programme Countries | D18: 280 | E18: 214 | F18: 162 | G18: 131 | L18: 11 | M18: 605 | N18: 1320 | P18: Student
B19: Germany | C19: Programme Countries | D19: 280 | E19: 214 | F19: 162 | G19: 131 | L19: 12 | M19: 660 | N19: 1440
B20: Greece | C20: Programme Countries | D20: 164 | E20: 137 | F20: 102 | G20: 78 | L20: 13 | M20: 715 | N20: 1560
B21: Hungary | C21: Programme Countries | D21: 88 | E21: 74 | F21: 55 | G21: 39 | L21: 14 | M21: 770 | N21: 1680
B22: Iceland | C22: Programme Countries | D22: 280 | E22: 214 | F22: 162 | G22: 131 | L22: 15 | M22: =((L22-$L$21)*40)+770 -> 810 | N22: =((L22-$L$21)*70)+1680 -> 1750
B23: Ireland | C23: Programme Countries | D23: 294 | E23: 241 | F23: 190 | G23: 157 | L23: 16 | M23: =((L23-$L$21)*40)+770 -> 850 | N23: =((L23-$L$21)*70)+1680 -> 1820
B24: Italy | C24: Programme Countries | D24: 280 | E24: 214 | F24: 162 | G24: 131 | L24: 17 | M24: 890 | N24: 1890
B25: Latvia | C25: Programme Countries | D25: 88 | E25: 74 | F25: 55 | G25: 39 | L25: 18 | M25: 930 | N25: 1960
B26: Liechtenstein | C26: Programme Countries | D26: 294 | E26: 241 | F26: 190 | G26: 157 | L26: 19 | M26: 970 | N26: 2030
B27: Lithuania | C27: Programme Countries | D27: 88 | E27: 74 | F27: 55 | G27: 39 | L27: 20 | M27: 1010 | N27: 2100
B28: Luxembourg | C28: Programme Countries | D28: 294 | E28: 241 | F28: 190 | G28: 157 | L28: 21 | M28: 1050 | N28: 2170
B29: Malta | C29: Programme Countries | D29: 164 | E29: 137 | F29: 102 | G29: 78 | L29: 22 | M29: 1090 | N29: 2240
B30: Netherlands | C30: Programme Countries | D30: 294 | E30: 241 | F30: 190 | G30: 157 | L30: 23 | M30: 1130 | N30: 2310
B31: Norway | C31: Programme Countries | D31: 294 | E31: 241 | F31: 190 | G31: 157 | L31: 24 | M31: 1170 | N31: 2380
B32: Poland | C32: Programme Countries | D32: 88 | E32: 74 | F32: 55 | G32: 39 | L32: 25 | M32: 1210 | N32: 2450
B33: Portugal | C33: Programme Countries | D33: 164 | E33: 137 | F33: 102 | G33: 78 | L33: 26 | M33: 1250 | N33: 2520
B34: Romania | C34: Programme Countries | D34: 88 | E34: 74 | F34: 55 | G34: 39 | L34: 27 | M34: 1290 | N34: 2590
B35: Slovakia | C35: Programme Countries | D35: 88 | E35: 74 | F35: 55 | G35: 39 | L35: 28 | M35: 1330 | N35: 2660
B36: Slovenia | C36: Programme Countries | D36: 164 | E36: 137 | F36: 102 | G36: 78 | L36: 29 | M36: 1370 | N36: 2730
B37: Spain | C37: Programme Countries | D37: 164 | E37: 137 | F37: 102 | G37: 78 | L37: 30 | M37: 1410 | N37: 2800
B38: Sweden | C38: Programme Countries | D38: 294 | E38: 241 | F38: 190 | G38: 157 | L38: 31 | M38: 1450 | N38: 2870
B39: Turkey | C39: Programme Countries | D39: 88 | E39: 74 | F39: 55 | G39: 39 | L39: 32 | M39: 1490 | N39: 2940
B40: United Kingdom | C40: Programme Countries | D40: 280 | E40: 214 | F40: 162 | G40: 131 | L40: 33 | M40: 1530 | N40: 3010
B41: Afghanistan | C41: Partner Countries | D41: 77 | E41: 57 | F41: 40 | G41: 32 | L41: 34 | M41: 1570 | N41: 3080
B42: Albania | C42: Partner Countries | D42: 108 | E42: 80 | F42: 57 | G42: 45 | L42: 35 | M42: 1610 | N42: 3150
B43: Algeria | C43: Partner Countries | D43: 47 | E43: 33 | F43: 22 | G43: 17 | L43: 36 | M43: 1650 | N43: 3220
B44: Angola | C44: Partner Countries | D44: 108 | E44: 80 | F44: 57 | G44: 45 | L44: 37 | M44: 1690 | N44: 3290
B45: Antigua and Barbuda | C45: Partner Countries | D45: 108 | E45: 80 | F45: 57 | G45: 45 | L45: 38 | M45: 1730 | N45: 3360
B46: Argentina | C46: Partner Countries | D46: 108 | E46: 80 | F46: 57 | G46: 45 | L46: 39 | M46: 1770 | N46: 3430
B47: Armenia | C47: Partner Countries | D47: 47 | E47: 33 | F47: 22 | G47: 17 | L47: 40 | M47: 1810 | N47: 3500
B48: Azerbaijan | C48: Partner Countries | D48: 77 | E48: 57 | F48: 40 | G48: 32 | L48: 41 | M48: 1850 | N48: 3570
B49: Bahamas | C49: Partner Countries | D49: 77 | E49: 57 | F49: 40 | G49: 32 | L49: 42 | M49: 1890 | N49: 3640
B50: Bangladesh | C50: Partner Countries | D50: 47 | E50: 33 | F50: 22 | G50: 17 | L50: 43 | M50: 1930 | N50: 3710
B51: Barbados | C51: Partner Countries | D51: 108 | E51: 80 | F51: 57 | G51: 45 | L51: 44 | M51: 1970 | N51: 3780
B52: Belarus | C52: Partner Countries | D52: 47 | E52: 33 | F52: 22 | G52: 17 | L52: 45 | M52: 2010 | N52: 3850
B53: Belize | C53: Partner Countries | D53: 47 | E53: 33 | F53: 22 | G53: 17 | L53: 46 | M53: 2050 | N53: 3920
B54: Benin | C54: Partner Countries | D54: 47 | E54: 33 | F54: 22 | G54: 17 | L54: 47 | M54: 2090 | N54: 3990
B55: Bhutan | C55: Partner Countries | D55: 47 | E55: 33 | F55: 22 | G55: 17 | L55: 48 | M55: 2130 | N55: 4060
B56: Bolivia | C56: Partner Countries | D56: 77 | E56: 57 | F56: 40 | G56: 32 | L56: 49 | M56: 2170 | N56: 4130
B57: Bosnia and Herzegovina | C57: Partner Countries | D57: 108 | E57: 80 | F57: 57 | G57: 45 | L57: 50 | M57: 2210 | N57: 4200
B58: Botswana | C58: Partner Countries | D58: 47 | E58: 33 | F58: 22 | G58: 17 | L58: 51 | M58: 2250 | N58: 4270
B59: Brazil | C59: Partner Countries | D59: 108 | E59: 80 | F59: 57 | G59: 45 | L59: 52 | M59: 2290 | N59: 4340
B60: Burkina Faso | C60: Partner Countries | D60: 77 | E60: 57 | F60: 40 | G60: 32 | L60: 53 | M60: 2330 | N60: 4410
B61: Burundi | C61: Partner Countries | D61: 47 | E61: 33 | F61: 22 | G61: 17 | L61: 54 | M61: 2370 | N61: 4480
B62: Cambodia | C62: Partner Countries | D62: 47 | E62: 33 | F62: 22 | G62: 17 | L62: 55 | M62: 2410 | N62: 4550
B63: Cameroon | C63: Partner Countries | D63: 77 | E63: 57 | F63: 40 | G63: 32 | L63: 56 | M63: 2450 | N63: 4620
B64: Cape Verde | C64: Partner Countries | D64: 47 | E64: 33 | F64: 22 | G64: 17 | L64: 57 | M64: 2490 | N64: 4690
B65: Central African Republic | C65: Partner Countries | D65: 47 | E65: 33 | F65: 22 | G65: 17 | L65: 58 | M65: 2530 | N65: 4760
B66: Chad | C66: Partner Countries | D66: 47 | E66: 33 | F66: 22 | G66: 17 | L66: 59 | M66: 2570 | N66: 4830
B67: Chile | C67: Partner Countries | D67: 108 | E67: 80 | F67: 57 | G67: 45 | L67: 60 | M67: 2610 | N67: 4900
B68: China | C68: Partner Countries | D68: 77 | E68: 57 | F68: 40 | G68: 32 | L68: 61 | M68: 2650 | N68: =((L68-$L$67)*50)+4900 -> 4950
B69: Colombia | C69: Partner Countries | D69: 108 | E69: 80 | F69: 57 | G69: 45 | L69: 62 | M69: 2690 | N69: =((L69-$L$67)*50)+4900 -> 5000
B70: Comoros | C70: Partner Countries | D70: 108 | E70: 80 | F70: 57 | G70: 45 | L70: 63 | M70: 2730 | N70: 5050
B71: Congo | C71: Partner Countries | D71: 77 | E71: 57 | F71: 40 | G71: 32 | L71: 64 | M71: 2770 | N71: 5100
B72: Congo - Republic of the- | C72: Partner Countries | D72: 47 | E72: 33 | F72: 22 | G72: 17 | L72: 65 | M72: 2810 | N72: 5150
B73: Cook Islands | C73: Partner Countries | D73: 108 | E73: 80 | F73: 57 | G73: 45 | L73: 66 | M73: 2850 | N73: 5200
B74: Costa Rica | C74: Partner Countries | D74: 77 | E74: 57 | F74: 40 | G74: 32 | L74: 67 | M74: 2890 | N74: 5250
B75: Cuba | C75: Partner Countries | D75: 47 | E75: 33 | F75: 22 | G75: 17 | L75: 68 | M75: 2930 | N75: 5300
B76: Djibouti | C76: Partner Countries | D76: 77 | E76: 57 | F76: 40 | G76: 32 | L76: 69 | M76: 2970 | N76: 5350
B77: Dominica | C77: Partner Countries | D77: 108 | E77: 80 | F77: 57 | G77: 45 | L77: 70 | M77: 3010 | N77: 5400
B78: Dominican Republic | C78: Partner Countries | D78: 77 | E78: 57 | F78: 40 | G78: 32 | L78: 71 | M78: 3050 | N78: 5450
B79: DPR Korea | C79: Partner Countries | D79: 47 | E79: 33 | F79: 22 | G79: 17 | L79: 72 | M79: 3090 | N79: 5500
B80: Ecuador | C80: Partner Countries | D80: 77 | E80: 57 | F80: 40 | G80: 32 | L80: 73 | M80: 3130 | N80: 5550
B81: Egypt | C81: Partner Countries | D81: 47 | E81: 33 | F81: 22 | G81: 17 | L81: 74 | M81: 3170 | N81: 5600
B82: El Salvador | C82: Partner Countries | D82: 77 | E82: 57 | F82: 40 | G82: 32 | L82: 75 | M82: 3210 | N82: 5650
B83: Equatorial Guinea | C83: Partner Countries | D83: 47 | E83: 33 | F83: 22 | G83: 17 | L83: 76 | M83: 3250 | N83: 5700
B84: Eritrea | C84: Partner Countries | D84: 47 | E84: 33 | F84: 22 | G84: 17 | L84: 77 | M84: 3290 | N84: 5750
B85: Ethiopia | C85: Partner Countries | D85: 47 | E85: 33 | F85: 22 | G85: 17 | L85: 78 | M85: 3330 | N85: 5800
B86: Fiji | C86: Partner Countries | D86: 47 | E86: 33 | F86: 22 | G86: 17 | L86: 79 | M86: 3370 | N86: 5850
B87: Gabon | C87: Partner Countries | D87: 108 | E87: 80 | F87: 57 | G87: 45 | L87: 80 | M87: =((L87-$L$21)*40)+770 -> 3410 | N87: 5900
B88: Gambia | C88: Partner Countries | D88: 47 | E88: 33 | F88: 22 | G88: 17 | L88: 81 | M88: 3450 | N88: 5950
B89: Georgia | C89: Partner Countries | D89: 77 | E89: 57 | F89: 40 | G89: 32 | L89: 82 | M89: 3490 | N89: 6000
B90: Ghana | C90: Partner Countries | D90: 47 | E90: 33 | F90: 22 | G90: 17 | L90: 83 | M90: 3530 | N90: 6050
B91: Grenada | C91: Partner Countries | D91: 108 | E91: 80 | F91: 57 | G91: 45 | L91: 84 | M91: 3570 | N91: 6100
B92: Guatemala | C92: Partner Countries | D92: 77 | E92: 57 | F92: 40 | G92: 32 | L92: 85 | M92: 3610 | N92: 6150
B93: Guinea | C93: Partner Countries | D93: 47 | E93: 33 | F93: 22 | G93: 17 | L93: 86 | M93: 3650 | N93: 6200
B94: Guinea-Bissau | C94: Partner Countries | D94: 77 | E94: 57 | F94: 40 | G94: 32 | L94: 87 | M94: 3690 | N94: 6250
B95: Guyana | C95: Partner Countries | D95: 47 | E95: 33 | F95: 22 | G95: 17 | L95: 88 | M95: 3730 | N95: 6300
B96: Haiti | C96: Partner Countries | D96: 77 | E96: 57 | F96: 40 | G96: 32 | L96: 89 | M96: 3770 | N96: 6350
B97: Honduras | C97: Partner Countries | D97: 47 | E97: 33 | F97: 22 | G97: 17 | L97: 90 | M97: 3810 | N97: 6400
B98: India | C98: Partner Countries | D98: 47 | E98: 33 | F98: 22 | G98: 17
B99: Indonesia | C99: Partner Countries | D99: 47 | E99: 33 | F99: 22 | G99: 17
B100: Iran | C100: Partner Countries | D100: 77 | E100: 57 | F100: 40 | G100: 32
B101: Iraq | C101: Partner Countries | D101: 77 | E101: 57 | F101: 40 | G101: 32
B102: Israel | C102: Partner Countries | D102: 166 | E102: 132 | F102: 102 | G102: 92
B103: Ivory Coast | C103: Partner Countries | D103: 108 | E103: 80 | F103: 57 | G103: 45
B104: Jamaica | C104: Partner Countries | D104: 77 | E104: 57 | F104: 40 | G104: 32
B105: Jordan | C105: Partner Countries | D105: 77 | E105: 57 | F105: 40 | G105: 32
B106: Kazakstan | C106: Partner Countries | D106: 77 | E106: 57 | F106: 40 | G106: 32
B107: Kenya | C107: Partner Countries | D107: 77 | E107: 57 | F107: 40 | G107: 32
B108: Kiribati | C108: Partner Countries | D108: 47 | E108: 33 | F108: 22 | G108: 17
B109: Kosovo | C109: Partner Countries | D109: 108 | E109: 80 | F109: 57 | G109: 45
B110: Kyrgyzstan | C110: Partner Countries | D110: 47 | E110: 33 | F110: 22 | G110: 17
B111: Laos | C111: Partner Countries | D111: 47 | E111: 33 | F111: 22 | G111: 17
B112: Lebanon | C112: Partner Countries | D112: 108 | E112: 80 | F112: 57 | G112: 45
B113: Lesotho | C113: Partner Countries | D113: 47 | E113: 33 | F113: 22 | G113: 17
B114: Liberia | C114: Partner Countries | D114: 47 | E114: 33 | F114: 22 | G114: 17
B115: Libya | C115: Partner Countries | D115: 108 | E115: 80 | F115: 57 | G115: 45
B116: Madagascar | C116: Partner Countries | D116: 47 | E116: 33 | F116: 22 | G116: 17
B117: Malawi | C117: Partner Countries | D117: 47 | E117: 33 | F117: 22 | G117: 17
B118: Malaysia | C118: Partner Countries | D118: 47 | E118: 33 | F118: 22 | G118: 17
B119: Maldives | C119: Partner Countries | D119: 47 | E119: 33 | F119: 22 | G119: 17
B120: Mali | C120: Partner Countries | D120: 47 | E120: 33 | F120: 22 | G120: 17
B121: Marshall Islands | C121: Partner Countries | D121: 47 | E121: 33 | F121: 22 | G121: 17
B122: Mauritania | C122: Partner Countries | D122: 47 | E122: 33 | F122: 22 | G122: 17
B123: Mauritius | C123: Partner Countries | D123: 47 | E123: 33 | F123: 22 | G123: 17
B124: Mexico | C124: Partner Countries | D124: 108 | E124: 80 | F124: 57 | G124: 45
B125: Micronesia - Federated States of- | C125: Partner Countries | D125: 77 | E125: 57 | F125: 40 | G125: 32
B126: Moldova | C126: Partner Countries | D126: 47 | E126: 33 | F126: 22 | G126: 17
B127: Mongolia | C127: Partner Countries | D127: 47 | E127: 33 | F127: 22 | G127: 17
B128: Montenegro | C128: Partner Countries | D128: 108 | E128: 80 | F128: 57 | G128: 45
B129: Morocco | C129: Partner Countries | D129: 77 | E129: 57 | F129: 40 | G129: 32
B130: Mozambique | C130: Partner Countries | D130: 77 | E130: 57 | F130: 40 | G130: 32
B131: Myanmar | C131: Partner Countries | D131: 47 | E131: 33 | F131: 22 | G131: 17
B132: Namibia | C132: Partner Countries | D132: 77 | E132: 57 | F132: 40 | G132: 32
B133: Nauru | C133: Partner Countries | D133: 47 | E133: 33 | F133: 22 | G133: 17
B134: Nepal | C134: Partner Countries | D134: 47 | E134: 33 | F134: 22 | G134: 17
B135: Nicaragua | C135: Partner Countries | D135: 47 | E135: 33 | F135: 22 | G135: 17
B136: Niger | C136: Partner Countries | D136: 47 | E136: 33 | F136: 22 | G136: 17
B137: Nigeria | C137: Partner Countries | D137: 108 | E137: 80 | F137: 57 | G137: 45
B138: Niue | C138: Partner Countries | D138: 47 | E138: 33 | F138: 22 | G138: 17
B139: Pakistan | C139: Partner Countries | D139: 47 | E139: 33 | F139: 22 | G139: 17
B140: Palau | C140: Partner Countries | D140: 47 | E140: 33 | F140: 22 | G140: 17
B141: Palestine | C141: Partner Countries | D141: 77 | E141: 57 | F141: 40 | G141: 32
B142: Panama | C142: Partner Countries | D142: 77 | E142: 57 | F142: 40 | G142: 32
B143: Papua New Guinea | C143: Partner Countries | D143: 77 | E143: 57 | F143: 40 | G143: 32
B144: Paraguay | C144: Partner Countries | D144: 77 | E144: 57 | F144: 40 | G144: 32
B145: Peru | C145: Partner Countries | D145: 108 | E145: 80 | F145: 57 | G145: 45
B146: Philippines | C146: Partner Countries | D146: 47 | E146: 33 | F146: 22 | G146: 17
B147: Russia | C147: Partner Countries | D147: 77 | E147: 57 | F147: 40 | G147: 32
B148: Rwanda | C148: Partner Countries | D148: 47 | E148: 33 | F148: 22 | G148: 17
B149: Saint Kitts and Nevis | C149: Partner Countries | D149: 108 | E149: 80 | F149: 57 | G149: 45
B150: Saint Lucia | C150: Partner Countries | D150: 108 | E150: 80 | F150: 57 | G150: 45
B151: Saint Vincent and the Grenadines | C151: Partner Countries | D151: 108 | E151: 80 | F151: 57 | G151: 45
B152: Samoa | C152: Partner Countries | D152: 47 | E152: 33 | F152: 22 | G152: 17
B153: Sao Tome and Principe | C153: Partner Countries | D153: 108 | E153: 80 | F153: 57 | G153: 45
B154: Senegal | C154: Partner Countries | D154: 77 | E154: 57 | F154: 40 | G154: 32
B155: Serbia | C155: Partner Countries | D155: 108 | E155: 80 | F155: 57 | G155: 45
B156: Seychelles | C156: Partner Countries | D156: 108 | E156: 80 | F156: 57 | G156: 45
B157: Sierra Leone | C157: Partner Countries | D157: 47 | E157: 33 | F157: 22 | G157: 17
B158: Solomon Islands | C158: Partner Countries | D158: 47 | E158: 33 | F158: 22 | G158: 17
B159: Somalia | C159: Partner Countries | D159: 47 | E159: 33 | F159: 22 | G159: 17
B160: South Africa | C160: Partner Countries | D160: 77 | E160: 57 | F160: 40 | G160: 32
B161: South Sudan | C161: Partner Countries | D161: 47 | E161: 33 | F161: 22 | G161: 17
B162: Sri Lanka | C162: Partner Countries | D162: 47 | E162: 33 | F162: 22 | G162: 17
B163: Sudan | C163: Partner Countries | D163: 47 | E163: 33 | F163: 22 | G163: 17
B164: Suriname | C164: Partner Countries | D164: 77 | E164: 57 | F164: 40 | G164: 32
B165: Swaziland | C165: Partner Countries | D165: 77 | E165: 57 | F165: 40 | G165: 32
B166: Syria | C166: Partner Countries | D166: 47 | E166: 33 | F166: 22 | G166: 17
B167: Tajikistan | C167: Partner Countries | D167: 47 | E167: 33 | F167: 22 | G167: 17
B168: Tanzania | C168: Partner Countries | D168: 47 | E168: 33 | F168: 22 | G168: 17
B169: Thailand | C169: Partner Countries | D169: 108 | E169: 80 | F169: 57 | G169: 45
B170: Timor Leste - Republic of- | C170: Partner Countries | D170: 47 | E170: 33 | F170: 22 | G170: 17
B171: Togo | C171: Partner Countries | D171: 47 | E171: 33 | F171: 22 | G171: 17
B172: Tonga | C172: Partner Countries | D172: 47 | E172: 33 | F172: 22 | G172: 17
B173: Trinidad and Tobago | C173: Partner Countries | D173: 77 | E173: 57 | F173: 40 | G173: 32
B174: Tunisia | C174: Partner Countries | D174: 47 | E174: 33 | F174: 22 | G174: 17
B175: Turkmenistan | C175: Partner Countries | D175: 47 | E175: 33 | F175: 22 | G175: 17
B176: Tuvalu | C176: Partner Countries | D176: 47 | E176: 33 | F176: 22 | G176: 17
B177: Uganda | C177: Partner Countries | D177: 47 | E177: 33 | F177: 22 | G177: 17
B178: Ukraine | C178: Partner Countries | D178: 108 | E178: 80 | F178: 57 | G178: 45
B179: Uruguay | C179: Partner Countries | D179: 108 | E179: 80 | F179: 57 | G179: 45
B180: Uzbekistan | C180: Partner Countries | D180: 47 | E180: 33 | F180: 22 | G180: 17
B181: Vanuatu | C181: Partner Countries | D181: 77 | E181: 57 | F181: 40 | G181: 32
B182: Venezuela | C182: Partner Countries | D182: 108 | E182: 80 | F182: 57 | G182: 45
B183: Vietnam | C183: Partner Countries | D183: 47 | E183: 33 | F183: 22 | G183: 17
B184: Yemen | C184: Partner Countries | D184: 47 | E184: 33 | F184: 22 | G184: 17
B185: Zambia | C185: Partner Countries | D185: 108 | E185: 80 | F185: 57 | G185: 45
B186: Zimbabwe | C186: Partner Countries | D186: 108 | E186: 80 | F186: 57 | G186: 45
